Workbook

Sheet Overblik
A1: =A918 -> Retten i Roskilde | B1: =_xlfn.IFS($A$1=$A$902,B902,$A$1=$A$903,B903,$A$1=$A$904,B904,$A$1=$A$905,B905,$A$1=$A$906,B906,$A$1=$A$907,B907,$A$1=$A$908,B908,$A$1=$A$909,B909,$A$1=$A$910,B910,$A$1=$A$911,B911,$A$1=$A$912,B912,$A$1=$A$913,B913,$A$1=$A$914,B914,$A$1=$A$915,B915,$A$1=$A$916,B916,$A$1=$A$917,B917,$A$1=$A$918,B918,$A$1=$A$919,B919,$A$1=$A$920,B920,$A$1=$A$921,B921,$A$1=$A$922,B922,$A$1=$A$923,B923,$A$1=$A$924,B924,$A$1=$A$925,B925) -> 113.6459296 | C1: =_xlfn.IFS($A$1=$A$902,C902,$A$1=$A$903,C903,$A$1=$A$904,C904,$A$1=$A$905,C905,$A$1=$A$906,C906,$A$1=$A$907,C907,$A$1=$A$908,C908,$A$1=$A$909,C909,$A$1=$A$910,C910,$A$1=$A$911,C911,$A$1=$A$912,C912,$A$1=$A$913,C913,$A$1=$A$914,C914,$A$1=$A$915,C915,$A$1=$A$916,C916,$A$1=$A$917,C917,$A$1=$A$918,C918,$A$1=$A$919,C919,$A$1=$A$920,C920,$A$1=$A$921,C921,$A$1=$A$922,C922,$A$1=$A$923,C923,$A$1=$A$924,C924,$A$1=$A$925,C925) -> 110.6857997 | D1: =_xlfn.IFS($A$1=$A$902,D902,$A$1=$A$903,D903,$A$1=$A$904,D904,$A$1=$A$905,D905,$A$1=$A$906,D906,$A$1=$A$907,D907,$A$1=$A$908,D908,$A$1=$A$909,D909,$A$1=$A$910,D910,$A$1=$A$911,D911,$A$1=$A$912,D912,$A$1=$A$913,D913,$A$1=$A$914,D914,$A$1=$A$915,D915,$A$1=$A$916,D916,$A$1=$A$917,D917,$A$1=$A$918,D918,$A$1=$A$919,D919,$A$1=$A$920,D920,$A$1=$A$921,D921,$A$1=$A$922,D922,$A$1=$A$923,D923,$A$1=$A$924,D924,$A$1=$A$925,D925) -> 111.461 | E1: 106.004 | F1: =_xlfn.IFS($A$1=$A$902,F902,$A$1=$A$903,F903,$A$1=$A$904,F904,$A$1=$A$905,F905,$A$1=$A$906,F906,$A$1=$A$907,F907,$A$1=$A$908,F908,$A$1=$A$909,F909,$A$1=$A$910,F910,$A$1=$A$911,F911,$A$1=$A$912,F912,$A$1=$A$913,F913,$A$1=$A$914,F914,$A$1=$A$915,F915,$A$1=$A$916,F916,$A$1=$A$917,F917,$A$1=$A$918,F918,$A$1=$A$919,F919,$A$1=$A$920,F920,$A$1=$A$921,F921,$A$1=$A$922,F922,$A$1=$A$923,F923,$A$1=$A$924,F924,$A$1=$A$925,F925) -> 111.467 | G1: 110.642 | H1: =_xlfn.IFS($A$1=$A$902,H902,$A$1=$A$903,H903,$A$1=$A$904,H904,$A$1=$A$905,H905,$A$1=$A$906,H906,$A$1=$A$907,H907,$A$1=$A$908,H908,$A$1=$A$909,H909,$A$1=$A$910,H910,$A$1=$A$911,H911,$A$1=$A$912,H912,$A$1=$A$913,H913,$A$1=$A$914,H914,$A$1=$A$915,H915,$A$1=$A$916,H916,$A$1=$A$917,H917,$A$1=$A$918,H918,$A$1=$A$919,H919,$A$1=$A$920,H920,$A$1=$A$921,H921,$A$1=$A$922,H922,$A$1=$A$923,H923,$A$1=$A$924,H924,$A$1=$A$925,H925) -> 0.1349891535 | I1: 0.1295498188 | J1: 159 | K1: 124 | L1: 402.0520833 | M1: 482.82 | N1: 59.55418394 | O1: 63.65395454 | P1: 41.38 | Q1: 51.27 | R1: 28.57142857 | S1: 67.70833333 | T1: 0 | U1: 33.33333333 | V1: 9.679845664 | W1: 11.85945551 | X1: 4.224425252 | Y1: 5.984630325 | Z1: 62.67419 | AA1: 63.27168 | AB1: 18.99181 | AC1: 19.60239 | AD1: =_xlfn.IFS($A$1=$A$902,AD902,$A$1=$A$903,AD903,$A$1=$A$904,AD904,$A$1=$A$905,AD905,$A$1=$A$906,AD906,$A$1=$A$907,AD907,$A$1=$A$908,AD908,$A$1=$A$909,AD909,$A$1=$A$910,AD910,$A$1=$A$911,AD911,$A$1=$A$912,AD912,$A$1=$A$913,AD913,$A$1=$A$914,AD914,$A$1=$A$915,AD915,$A$1=$A$916,AD916,$A$1=$A$917,AD917,$A$1=$A$918,AD918,$A$1=$A$919,AD919,$A$1=$A$920,AD920,$A$1=$A$921,AD921,$A$1=$A$922,AD922,$A$1=$A$923,AD923,$A$1=$A$924,AD924,$A$1=$A$925,AD925) -> 36.56497 | AE1: 37.85466 | AF1: 34.61195905 | AG1: 36.19257958 | AH1: =AH902 -> 0 | AI1: =AI902 -> 0 | AJ1: 0
A2: =A ->  | B2: =AH1 -> 0
B3: ÅRSNØGLETAL 2018
I4: Evt. sammenligning
B5: =A1 -> Retten i Roskilde | I5: =B35 -> Retten i Glostrup | L5: Datatabeller
D6: 2017 | E6: 2018 | F6: Gnst. BR 2018 | G6: 5. bedste 2018 | I6: =$D$6 -> 2017 | J6: =$E$6 -> 2018 | L6: KLIK PÅ PILENE FOR AT HOPPE TIL DATA:
B7: Samlet produktivitet, retten (indeks) | D7: =B1 -> 113.6459296 | E7: =C1 -> 110.6857997 | F7: =Produkt.SAML.!$E$6 -> 105.8836368 | G7: =LARGE($C$902:$C$925,5) -> 112.4553808 | I7: =IF($B$5=$I$5,"",C35) -> 99.49248491 | J7: =IF($B$5=$I$5,"",D35) -> 111.5108257 | M7: Produktivitet, samlet for retten
B8: Samlet produktivitet, jurister (indeks) | D8: =D1 -> 111.461 | E8: =E1 -> 106.004 | F8: =Produkt.JUR!$E$6 -> 104.5349607 | G8: =LARGE($E$902:$E$925,5) -> 115.751 | I8: =IF($B$5=$I$5,"",E35) -> 93.734 | J8: =IF($B$5=$I$5,"",F35) -> 105.456 | M8: Produktivitet, jurister
B9: Samlet produktivitet, kontorfunktionærer (indeks) | D9: =F1 -> 111.467 | E9: =G1 -> 110.642 | F9: =Produkt.KON!$E$6 -> 108.2306338 | G9: =LARGE($G$902:$G$925,5) -> 116.181 | I9: =IF($B$5=$I$5,"",G35) -> 103.48 | J9: =IF($B$5=$I$5,"",H35) -> 116.181 | M9: Produktivitet, kontor
B10: Årsværksandel til generel ledelse og administration (pct.) | D10: =H1*100 -> 13.49891535 | E10: =I1*100 -> 12.95498188 | F10: ='Generel ledelse_Adm.'!$J$14*100 -> 15.23494213 | I10: =IF($B$5=$I$5,"",I35*100) -> 15.62956998 | J10: =IF($B$5=$I$5,"",J35*100) -> 15.61684862 | M10: Årsværk, ledelse og administration
B11: Gnst. sagsbehandlingstid, domsmandssager (dage) | D11: =J1 -> 159 | E11: =K1 -> 124 | F11: =Sagstid.Straf!$G$6 -> 134.495307 | G11: =Sagstid.Straf!$G$7 -> 91 | I11: =IF($B$5=$I$5,"",K35) -> 135 | J11: =IF($B$5=$I$5,"",L35) -> 162 | M11: Aktivitet ved retten
B12: Gnst. sagsbehandlingstid, hovedforhandlet alm. civil sag (dage) | D12: =L1 -> 402.0520833 | E12: =M1 -> 482.82 | F12: =Sagstid.Civil!$E$6 -> 500.2284269 | G12: =Sagstid.Civil!$E$7 -> 421.733194 | I12: =IF($B$5=$I$5,"",M35) -> 563.9087452 | J12: =IF($B$5=$I$5,"",N35) -> 524.0676797 | M12: Målopfyldelse, straffesager
B13: Gnst. sagsbehandlingstid, almindelig fogedsag (dage) | D13: =N1 -> 59.55418394 | E13: =O1 -> 63.65395454 | F13: =Sagstid.Foged!$E$6 -> 82.74815948 | G13: =Sagstid.Foged!$E$7 -> 56.75281778 | I13: =IF($B$5=$I$5,"",O35) -> 116.5858821 | J13: =IF($B$5=$I$5,"",P35) -> 138.299454 | M13: Målopfyldelse, civile sager
B14: Gnst. sagsbehandlingstid, boudlæg (dage) | D14: =P1 -> 41.38 | E14: =Q1 -> 51.27 | F14: =Sagstid.Skifte!$E$6 -> 51.1015314 | G14: =Sagstid.Skifte!$E$7 -> 41.66 | I14: =IF($B$5=$I$5,"",Q35) -> 40.17 | J14: =IF($B$5=$I$5,"",R35) -> 41.66 | M14: Målopfyldelse, fogedsager
B15: Målopfyldelse, voldssager 37-dages frist (procent) | D15: =R1 -> 28.57142857 | E15: =S1 -> 67.70833333 | F15: =Målopf.Straf!$K$9 -> 56.63176265 | G15: =Målopf.Straf!$K$10 -> 71.08433735 | I15: =IF($B$5=$I$5,"",S35) -> 27.5 | J15: =IF($B$5=$I$5,"",T35) -> 38.31168831 | M15: Målopfyldelse, skiftesager
B16: Målopfyldelse, voldtægtssager 37-dages frist (procent) | D16: =IF(T1=999," -",T1) -> 0 | E16: =IF(U1=999," -",U1) -> 33.33333333 | F16: =Målopf.Straf!$M$9 -> 46.69603524 | G16: =Målopf.Straf!$M$10 -> 75 | I16: =IF($B$5=$I$5,"",U35) -> 16.66666667 | J16: =IF($B$5=$I$5,"",V35) -> 30 | M16: Gnst. Sagsbehandlingstid, straffesager
B17: Gnst. sygefravær pr. medarbejder (dage pr. år) | D17: =V1 -> 9.679845664 | E17: =W1 -> 11.85945551 | F17: ='HR-nøgletal_lønsum'!$E$6 -> 9.764627718 | G17: ='HR-nøgletal_lønsum'!$E$7 -> 6.637582669 | I17: =IF($B$5=$I$5,"",W35) -> 10.93379319 | J17: =IF($B$5=$I$5,"",X35) -> 13.04044338 | M17: Gnst. Sagsbehandlingstid, civile sager
B18: Personaleomsætningsprocent (procent) | D18: =X1 -> 4.224425252 | E18: =Y1 -> 5.984630325 | F18: ='HR-nøgletal_lønsum'!$G$6 -> 10.33152447 | I18: =IF($B$5=$I$5,"",Y35) -> 10.66483288 | J18: =IF($B$5=$I$5,"",Z35) -> 10.35412234 | M18: Gnst. Sagsbehandlingstid, fogedsager
B19: Samlet årsværksforbrug, retten (årsværk) | D19: =Z1 -> 62.67419 | E19: =AA1 -> 63.27168 | F19: =Årsværk_Pers.kat!$O$8/24 -> 58.29511042 | I19: =IF($B$5=$I$5,"",AA35) -> 97.06123 | J19: =IF($B$5=$I$5,"",AB35) -> 94.55747 | M19: Gnst. Sagsbehandlingstid, skiftesager
B20: Samlet årsværksforbrug, jurister (årsværk) | D20: =AB1 -> 18.99181 | E20: =AC1 -> 19.60239 | F20: =Årsværk_Pers.kat!$J$8/24 -> 17.01989333 | I20: =IF($B$5=$I$5,"",AC35) -> 29.82185 | J20: =IF($B$5=$I$5,"",AD35) -> 29.4054 | M20: HR-nøgletal
B21: Samlet årsværksforbrug, kontorfunktionærer (årsværk) | D21: =AD1 -> 36.56497 | E21: =AE1 -> 37.85466 | F21: =Årsværk_Pers.kat!$K$8/24 -> 32.98808042 | I21: =IF($B$5=$I$5,"",AE35) -> 56.2308 | J21: =IF($B$5=$I$5,"",AF35) -> 54.92075 | M21: Årsværksforbrug, personalekategorier
B22: Samlet lønsumsforbrug (mio. kr.) | D22: =AF1 -> 34.61195905 | E22: =AG1 -> 36.19257958 | F22: ='HR-nøgletal_lønsum'!$I$6 -> 32.38383151 | I22: =IF($B$5=$I$5,"",AG35) -> 51.70124728 | J22: =IF($B$5=$I$5,"",AH35) -> 52.57323579 | M22: Årsværksforbrug, sagsområder
B24: Noter:
B25: 1) Ved beregningen af indeks for produktivitet samlet for retten, for jurister og kontor er indeks 100 lig gennemsnittet ved byretterne i 2012.
B27: 2) Årsværksandel til generel ledelse og administration er samlet for retten og inkluderer alle personalegrupper.
B28: 3) Den gennemsnitlige sagsbehandlingstid for en hovedforhandlet almindelig civil sag inkluderer sagstypen almindelige sager. Boligretssager og småsager indgår ikke.
B29: 4) Ansatte under socialt kapitel indgår ikke i beregningen af det gennemsnitlige sygefravær pr. medarbejder (årsværk).
B30: 5) Lønsumsforbruget inkluderer egentlig løn, over- og merarbejde, stævningsmænd, refusioner og pensionsbidrag.
B32: KLIK FOR AT AKTIVERE SAMMENLIGNING:
B34: =A926 -> 0 | C34: =B925 -> 60.31573545 | D34: 64.68182868 | E34: 62.171 | F34: 65.668 | G34: 66.594 | H34: 72.646 | I34: 0.3694017284 | J34: 0.276770563 | K34: 52 | L34: 41 | M34: 274.125 | N34: 414.2488235 | O34: 31.61662631 | P34: 26.96698523 | Q34: 27.79 | R34: 23.76 | S34: 100 | T34: 89.47368421 | U34: - | V34: 66.66666667 | W34: 3.273421734 | X34: 11.35858 | Y34: 11.35838021 | Z34: 10.3713778 | AA34: 14.0448 | AB34: 13.85144 | AC34: 3.23784 | AD34: 3.38544 | AE34: 7.08914 | AF34: 6.97781 | AG34: 8.75901086
B35: =A922 -> Retten i Glostrup | C35: =B922 -> 99.49248491 | D35: 111.5108257 | E35: 93.734 | F35: 105.456 | G35: 103.48 | H35: 116.181 | I35: 0.1562956998 | J35: 0.1561684862 | K35: 135 | L35: 162 | M35: 563.9087452 | N35: 524.0676797 | O35: 116.5858821 | P35: 138.299454 | Q35: 40.17 | R35: 41.66 | S35: 27.5 | T35: 38.31168831 | U35: 16.66666667 | V35: 30 | W35: 10.93379319 | X35: 13.04044338 | Y35: 10.66483288 | Z35: 10.35412234 | AA35: 97.06123 | AB35: 94.55747 | AC35: 29.82185 | AD35: 29.4054 | AE35: 56.2308 | AF35: 54.92075 | AG35: 51.70124728 | AH35: 52.57323579 | AI35: 0
B900: Samlet produktivitet, retten | D900: Samlet produktivitet, jurister | F900: Samlet produktivitet, kontor | H900: ÅRVK ledelse og adm. (andel) | J900: Sagstider domsmandssager | L900: Sagstider hfh. alm. Civil | N900: Sagstid alm. fogedsag | P900: Sagstider boudlæg | R900: Målopfyldelse vold | T900: Målopfyldelse voldtægt | V900: Sygefravær | X900: Personaleomsætning | Z900: Årsværk retten | AB900: Årsværk jurist | AD900: Årsværk kontor | AF900: Samlet lønsum
A901: Ret | B901: =$D$6 -> 2017 | C901: =$E$6 -> 2018 | D901: =$D$6 -> 2017 | E901: =$E$6 -> 2018 | F901: =$D$6 -> 2017 | G901: =$E$6 -> 2018 | H901: =$D$6 -> 2017 | I901: =$E$6 -> 2018 | J901: =$D$6 -> 2017 | K901: =$E$6 -> 2018 | L901: =$D$6 -> 2017 | M901: =$E$6 -> 2018 | N901: =$D$6 -> 2017 | O901: =$E$6 -> 2018 | P901: =$D$6 -> 2017 | Q901: =$E$6 -> 2018 | R901: =$D$6 -> 2017 | S901: =$E$6 -> 2018 | T901: =$D$6 -> 2017 | U901: =$E$6 -> 2018 | V901: =$D$6 -> 2017 | W901: =$E$6 -> 2018 | X901: =$D$6 -> 2017 | Y901: =$E$6 -> 2018 | Z901: =$D$6 -> 2017 | AA901: =$E$6 -> 2018 | AB901: =$D$6 -> 2017 | AC901: =$E$6 -> 2018 | AD901: =$D$6 -> 2017 | AE901: =$E$6 -> 2018 | AF901: =$D$6 -> 2017 | AG901: =$E$6 -> 2018
A902: Retten i Hjørring | B902: 102.3501558 | C902: 102.20145 | D902: 108.38 | E902: 103.477 | F902: 98.993 | G902: 103.54 | H902: 0.1309276329 | I902: 0.1289432339 | J902: 101 | K902: 107 | L902: 340.4950495 | M902: 483.197134 | N902: 55.54402808 | O902: 56.75281778 | P902: 53.06 | Q902: 55.55 | R902: 34.61538462 | S902: 56.75675676 | T902: 20 | U902: 20 | V902: 5.046419979 | W902: 5.730838319 | X902: 2.010494068 | Y902: 10.15364941 | Z902: 48.59899 | AA902: 47.45743 | AB902: 12.0152 | AC902: 12.88924 | AD902: 28.8538 | AE902: 26.81338 | AF902: 23.62848272 | AG902: 24.63338445
A903: Retten i Aalborg | B903: 100.2049531 | C903: 115.8585436 | D903: 97.792 | E903: 121.721 | F903: 101.499 | G903: 107.735 | H903: 0.1618874542 | I903: 0.109728511 | J903: 118 | K903: 142 | L903: 416.1111111 | M903: 500.4864583 | N903: 56.32976967 | O903: 64.98275331 | P903: 41.52 | Q903: 51.77 | R903: 29.16666667 | S903: 47.95918367 | T903: 0 | U903: 21.42857143 | V903: 6.76901361 | W903: 6.501520143 | X903: 11.8338101 | Y903: 12.11743046 | Z903: 70.80056 | AA903: 70.94727 | AB903: 20.04874 | AC903: 19.47866 | AD903: 40.77501 | AE903: 41.1891 | AF903: 36.85092626 | AG903: 37.55113361
A904: Retten i Randers | B904: 97.57627318 | C904: 104.2428615 | D904: 94.751 | E904: 101.787 | F904: 109.378 | G904: 107.38 | H904: 0.1993317086 | I904: 0.1248461076 | J904: 127 | K904: 139 | L904: 468.5813953 | M904: 505.0009714 | N904: 69.43215259 | O904: 114.9492871 | P904: 48.66 | Q904: 55.88 | R904: 42.85714286 | S904: 38.57142857 | T904: 33.33333333 | U904: 100 | V904: 3.939503049 | W904: 10.27738974 | X904: 3.782834789 | Y904: 5.51325207 | Z904: 46.18983 | AA904: 45.91017 | AB904: 12.6618 | AC904: 12.61336 | AD904: 23.96233 | AE904: 26.26789 | AF904: 23.9664546 | AG904: 25.69024243
A905: Retten i Århus | B905: 94.52024098 | C905: 111.8712875 | D905: 92.282 | E905: 114.932 | F905: 96.562 | G905: 110.276 | H905: 0.1313505977 | I905: 0.134367586 | J905: 143 | K905: 222 | L905: 446.1372549 | M905: 608.8778621 | N905: 119.6671426 | O905: 105.2783143 | P905: 65.33 | Q905: 71.46 | R905: 32.43243243 | S905: 61.81818182 | T905: 23.07692308 | U905: 0 | V905: 13.80442757 | W905: 16.58179415 | X905: 15.84281489 | Y905: 15.63153285 | Z905: 77.28388 | AA905: 76.13153 | AB905: 23.41791 | AC905: 22.51301 | AD905: 44.89386 | AE905: 43.37522 | AF905: 42.09587755 | AG905: 42.70973142
A906: Retten i Viborg | B906: 101.3301677 | C906: 104.5001039 | D906: 94.035 | E906: 104.077 | F906: 114.767 | G906: 109.353 | H906: 0.1507946121 | I906: 0.1487838925 | J906: 130 | K906: 147 | L906: 410.9880952 | M906: 576.0712941 | N906: 64.63577023 | O906: 65.28458003 | P906: 44.11 | Q906: 51.84 | R906: 52.63157895 | S906: 23.75 | T906: 42.85714286 | U906: 31.25 | V906: 13.87929991 | W906: 13.37190019 | X906: 7.677776741 | Y906: 18.18388198 | Z906: 47.71591 | AA906: 49.86798 | AB906: 13.99941 | AC906: 13.51215 | AD906: 24.05859 | AE906: 26.61592 | AF906: 24.04642911 | AG906: 25.50201953
A907: Retten i Holstebro | B907: 108.2112909 | C907: 109.485698 | D907: 115.109 | E907: 116.448 | F907: 106.88 | G907: 105.19 | H907: 0.2112448284 | I907: 0.1885280229 | J907: 79 | K907: 79 | L907: 364.4 | M907: 508.6731 | N907: 39.40611054 | O907: 44.95084327 | P907: 54.34 | Q907: 62.87 | R907: 53.33333333 | S907: 71.08433735 | T907: 18.18181818 | U907: 87.5 | V907: 17.46607961 | W907: 5.036595683 | X907: 2.784766948 | Y907: 21.09435374 | Z907: 32.81738 | AA907: 33.99519 | AB907: 7.80251 | AC907: 8.34288 | AD907: 18.67454 | AE907: 19.72015 | AF907: 17.3063266 | AG907: 18.50196768
A908: Retten i Herning | B908: 103.081567 | C908: 110.1188962 | D908: 96.829 | E908: 105.911 | F908: 111.171 | G908: 113.659 | H908: 0.1271947787 | I908: 0.1120340411 | J908: 93 | K908: 106 | L908: 366.4532374 | M908: 449.2415065 | N908: 53.88521798 | O908: 61.50138013 | P908: 61.14 | Q908: 58.18 | R908: 36.36363636 | S908: 75.49019608 | T908: 0 | U908: 75 | V908: 5.333551361 | W908: 6.765788574 | X908: 7.422151788 | Y908: 5.628443228 | Z908: 37.21286 | AA908: 36.90117 | AB908: 11.25485 | AC908: 11.22781 | AD908: 20.28622 | AE908: 20.51485 | AF908: 18.99683136 | AG908: 19.68615417
A909: Retten i Horsens | B909: 96.06768543 | C909: 113.399628 | D909: 87.989 | E909: 109.803 | F909: 118.965 | G909: 132.325 | H909: 0.1704603932 | I909: 0.1794090346 | J909: 112 | K909: 119 | L909: 605.1505376 | M909: 494.4026486 | N909: 62.37785688 | O909: 72.30747078 | P909: 49.13 | Q909: 56.3 | R909: 27.02702703 | S909: 25.51020408 | T909: 75 | U909: 0 | V909: 16.0847127 | W909: 12.16187031 | X909: 13.01072294 | Y909: 20.93666005 | Z909: 43.93011 | AA909: 41.46281 | AB909: 12.80383 | AC909: 11.43512 | AD909: 18.51828 | AE909: 18.6924 | AF909: 22.19232827 | AG909: 21.3643055
A910: Retten i Kolding | B910: 110.2163317 | C910: 107.3166197 | D910: 108.33 | E910: 100.646 | F910: 110.954 | G910: 113.673 | H910: 0.1393581009 | I910: 0.1378757966 | J910: 129 | K910: 110 | L910: 386.1547619 | M910: 512.4342524 | N910: 50.80989608 | O910: 55.49160207 | P910: 35.62 | Q910: 41.46 | R910: 64.1025641 | S910: 62.99212598 | T910: 100 | U910: 28.57142857 | V910: 6.743828937 | W910: 8.391346653 | X910: 7.311036601 | Y910: 7.1205379 | Z910: 64.92623 | AA910: 65.64702 | AB910: 18.68477 | AC910: 19.64304 | AD910: 36.50969 | AE910: 36.20283 | AF910: 33.79555173 | AG910: 35.27060904
A911: Retten i Esbjerg | B911: 93.80590167 | C911: 105.1303341 | D911: 88.276 | E911: 102.641 | F911: 101.204 | G911: 108.223 | H911: 0.1311366779 | I911: 0.1225090472 | J911: 147 | K911: 159 | L911: 426.961039 | M911: 598.1892558 | N911: 48.83268127 | O911: 51.58879047 | P911: 54.39 | Q911: 64.94 | R911: 59.45945946 | S911: 68.23529412 | T911: 0 | U911: 100 | V911: 12.14565349 | W911: 18.08001835 | X911: 8.613865387 | Y911: 11.85258732 | Z911: 47.07367 | AA911: 44.84445 | AB911: 13.98469 | AC911: 13.10119 | AD911: 26.00158 | AE911: 25.97283 | AF911: 23.83790805 | AG911: 24.48879049
A912: Retten i Sønderborg | B912: 105.8769155 | C912: 112.4553808 | D912: 99.006 | E912: 114.763 | F912: 117.455 | G912: 113.229 | H912: 0.1697879508 | I912: 0.1834792851 | J912: 116 | K912: 131 | L912: 515.7769231 | M912: 566.124 | N912: 69.47039732 | O912: 73.1895683 | P912: 54.66 | Q912: 61.25 | R912: 25.53191489 | S912: 56.60377358 | T912: 44.44444444 | U912: 37.5 | V912: 16.85459244 | W912: 7.159856839 | X912: 11.04904839 | Y912: 19.34537469 | Z912: 52.97334 | AA912: 52.19876 | AB912: 16.56155 | AC912: 14.82488 | AD912: 29.24831 | AE912: 30.28972 | AF912: 30.5533366 | AG912: 30.6269769
A913: Retten i Odense | B913: 109.3484703 | C913: 112.2581009 | D913: 107.227 | E913: 115.751 | F913: 112.246 | G913: 109.119 | H913: 0.1308949304 | I913: 0.1350397946 | J913: 101 | K913: 89 | L913: 305.741784 | M913: 497.5723671 | N913: 85.39605376 | O913: 75.39640434 | P913: 45.82 | Q913: 47.46 | R913: 34.61538462 | S913: 69.84126984 | T913: 0 | U913: 58.62068966 | V913: 7.514927499 | W913: 8.051195822 | X913: 10.50482438 | Y913: 6.960939618 | Z913: 68.86796 | AA913: 69.05747 | AB913: 20.31509 | AC913: 18.98083 | AD913: 40.75796 | AE913: 42.31545 | AF913: 36.03915131 | AG913: 37.49781746
A914: Retten i Svendborg | B914: 105.3221331 | C914: 105.9425579 | D914: 102.165 | E914: 102.076 | F914: 114.872 | G914: 120.555 | H914: 0.1903312498 | I914: 0.1705051936 | J914: 170 | K914: 171 | L914: 352.6470588 | M914: 527.6092208 | N914: 104.4154221 | O914: 106.4509033 | P914: 51.29 | Q914: 54.89 | R914: 41.17647059 | S914: 63.33333333 | T914: 50 | U914: 36.36363636 | V914: 6.668163574 | W914: 9.574065984 | X914: 11.5170435 | Y914: 5.258645265 | Z914: 35.01362 | AA914: 35.81943 | AB914: 10.03782 | AC914: 10.38663 | AD914: 19.02911 | AE914: 19.45462 | AF914: 18.59404624 | AG914: 19.67457372
A915: Retten i Nykøbing F. | B915: 104.8087614 | C915: 113.3838113 | D915: 109.41 | E915: 119.249 | F915: 101.948 | G915: 107.594 | H915: 0.1811860244 | I915: 0.1780803521 | J915: 92 | K915: 77 | L915: 345.7209302 | M915: 417.4611316 | N915: 74.16159696 | O915: 75.24575477 | P915: 35.21 | Q915: 36.98 | R915: 27.02702703 | S915: 72.54901961 | T915: 45.45454545 | U915: 85.71428571 | V915: 4.636120841 | W915: 6.637582669 | X915: 8.51199942 | Y915: 8.994663904 | Z915: 46.88106 | AA915: 47.42799 | AB915: 12.63913 | AC915: 12.65826 | AD915: 29.83541 | AE915: 30.50041 | AF915: 24.65441364 | AG915: 25.1439967
A916: Retten i Næstved | B916: 119.3033442 | C916: 123.1712889 | D916: 124.543 | E916: 122.016 | F916: 114.601 | G916: 123.001 | H916: 0.1987183827 | I916: 0.1798204654 | J916: 132 | K916: 132 | L916: 364.6089109 | M916: 487.5312 | N916: 106.1116657 | O916: 93.02628621 | P916: 53.85 | Q916: 49.46 | R916: 52.17391304 | S916: 78.49462366 | T916: 40 | U916: 71.42857143 | V916: 9.149256557 | W916: 7.687176755 | X916: 23.3910835 | Y916: 4.710463807 | Z916: 59.13184 | AA916: 58.60537 | AB916: 14.97519 | AC916: 16.5859 | AD916: 34.13728 | AE916: 34.38183 | AF916: 28.7374546 | AG916: 30.50068776
A917: Retten i Holbæk | B917: 93.92639715 | C917: 99.79717626 | D917: 89.265 | E917: 100.885 | F917: 95.714 | G917: 100.592 | H917: 0.1519957668 | I917: 0.1586128563 | J917: 95 | K917: 130 | L917: 280.609375 | M917: 421.733194 | N917: 55.72065165 | O917: 61.83408135 | P917: 49.88 | Q917: 38.81 | R917: 50 | S917: 44.44444444 | T917: 0 | U917: 25 | V917: 8.902072309 | W917: 5.26581695 | X917: 10.1093667 | Y917: 14.8645185 | Z917: 43.8935 | AA917: 42.06539 | AB917: 12.33761 | AC917: 11.24375 | AD917: 25.08114 | AE917: 23.78151 | AF917: 21.96599279 | AG917: 21.74829751
A918: Retten i Roskilde | B918: 113.6459296 | C918: 110.6857997 | D918: 111.461 | E918: 106.004 | F918: 111.467 | G918: 110.642 | H918: 0.1349891535 | I918: 0.1295498188 | J918: 159 | K918: 124 | L918: 402.0520833 | M918: 482.82 | N918: 59.55418394 | O918: 63.65395454 | P918: 41.38 | Q918: 51.27 | R918: 28.57142857 | S918: 67.70833333 | T918: 0 | U918: 33.33333333 | V918: 9.679845664 | W918: 11.85945551 | X918: 4.224425252 | Y918: 5.984630325 | Z918: 62.67419 | AA918: 63.27168 | AB918: 18.99181 | AC918: 19.60239 | AD918: 36.56497 | AE918: 37.85466 | AF918: 34.61195905 | AG918: 36.19257958
A919: Retten i Hillerød | B919: 102.7593508 | C919: 104.6465332 | D919: 96.816 | E919: 101.38 | F919: 122.558 | G919: 125.719 | H919: 0.1792496578 | I919: 0.1673007554 | J919: 141 | K919: 115 | L919: 476.5819672 | M919: 407.7776066 | N919: 79.48039826 | O919: 64.04495934 | P919: 43.81 | Q919: 48.38 | R919: 33.33333333 | S919: 65.82278481 | T919: 0 | U919: 55.55555556 | V919: 6.369150131 | W919: 7.006743778 | X919: 7.978419258 | Y919: 7.881058842 | Z919: 46.44969 | AA919: 46.80683 | AB919: 14.08489 | AC919: 13.3924 | AD919: 21.79332 | AE919: 21.72779 | AF919: 24.11553388 | AG919: 24.90650638
A920: Retten i Helsingør | B920: 97.48044275 | C920: 103.0572938 | D920: 90.196 | E920: 95.505 | F920: 103.463 | G920: 112.412 | H920: 0.1672006624 | I920: 0.1649513473 | J920: 135 | K920: 102 | L920: 436.07 | M920: 426.864466 | N920: 94.51259237 | O920: 89.01426471 | P920: 53.88 | Q920: 51.31 | R920: 55 | S920: 53.62318841 | T920: 40 | U920: 66.66666667 | V920: 10.39178217 | W920: 11.29010186 | X920: 6.226884515 | Y920: 12.37549035 | Z920: 43.70089 | AA920: 43.30169 | AB920: 12.97882 | AC920: 12.74285 | AD920: 22.99761 | AE920: 23.03527 | AF920: 22.78695388 | AG920: 23.08191679
A921: Retten i Lyngby | B921: 104.1186623 | C921: 92.63409319 | D921: 98.652 | E921: 82.423 | F921: 108.93 | G921: 104.538 | H921: 0.1717978066 | I921: 0.1748479161 | J921: 117 | K921: 91 | L921: 445.9375 | M921: 365.2606941 | N921: 57.29748707 | O921: 63.52278313 | P921: 37.25 | Q921: 43.77 | R921: 76.92307692 | S921: 58.33333333 | T921: 100 | U921: 60 | V921: 9.655802825 | W921: 12.46306964 | X921: 10.89434771 | Y921: 14.24446056 | Z921: 54.1861 | AA921: 52.85992 | AB921: 17.84505 | AC921: 16.20458 | AD921: 30.00472 | AE921: 28.25268 | AF921: 29.41661831 | AG921: 30.56093986
A922: Retten i Glostrup | B922: 99.49248491 | C922: 111.5108257 | D922: 93.734 | E922: 105.456 | F922: 103.48 | G922: 116.181 | H922: 0.1562956998 | I922: 0.1561684862 | J922: 135 | K922: 162 | L922: 563.9087452 | M922: 524.0676797 | N922: 116.5858821 | O922: 138.299454 | P922: 40.17 | Q922: 41.66 | R922: 27.5 | S922: 38.31168831 | T922: 16.66666667 | U922: 30 | V922: 10.93379319 | W922: 13.04044338 | X922: 10.66483288 | Y922: 10.35412234 | Z922: 97.06123 | AA922: 94.55747 | AB922: 29.82185 | AC922: 29.4054 | AD922: 56.2308 | AE922: 54.92075 | AF922: 51.70124728 | AG922: 52.57323579
A923: Retten på Frederiksberg | B923: 101.2390041 | C923: 96.56725848 | D923: 98.479 | E923: 89.447 | F923: 107.917 | G923: 106.434 | H923: 0.1485984445 | I923: 0.1256400793 | J923: 149 | K923: 144 | L923: 660.3421053 | M923: 587.0411512 | N923: 102.9720144 | O923: 113.2241101 | P923: 50.24 | Q923: 46.08 | R923: 22.5 | S923: 52.17391304 | T923: 45.45454545 | U923: 38.46153846 | V923: 14.87865078 | W923: 13.12803276 | X923: 8.791300009 | Y923: 10.2057964 | Z923: 76.78293 | AA923: 77.90809 | AB923: 22.92363 | AC923: 24.80539 | AD923: 40.91034 | AE923: 41.52306 | AF923: 44.67166856 | AG923: 45.444564
A924: Københavns Byret | B924: 97.66119994 | C924: 95.3437124 | D924: 99.432 | E924: 97.864 | F924: 91.983 | G924: 90.612 | H924: 0.1782861169 | I924: 0.169346859 | J924: 128 | K924: 152 | L924: 488.9716312 | M924: 495.7333333 | N924: 88.04387145 | O924: 84.75326759 | P924: 42.31 | Q924: 54.98 | R924: 37.03703704 | S924: 49.47368421 | T924: 25 | U924: 28.57142857 | V924: 8.885792531 | W924: 7.053268655 | X924: 7.219406038 | Y924: 5.242178625 | Z924: 186.18414 | AA924: 188.1861 | AB924: 58.98521 | AC924: 59.50228 | AD924: 111.3889 | AE924: 111.3338 | AF924: 109.6134618 | AG924: 114.8730123
A925: Retten på Bornholm | B925: 60.31573545 | C925: 64.68182868 | D925: 62.171 | E925: 65.668 | F925: 66.594 | G925: 72.646 | H925: 0.3694017284 | I925: 0.276770563 | J925: 52 | K925: 41 | L925: 274.125 | M925: 414.2488235 | N925: 31.61662631 | O925: 26.96698523 | P925: 27.79 | Q925: 23.76 | R925: 100 | S925: 89.47368421 | T925: - | U925: 66.66666667 | V925: 3.273421734 | W925: 11.35858 | X925: 11.35838021 | Y925: 10.3713778 | Z925: 14.0448 | AA925: 13.85144 | AB925: 3.23784 | AC925: 3.38544 | AD925: 7.08914 | AE925: 6.97781 | AF925: 8.75901086 | AG925: 8.9885132

Sheet Produkt.SAML.
B2: PRODUKTIVITETSINDEKS SAMLET FOR RETTEN
D4: Samlet | F4: Retssager | H4: Straffesager | J4: Civile sager | L4: Fogedsager | N4: Skiftesager
D5: =Overblik!$D$6 -> 2017 | E5: =Overblik!$E$6 -> 2018 | F5: =Overblik!$D$6 -> 2017 | G5: =Overblik!$E$6 -> 2018 | H5: =Overblik!$D$6 -> 2017 | I5: =Overblik!$E$6 -> 2018 | J5: =Overblik!$D$6 -> 2017 | K5: =Overblik!$E$6 -> 2018 | L5: =Overblik!$D$6 -> 2017 | M5: =Overblik!$E$6 -> 2018 | N5: =Overblik!$D$6 -> 2017 | O5: =Overblik!$E$6 -> 2018
C6: SAMLET BYRETTERNE | D6: 101.8725556 | E6: 105.8836368 | F6: 98.2143479 | G6: 103.1594535 | H6: 94.5680084 | I6: 102.6789566 | J6: 102.7604907 | K6: 103.3774138 | L6: 105.9614104 | M6: 107.2423088 | N6: 114.4969262 | O6: 117.0582056
C7: 5. BEDSTE RET | D7: =LARGE(D9:D32,5) -> 108.2112909 | E7: =LARGE(E9:E32,5) -> 112.4553808 | F7: 103.2987214 | G7: 113.5103402 | H7: 100.8409392 | I7: 116.628359 | J7: 112.1092609 | K7: 117.0648117 | L7: 118.7201552 | M7: 119.5436893 | N7: 135.7425492 | O7: 134.7558872
B8: EID | C8: Ret
B9: 901 | C9: Retten i Hjørring | D9: 102.3501558 | E9: 102.20145 | F9: 89.72551568 | G9: 96.75767535 | H9: 80.54646306 | I9: 96.92185206 | J9: 99.86071644 | K9: 96.45907235 | L9: 115.6929616 | M9: 98.26845123 | N9: 138.6094189 | O9: 134.7558872
B10: 902 | C10: Retten i Aalborg | D10: 100.2049531 | E10: 115.8585436 | F10: 96.36421067 | G10: 123.8723884 | H10: 98.42596363 | I10: 119.4267107 | J10: 94.22485265 | K10: 129.3044753 | L10: 103.0704531 | M10: 89.86054509 | N10: 111.6556714 | O10: 117.8334141
B11: 903 | C11: Retten i Randers | D11: 97.57627318 | E11: 104.2428615 | F11: 85.49077048 | G11: 93.58989286 | H11: 88.57295091 | I11: 97.65453777 | J11: 82.59736371 | K11: 89.5154243 | L11: 111.946327 | M11: 117.5024026 | N11: 132.0144646 | O11: 129.9375981
B12: 904 | C12: Retten i Århus | D12: 94.52024098 | E12: 111.8712875 | F12: 87.40501283 | G12: 106.22841 | H12: 80.21431293 | I12: 98.17470683 | J12: 99.90368719 | K12: 119.8432296 | L12: 107.3861992 | M12: 128.0825591 | N12: 113.4011608 | O12: 123.0366126
B13: 905 | C13: Retten i Viborg | D13: 101.3301677 | E13: 104.5001039 | F13: 95.82119337 | G13: 100.9067301 | H13: 98.35182262 | I13: 98.76720363 | J13: 93.76048554 | K13: 103.2649908 | L13: 92.32467429 | M13: 96.80993069 | N13: 139.8731234 | O13: 134.3102756
B14: 906 | C14: Retten i Holstebro | D14: 108.2112909 | E14: 109.485698 | F14: 97.24872598 | G14: 114.6320693 | H14: 95.16200163 | I14: 115.2241202 | J14: 99.62192812 | K14: 113.2108317 | L14: 122.1553283 | M14: 105.6594336 | N14: 135.7425492 | O14: 101.8456985
B15: 907 | C15: Retten i Herning | D15: 103.081567 | E15: 110.1188962 | F15: 103.2344192 | G15: 113.5103402 | H15: 100.8409392 | I15: 116.628359 | J15: 106.0076202 | K15: 107.9637046 | L15: 99.23018532 | M15: 90.95962347 | N15: 110.0449873 | O15: 123.5796209
B16: 908 | C16: Retten i Horsens | D16: 96.06768543 | E16: 113.399628 | F16: 100.469381 | G16: 117.6613165 | H16: 88.79901334 | I16: 110.1225321 | J16: 111.7488478 | K16: 126.2227442 | L16: 82.45876106 | M16: 103.7068465 | N16: 100.4416175 | O16: 116.8977653
B17: 909 | C17: Retten i Kolding | D17: 110.2163317 | E17: 107.3166197 | F17: 103.2987214 | G17: 96.63817746 | H17: 99.58044849 | I17: 94.60294874 | J17: 107.6282047 | K17: 99.01189546 | L17: 120.5805045 | M17: 123.4352214 | N17: 137.0896629 | O17: 148.2563831
B18: 910 | C18: Retten i Esbjerg | D18: 93.80590167 | E18: 105.1303341 | F18: 87.41782327 | G18: 102.6504848 | H18: 81.12971675 | I18: 95.44758699 | J18: 99.15370043 | K18: 117.0648117 | L18: 98.79620093 | M18: 94.88922102 | N18: 116.6617158 | O18: 134.6249052
B19: 911 | C19: Retten i Sønderborg | D19: 105.8769155 | E19: 112.4553808 | F19: 99.10843877 | G19: 108.9311581 | H19: 112.1232184 | I19: 135.0005911 | J19: 82.3160523 | K19: 78.67665885 | L19: 118.7201552 | M19: 109.583648 | N19: 127.0897545 | O19: 141.2477254
B20: 912 | C20: Retten i Odense | D20: 109.3484703 | E20: 112.2581009 | F20: 105.0849843 | G20: 107.183718 | H20: 95.1821268 | I20: 101.7332279 | J20: 120.7012904 | K20: 115.3102506 | L20: 126.312511 | M20: 119.1530989 | N20: 112.3653845 | O20: 124.2126096
B21: 913 | C21: Retten i Svendborg | D21: 105.3221331 | E21: 105.9425579 | F21: 92.42906514 | G21: 89.21937199 | H21: 80.01263356 | I21: 79.92065717 | J21: 113.7828307 | K21: 103.2786573 | L21: 105.4080959 | M21: 116.4736209 | N21: 160.9643934 | O21: 171.7227105
B22: 914 | C22: Retten i Nykøbing F. | D22: 104.8087614 | E22: 113.3838113 | F22: 101.0780191 | G22: 111.5261696 | H22: 94.39126335 | I22: 111.3097324 | J22: 112.1092609 | K22: 110.9327269 | L22: 109.4151105 | M22: 118.7929116 | N22: 114.4357558 | O22: 114.7257743
B23: 915 | C23: Retten i Næstved | D23: 119.3033442 | E23: 123.1712889 | F23: 119.4419677 | G23: 125.228349 | H23: 114.2586875 | I23: 121.4107693 | J23: 126.4980824 | K23: 130.9563897 | L23: 115.8929993 | M23: 112.7758329 | N23: 124.7335327 | O23: 131.7836322
B24: 916 | C24: Retten i Holbæk | D24: 93.92639715 | E24: 99.79717626 | F24: 88.9739072 | G24: 98.99103851 | H24: 77.48123223 | I24: 92.09840899 | J24: 102.1197314 | K24: 108.2476008 | L24: 95.7294427 | M24: 95.84361044 | N24: 110.8698545 | O24: 111.8731401
B25: 917 | C25: Retten i Roskilde | D25: 113.6459296 | E25: 110.6857997 | F25: 107.6115951 | G25: 106.3254856 | H25: 97.23286953 | I25: 100.3476242 | J25: 119.9129299 | K25: 114.2036366 | L25: 118.0781534 | M25: 121.0977878 | N25: 134.2611806 | O25: 114.9199617
B26: 918 | C26: Retten i Hillerød | D26: 102.7593508 | E26: 104.6465332 | F26: 96.43743641 | G26: 98.62894599 | H26: 91.17652533 | I26: 103.7162813 | J26: 103.3644964 | K26: 92.29897372 | L26: 119.444133 | M26: 113.8648808 | N26: 117.0824173 | O26: 123.5012267
B27: 919 | C27: Retten i Helsingør | D27: 97.48044275 | E27: 103.0572938 | F27: 92.59632887 | G27: 93.79264893 | H27: 85.77419099 | I27: 101.9273638 | J27: 99.56102073 | K27: 85.96789428 | L27: 88.09365275 | M27: 102.3230621 | N27: 131.0014749 | O27: 140.6074865
B28: 920 | C28: Retten i Lyngby | D28: 104.1186623 | E28: 92.63409319 | F28: 106.9737941 | G28: 88.70516108 | H28: 160.3456055 | I28: 130.8401207 | J28: 80.6825469 | K28: 67.83583379 | L28: 111.6644331 | M28: 119.5436893 | N28: 79.17212577 | O28: 78.26878717
B29: 921 | C29: Retten i Glostrup | D29: 99.49248491 | E29: 111.5108257 | F29: 97.09609047 | G29: 112.8459618 | H29: 89.00937361 | I29: 111.9532283 | J29: 108.2417371 | K29: 113.5627273 | L29: 96.94134408 | M29: 106.736835 | N29: 123.0845095 | O29: 110.2137249
B30: 922 | C30: Retten på Frederiksberg | D30: 101.2390041 | E30: 96.56725848 | F30: 100.4840015 | G30: 92.19331441 | H30: 101.727255 | I30: 95.76426505 | J30: 97.71025487 | K30: 86.7182239 | L30: 116.3789485 | M30: 121.7122747 | N30: 78.60446373 | O30: 81.69409188
B31: 923 | C31: Københavns Byret | D31: 97.66119994 | E31: 95.3437124 | F31: 99.64721746 | G31: 97.17544047 | H31: 93.04122885 | I31: 92.3759253 | J31: 110.1505658 | K31: 105.081458 | L31: 92.92593024 | M31: 91.44525469 | N31: 62.78585896 | O31: 66.05508668
B32: 924 | C32: Retten på Bornholm | D32: 60.31573545 | E32: 64.68182868 | F32: 56.46574606 | G32: 69.61126425 | H32: 53.56393195 | I32: 66.34639219 | J32: 60.08122757 | K32: 73.58875828 | L32: 61.81659735 | M32: 51.08652207 | N32: 69.70252161 | O32: 69.03298449
B35: 1) Indeks 100 svarer til gennemsnittet ved byretterne i 2012.
B36: 2) "Retssager" svarer til den samlede produktivitet for straffesager og civile sager, "Fogedsager" til den samlede produktivitet for øvrige fogedsager og tvangsauktioner, "Skiftesager" til den samlede produktivitet for insolvensskifter og dødsboskifter.
B37: 3) Ved beregningen af den samlede produktivitet, samlet for retten, anvendes rettens samlede vægtede årsværksforbrug - dvs. også årsværksforbruget til generel ledelse og administration mv. Ved beregning af produktiviteten på de enkelte sagsområder er årsværkforbruget til generel ledelse og administration mv. nøgletalsfordelt, således at forskelle i andele i årsværksforbrug til generel ledelse og administration mv. ikke vanskeliggør en sammenligning af de enkelte retter.

Sheet Produkt.JUR
B2: PRODUKTIVITETSINDEKS JURISTER
D4: Samlet | F4: Retssager | H4: Straffesager | J4: Civile sager | L4: Fogedsager | N4: Skiftesager
D5: =Overblik!$D$6 -> 2017 | E5: =Overblik!$E$6 -> 2018 | F5: =Overblik!$D$6 -> 2017 | G5: =Overblik!$E$6 -> 2018 | H5: =Overblik!$D$6 -> 2017 | I5: =Overblik!$E$6 -> 2018 | J5: =Overblik!$D$6 -> 2017 | K5: =Overblik!$E$6 -> 2018 | L5: =Overblik!$D$6 -> 2017 | M5: =Overblik!$E$6 -> 2018 | N5: =Overblik!$D$6 -> 2017 | O5: =Overblik!$E$6 -> 2018
C6: SAMLET BYRETTERNE | D6: 99.52218115 | E6: 104.5349607 | F6: 96.01023468 | G6: 100.3390312 | H6: 92.60818869 | I6: 99.51305571 | J6: 99.92165478 | K6: 100.9681344 | L6: 110.3897073 | M6: 113.6800833 | N6: 117.0719242 | O6: 125.1043753
C7: 5. BEDSTE RET | D7: =LARGE(D9:D32,5) -> 108.399071 | E7: =LARGE(E9:E32,5) -> 115.7711637 | F7: 101.455187 | G7: 113.4670183 | H7: 99.55120057 | I7: 113.1266488 | J7: 117.6992318 | K7: 117.7996204 | L7: 139.6991109 | M7: 128.6508721 | N7: 163.5813931 | O7: 176.5893561
B8: EID | C8: Ret
B9: 901 | C9: Retten i Hjørring | D9: 108.399071 | E9: 103.4954791 | F9: 93.60658654 | G9: 93.59048325 | H9: 84.2056156 | I9: 94.06685613 | J9: 103.0103467 | K9: 93.01722719 | L9: 168.7143852 | M9: 119.9757527 | N9: 163.5813931 | O9: 176.5893561
B10: 902 | C10: Retten i Aalborg | D10: 97.80947336 | E10: 121.7419153 | F10: 90.87795529 | G10: 119.5785969 | H10: 90.22481124 | I10: 111.0019321 | J10: 91.49324506 | K10: 130.0070479 | L10: 102.1296846 | M10: 92.39586308 | N10: 117.8696306 | O10: 134.0761745
B11: 903 | C11: Retten i Randers | D11: 94.76717733 | E11: 101.8049645 | F11: 89.11552909 | G11: 94.29475864 | H11: 87.3009819 | I11: 94.52810768 | J11: 90.90660743 | K11: 94.00732313 | L11: 103.0973182 | M11: 121.2546341 | N11: 166.053476 | O11: 149.6839515
B12: 904 | C12: Retten i Århus | D12: 92.29793167 | E12: 114.9519043 | F12: 87.71276709 | G12: 110.3745396 | H12: 80.38733771 | I12: 107.7770474 | J12: 99.56888245 | K12: 113.475746 | L12: 93.25219511 | M12: 128.6508721 | N12: 104.7120666 | O12: 126.1417169
B13: 905 | C13: Retten i Viborg | D13: 94.05144784 | E13: 104.0952045 | F13: 93.93722756 | G13: 100.8765936 | H13: 98.54698058 | I13: 99.70803748 | J13: 90.59980684 | K13: 102.0051692 | L13: 94.89785151 | M13: 106.3821504 | N13: 105.2927475 | O13: 124.930907
B14: 906 | C14: Retten i Holstebro | D14: 115.12928 | E14: 116.4687438 | F14: 110.5224264 | G14: 119.1784 | H14: 101.0955692 | I14: 114.0558516 | J14: 122.6396413 | K14: 125.9949883 | L14: 164.5922858 | M14: 146.7412876 | N14: 149.1650492 | O14: 112.2365599
B15: 907 | C15: Retten i Herning | D15: 96.84573238 | E15: 105.9300289 | F15: 94.2635823 | G15: 100.9333923 | H15: 91.62950645 | I15: 105.3516377 | J15: 97.17588062 | K15: 94.18943943 | L15: 102.9617785 | M15: 101.0662009 | N15: 90.23435839 | O15: 106.9447268
B16: 908 | C16: Retten i Horsens | D16: 88.00474305 | E16: 109.8226506 | F16: 89.57172276 | G16: 105.032922 | H16: 79.1609592 | I16: 102.4493381 | J16: 98.7191452 | K16: 107.5064317 | L16: 65.06342533 | M16: 119.0126196 | N16: 84.9660848 | O16: 117.3917511
B17: 909 | C17: Retten i Kolding | D17: 108.3489567 | E17: 100.6640153 | F17: 96.65309814 | G17: 86.6414839 | H17: 92.45153621 | I17: 80.43634396 | J17: 101.2639094 | K17: 95.0746313 | L17: 141.8210259 | M17: 145.2703223 | N17: 217.6427734 | O17: 246.3115599
B18: 910 | C18: Retten i Esbjerg | D18: 88.29202164 | E18: 102.6591188 | F18: 82.08158044 | G18: 96.99444568 | H18: 72.80411574 | I18: 83.45679231 | J18: 100.6756485 | K18: 129.6557531 | L18: 86.83545328 | M18: 93.1091833 | N18: 154.6383017 | O18: 209.4527667
B19: 911 | C19: Retten i Sønderborg | D19: 99.02347384 | E19: 114.7832152 | F19: 87.83350477 | G19: 109.2608395 | H19: 104.3889045 | I19: 135.6269826 | J19: 69.74453591 | K19: 80.07069692 | L19: 139.6991109 | M19: 112.8879138 | N19: 173.8314773 | O19: 185.6712936
B20: 912 | C20: Retten i Odense | D20: 107.2459573 | E20: 115.7711637 | F20: 107.6498761 | G20: 115.2168068 | H20: 99.55120057 | I20: 113.6757177 | J20: 118.7089448 | K20: 116.732343 | L20: 111.4029301 | M20: 105.4292408 | N20: 132.2996063 | O20: 173.6360272
B21: 913 | C21: Retten i Svendborg | D21: 102.1832179 | E21: 102.0940186 | F21: 95.00667576 | G21: 89.85740533 | H21: 81.11087791 | I21: 84.29738847 | J21: 117.6992318 | K21: 96.62140341 | L21: 105.9392158 | M21: 117.4297771 | N21: 177.2619786 | O21: 213.5294821
B22: 914 | C22: Retten i Nykøbing F. | D22: 109.4292015 | E22: 119.2700223 | F22: 101.455187 | G22: 113.4670183 | H22: 95.08080303 | I22: 113.0932309 | J22: 110.966198 | K22: 113.0706115 | L22: 131.7218722 | M22: 140.9716622 | N22: 128.5544945 | O22: 133.2079609
B23: 915 | C23: Retten i Næstved | D23: 124.5648112 | E23: 122.0372471 | F23: 118.5962811 | G23: 119.6966479 | H23: 107.6491202 | I23: 113.1266488 | J23: 134.6079239 | K23: 130.1447352 | L23: 138.1566923 | M23: 130.1434065 | N23: 158.2960778 | O23: 130.0235389
B24: 916 | C24: Retten i Holbæk | D24: 89.28080444 | E24: 100.9025018 | F24: 90.88036719 | G24: 97.2820303 | H24: 75.31456885 | I24: 89.27706766 | J24: 109.0071712 | K24: 107.5302024 | L24: 95.98406155 | M24: 105.0511182 | N24: 115.2165482 | O24: 128.2776712
B25: 917 | C25: Retten i Roskilde | D25: 111.480319 | E25: 106.0226516 | F25: 105.7398809 | G25: 104.6182591 | H25: 90.40953925 | I25: 94.91957435 | J25: 124.4772958 | K25: 117.7996204 | L25: 108.1089448 | M25: 105.1164366 | N25: 137.1515058 | O25: 100.8773935
B26: 918 | C26: Retten i Hillerød | D26: 96.83268731 | E26: 101.3977163 | F26: 94.5382895 | G26: 96.7501938 | H26: 92.84193104 | I26: 102.1883243 | J26: 96.29256324 | K26: 90.44067985 | L26: 113.8763834 | M26: 102.5250331 | N26: 136.3821912 | O26: 146.4918432
B27: 919 | C27: Retten i Helsingør | D27: 90.21172702 | E27: 95.52199033 | F27: 84.32484758 | G27: 87.28538289 | H27: 78.08882127 | I27: 93.6966003 | J27: 90.3328542 | K27: 81.27217959 | L27: 79.42056874 | M27: 114.7070962 | N27: 149.878583 | O27: 144.878135
B28: 920 | C28: Retten i Lyngby | D28: 98.66900638 | E28: 82.4379848 | F28: 99.12684107 | G28: 79.77134095 | H28: 148.0404528 | I28: 118.5318494 | J28: 76.89363775 | K28: 62.07598597 | L28: 100.920797 | M28: 125.5241785 | N28: 63.0615448 | O28: 59.98620197
B29: 921 | C29: Retten i Glostrup | D29: 93.75095912 | E29: 105.4739813 | F29: 92.92174013 | G29: 106.7716669 | H29: 83.01359426 | I29: 102.7411716 | J29: 106.44294 | K29: 112.1199961 | L29: 99.05160121 | M29: 114.1748763 | N29: 85.49563853 | O29: 72.63045392
B30: 922 | C30: Retten på Frederiksberg | D30: 98.4958273 | E30: 89.46239244 | F30: 93.30901167 | G30: 81.81807625 | H30: 93.10684387 | I30: 81.55220034 | J30: 92.821488 | K30: 81.6835345 | L30: 159.7546686 | M30: 122.5741322 | N30: 49.00463999 | O30: 85.8830691
B31: 923 | C31: Københavns Byret | D31: 99.44971777 | E31: 97.88086279 | F31: 100.5127888 | G31: 97.36443905 | H31: 99.4309446 | I31: 94.8443411 | J31: 101.4556426 | K31: 100.701299 | L31: 115.3511426 | M31: 107.3758234 | N31: 35.11170383 | O31: 39.11179149
B32: 924 | C32: Retten på Bornholm | D32: 62.18197045 | E32: 65.67993888 | F32: 90.82584586 | G32: 98.53680955 | H32: 81.44832248 | I32: 88.64389115 | J32: 103.4888786 | K32: 111.3396037 | L32: 72.30033305 | M32: 39.06475735 | N32: 75.65929543 | O32: 64.86966929
B35: 1) Indeks 100 svarer til gennemsnittet ved byretterne i 2012.
B36: 2) "Retssager" svarer til den samlede produktivitet for straffesager og civile sager, "Fogedsager" til den samlede produktivitet for øvrige fogedsager og tvangsauktioner, "Skiftesager" til den samlede produktivitet for insolvensskifter og dødsboskifter.
B37: 3) Ved beregningen af den samlede produktivitet for juristerne anvendes det samlede årsværksforbrug for gruppen - dvs. også årsværksforbruget til generel ledelse og administration mv. Ved beregning af produktiviteten på de enkelte sagsområder er kun medtaget det direkte årsværksforbrug - dvs. der er ikke foretaget en nøgletalsfordeling af årsværkforbruget til generel ledelse og administration mv.

Sheet Produkt.KON
B2: PRODUKTIVITETSINDEKS KONTORPERSONALE
D4: Samlet | F4: Retssager | H4: Straffesager | J4: Civile sager | L4: Fogedsager | N4: Skiftesager
D5: =Overblik!$D$6 -> 2017 | E5: =Overblik!$E$6 -> 2018 | F5: =Overblik!$D$6 -> 2017 | G5: =Overblik!$E$6 -> 2018 | H5: =Overblik!$D$6 -> 2017 | I5: =Overblik!$E$6 -> 2018 | J5: =Overblik!$D$6 -> 2017 | K5: =Overblik!$E$6 -> 2018 | L5: =Overblik!$D$6 -> 2017 | M5: =Overblik!$E$6 -> 2018 | N5: =Overblik!$D$6 -> 2017 | O5: =Overblik!$E$6 -> 2018
C6: SAMLET BYRETTERNE | D6: 105.0201529 | E6: 108.2306338 | F6: 95.07893244 | G6: 98.47007509 | H6: 91.59652358 | I6: 99.33966142 | J6: 99.82011741 | K6: 96.43770678 | L6: 101.089978 | M6: 100.0819804 | N6: 108.3010018 | O6: 106.9159321
C7: 5. BEDSTE RET | D7: =LARGE(D9:D32,5) -> 114.7230739 | E7: =LARGE(E9:E32,5) -> 116.1365727 | F7: 112.4286419 | G7: 110.8363158 | H7: 111.0339166 | I7: 125.0440401 | J7: 109.8238317 | K7: 110.1576049 | L7: 115.1995122 | M7: 116.9832186 | N7: 120.0012652 | O7: 122.9544556
B8: EID | C8: Ret
B9: 901 | C9: Retten i Hjørring | D9: 98.95585953 | E9: 103.5013117 | F9: 74.69111477 | G9: 91.21600822 | H9: 67.58793335 | I9: 89.95685641 | J9: 83.97355938 | K9: 92.63350405 | L9: 93.71631759 | M9: 86.16208723 | N9: 117.8298942 | O9: 110.944831
B10: 902 | C10: Retten i Aalborg | D10: 101.4603922 | E10: 107.6940687 | F10: 100.6468456 | G10: 108.3089372 | H10: 111.0339166 | I10: 112.4054883 | J10: 90.20518553 | K10: 102.2422407 | L10: 115.118744 | M10: 88.43629216 | N10: 101.1270279 | O10: 95.83405178
B11: 903 | C11: Retten i Randers | D11: 109.3363577 | E11: 107.3399054 | F11: 79.51097445 | G11: 76.67767986 | H11: 90.73879299 | I11: 84.31128573 | J11: 69.76184558 | K11: 68.86865755 | L11: 127.9629155 | M11: 119.4150383 | N11: 117.7447173 | O11: 112.3524218
B12: 904 | C12: Retten i Århus | D12: 96.52580253 | E12: 110.2347028 | F12: 74.38114233 | G12: 88.51657696 | H12: 69.17594373 | I12: 78.57521648 | J12: 83.83030222 | K12: 110.1576049 | L12: 103.309996 | M12: 116.9832186 | N12: 105.3851704 | O12: 109.0128991
B13: 905 | C13: Retten i Viborg | D13: 114.7230739 | E13: 109.3113635 | F13: 94.17416374 | G13: 93.22191532 | H13: 94.04417535 | I13: 91.34163938 | J13: 94.42974185 | K13: 95.50884999 | L13: 98.12371793 | M13: 98.33418347 | N13: 167.6803551 | O13: 133.3256028
B14: 906 | C14: Retten i Holstebro | D14: 106.8397756 | E14: 105.150053 | F14: 77.66010267 | G14: 96.71664313 | H14: 85.81108086 | I14: 105.2474889 | J14: 68.55050282 | K14: 84.11936668 | L14: 105.4163185 | M14: 87.52067414 | N14: 126.3421275 | O14: 92.45733501
B15: 907 | C15: Retten i Herning | D15: 111.1293923 | E15: 113.6155767 | F15: 102.6059603 | G15: 110.8363158 | H15: 101.6022352 | I15: 109.3333549 | J15: 103.6279635 | K15: 112.2324007 | L15: 87.48640689 | M15: 76.01420661 | N15: 112.4067395 | O15: 117.878254
B16: 908 | C16: Retten i Horsens | D16: 118.9197831 | E16: 132.2744982 | F16: 132.5827938 | G16: 161.4127719 | H16: 129.4641148 | I16: 144.5963779 | J16: 136.1196619 | K16: 188.4783164 | L16: 102.1213535 | M16: 105.1744628 | N16: 112.7637336 | O16: 117.9625586
B17: 909 | C17: Retten i Kolding | D17: 110.9124862 | E17: 113.6302445 | F17: 99.0568799 | G17: 99.38567707 | H17: 95.40142768 | I17: 105.153362 | J17: 103.8593137 | K17: 92.45813097 | L17: 103.0255663 | M17: 104.1583226 | N17: 105.8062577 | O17: 108.0011062
B18: 910 | C18: Retten i Esbjerg | D18: 101.1660744 | E18: 108.182054 | F18: 84.0932744 | G18: 97.2600022 | H18: 84.23597478 | I18: 102.7792646 | J18: 82.78717449 | K18: 86.41930243 | L18: 95.68752801 | M18: 86.51694633 | N18: 94.52855191 | O18: 104.1305595
B19: 911 | C19: Retten i Sønderborg | D19: 117.4106787 | E19: 113.1859886 | F19: 116.2629137 | G19: 103.3405665 | H19: 113.3340749 | I19: 125.0440401 | J19: 120.4968007 | K19: 74.22887089 | L19: 106.0489739 | M19: 105.2520992 | N19: 104.9152262 | O19: 122.2176186
B20: 912 | C20: Retten i Odense | D20: 112.203187 | E20: 109.0774821 | F20: 87.52353209 | G20: 84.34841798 | H20: 77.46786619 | I20: 77.23560128 | J20: 107.0168424 | K20: 98.10885154 | L20: 126.5590087 | M20: 116.1326347 | N20: 95.95375024 | O20: 98.40971412
B21: 913 | C21: Retten i Svendborg | D21: 114.8286278 | E21: 120.5091304 | F21: 86.55179501 | G21: 86.78329173 | H21: 77.68576754 | I21: 74.58223758 | J21: 102.3767634 | K21: 111.5384293 | L21: 115.1995122 | M21: 120.3505845 | N21: 151.1914344 | O21: 153.8152316
B22: 914 | C22: Retten i Nykøbing F. | D22: 101.9089194 | E22: 107.5528437 | F22: 94.70527709 | G22: 99.54524515 | H22: 87.73336352 | I22: 99.4885509 | J22: 107.9968327 | K22: 98.15590604 | L22: 97.29009601 | M22: 103.992631 | N22: 104.9411445 | O22: 102.2323798
B23: 915 | C23: Retten i Næstved | D23: 114.5574039 | E23: 122.9541031 | F23: 118.4932091 | G23: 128.7009623 | H23: 124.4470932 | I23: 130.5897253 | J23: 109.8238317 | K23: 123.8332525 | L23: 104.8487269 | M23: 100.4934975 | N23: 107.0084545 | O23: 126.486322
B24: 916 | C24: Retten i Holbæk | D24: 95.67780927 | E24: 100.5534486 | F24: 82.20737662 | G24: 97.68259493 | H24: 78.53662274 | I24: 93.50693632 | J24: 86.4066859 | K24: 103.4877697 | L24: 92.63493122 | M24: 90.19301202 | N24: 105.5194488 | O24: 101.4903616
B25: 917 | C25: Retten i Roskilde | D25: 111.4244298 | E25: 110.6002832 | F25: 94.62924841 | G25: 92.1055584 | H25: 94.10033472 | I25: 92.65485811 | J25: 95.29567626 | K25: 91.05836777 | L25: 116.6184429 | M25: 118.9762663 | N25: 120.0012652 | O25: 113.0212433
B26: 918 | C26: Retten i Hillerød | D26: 122.511742 | E26: 125.6709954 | F26: 113.3077739 | G26: 112.5463279 | H26: 108.9724797 | I26: 135.8448866 | J26: 119.2550416 | K26: 89.34275089 | L26: 128.4763007 | M26: 125.8477724 | N26: 106.1591289 | O26: 110.3553135
B27: 919 | C27: Retten i Helsingør | D27: 103.4234795 | E27: 112.3695183 | F27: 97.0955364 | G27: 94.33898453 | H27: 88.30724962 | I27: 102.8458326 | J27: 107.5077592 | K27: 85.42596809 | L27: 85.13636073 | M27: 93.43415986 | N27: 111.8407017 | O27: 139.543664
B28: 920 | C28: Retten i Lyngby | D28: 108.8883863 | E28: 104.4987341 | F28: 112.4286419 | G28: 94.45432036 | H28: 167.5394626 | I28: 134.6681256 | J28: 80.26122894 | K28: 70.74211601 | L28: 109.9130341 | M28: 107.4116593 | N28: 83.29223052 | O28: 81.96115938
B29: 921 | C29: Retten i Glostrup | D29: 103.440719 | E29: 116.1365727 | F29: 92.80203235 | G29: 113.6279201 | H29: 88.46809719 | I29: 116.6532833 | J29: 98.77548524 | K29: 107.9362597 | L29: 88.37726795 | M29: 98.47811013 | N29: 133.3249389 | O29: 122.9544556
B30: 922 | C30: Retten på Frederiksberg | D30: 107.8763732 | E30: 106.393739 | F30: 101.892518 | G30: 95.44258778 | H30: 105.2288869 | I30: 107.7207179 | J30: 95.38424168 | K30: 79.03278923 | L30: 100.6663954 | M30: 110.7541938 | N30: 92.42397574 | O30: 77.22625384
B31: 923 | C31: Københavns Byret | D31: 91.94850593 | E31: 90.57796678 | F31: 97.76907942 | G31: 95.78953761 | H31: 83.42514221 | I31: 88.52747139 | J31: 128.6949587 | K31: 109.39717 | L31: 83.0322225 | M31: 81.9560536 | N31: 80.42251866 | O31: 79.94141941
B32: 924 | C32: Retten på Bornholm | D32: 66.56897221 | E32: 72.61904219 | F32: 56.32546152 | G32: 59.07536225 | H32: 57.8267277 | I32: 61.17322615 | J32: 54.46331935 | K32: 56.43698198 | L32: 86.42100832 | M32: 75.84359451 | N32: 105.5623925 | O32: 91.09909348
B35: 1) Indeks 100 svarer til gennemsnittet ved byretterne i 2012.
B36: 2) "Retssager" svarer til den samlede produktivitet for straffesager og civile sager, "Fogedsager" til den samlede produktivitet for øvrige fogedsager og tvangsauktioner, "Skiftesager" til den samlede produktivitet for insolvensskifter og dødsboskifter.
B37: 3) Ved beregningen af den samlede produktivitet for kontorpersonale anvendes det samlede årsværksforbrug for gruppen - dvs. også årsværksforbruget til generel ledelse og administration mv. Ved beregning af produktiviteten på de enkelte sagsområder er kun medtaget det direkte årsværksforbrug - dvs. der er ikke foretaget en nøgletalsfordeling af årsværkforbruget til generel ledelse og administration mv.

Sheet Generel ledelse_Adm.
B2: ÅRSVÆRKSFORBRUG ANVENDT TIL GENEREL LEDELSE OG ADMINISTRATION MV.
E6: Årsværk til generel ledelse og administration | H6: %-del til generel ledelse og administration
E7: =Overblik!$D$6-1 -> 2016 | F7: =Overblik!$D$6 -> 2017 | G7: =Overblik!$E$6 -> 2018 | H7: =Overblik!$D$6-1 -> 2016 | I7: =Overblik!$D$6 -> 2017 | J7: =Overblik!$E$6 -> 2018
C9: SAMLET BYRETTERNE | D9: Jurister | E9: 30.09684542 | F9: 30.86608241 | G9: 28.58120802 | H9: 0.0711262071 | I9: 0.07484334104 | J9: 0.06997010171
D10: Kontor | E10: 122.4381497 | F10: 107.3037173 | G10: 96.27090644 | H10: 0.1571490172 | I10: 0.1362408847 | J10: 0.121598096
D11: Elev | E11: 6.700152686 | F11: 6.869543021 | G11: 7.984551723 | H11: 0.08553245916 | I11: 0.09461694353 | J11: 0.120573605
D12: Fleks | E12: 16.38041499 | F12: 15.55364767 | G12: 14.63960951 | H12: 0.3836650654 | I12: 0.3486287013 | J12: 0.3375591496
D13: Øvrige | E13: 69.85096034 | F13: 68.11446017 | G13: 66.10997817 | H13: 0.8247183078 | I13: 0.7814420657 | J13: 0.740306093
C14: Samlet byretterne | D14: Samlet | E14: 245.4665232 | F14: 228.7074505 | G14: 213.5862539 | H14: 0.1743377226 | I14: 0.1628512618 | J14: 0.1523494213
D15: - ekskl. fleks og elever | E15: 222.3859555 | F15: 206.2842598 | G15: 190.9620926 | H15: 0.172798742 | I15: 0.160260966 | J15: 0.1480909204
B16: EID | C16: Ret
B17: 901 | C17: Retten i Hjørring | D17: Jurister | E17: 0.916099879 | F17: 0.8470651409 | G17: 0.9474311606 | H17: 0.06998316149 | I17: 0.07049946242 | J17: 0.07350558765
B18: 901 | C18: Retten i Hjørring | D18: Kontor | E18: 3.21182055 | F18: 2.723311864 | G18: 2.417068948 | H18: 0.1146549308 | I18: 0.0943831268 | J18: 0.09014413506
B19: 901 | C19: Retten i Hjørring | D19: Elev | E19: 0.236130532 | F19: 0.1286096358 | G19: 0.0508515866 | H19: 0.09017434203 | I19: 0.06562620144 | J19: 0.0275479496
B20: 901 | C20: Retten i Hjørring | D20: Fleks | E20: 0.01356630004 | F20: 0.01001772737 | G20: 0.006271080151 | H20: 0.003954463185 | I20: 0.003642200711 | J20: 0.002374365866
B21: 901 | C21: Retten i Hjørring | D21: Øvrige | E21: 2.664718388 | F21: 2.653946356 | G21: 2.697691724 | H21: 0.9268746894 | I21: 0.8788483858 | J21: 0.8255577968
B22: 901 | C22: Retten i Hjørring | D22: Samlet | E22: 7.042335649 | F22: 6.362950724 | G22: 6.119314499 | H22: 0.1407695713 | I22: 0.1309276329 | J22: 0.1289432339
D23: - ekskl. fleks og elever | E23: 6.792638817 | F23: 6.22432336 | G23: 6.062191832 | H23: 0.1544547856 | I23: 0.1280751588 | J23: 0.1410785168
B24: 902 | C24: Retten i Aalborg | D24: Jurister | E24: 0.7171857399 | F24: 1.078182721 | G24: 0.9484796083 | H24: 0.03407375413 | I24: 0.05377807888 | J24: 0.04869326783
B25: 902 | C25: Retten i Aalborg | D25: Kontor | E25: 9.090363109 | F25: 8.321737469 | G25: 4.715528113 | H25: 0.2224849403 | I25: 0.2040891583 | J25: 0.1144848543
B26: 902 | C26: Retten i Aalborg | D26: Elev | E26: 0.1486420445 | F26: 0.1697706444 | G26: 0.3872569671 | H26: 0.03637712963 | I26: 0.03888969826 | J26: 0.09729218966
B27: 902 | C27: Retten i Aalborg | D27: Fleks | E27: 0.3187081947 | F27: 0.734442288 | G27: 0.6715692859 | H27: 0.1783332091 | I27: 0.3467196133 | J27: 0.2387733988
B28: 902 | C28: Retten i Aalborg | D28: Øvrige | E28: 0.5598735184 | F28: 1.157589289 | G28: 1.062104321 | H28: 0.2126815394 | I28: 0.331392166 | J28: 0.3046264021
B29: 902 | C29: Retten i Aalborg | D29: Samlet | E29: 10.83477261 | F29: 11.46172241 | G29: 7.784938295 | H29: 0.1538765506 | I29: 0.1618874542 | J29: 0.109728511
D30: - ekskl. fleks og elever | E30: 10.36742237 | F30: 10.55750948 | G30: 6.726112042 | H30: 0.1606385485 | I30: 0.1491161861 | J30: 0.104842666
B31: 903 | C31: Retten i Randers | D31: Jurister | E31: 0.9052661961 | F31: 1.388581791 | G31: 1.15289616 | H31: 0.06420710142 | I31: 0.1096670134 | J31: 0.0914027793
B32: 903 | C32: Retten i Randers | D32: Kontor | E32: 2.228643395 | F32: 2.366435034 | G32: 2.065933683 | H32: 0.09406086762 | I32: 0.09875646624 | J32: 0.07864863463
B33: 903 | C33: Retten i Randers | D33: Elev | E33: 0.1032077728 | F33: 0.06129504806 | G33: 0.009475444306 | H33: 0.02734545756 | I33: 0.02104377598 | J33: 0.003466757026
B34: 903 | C34: Retten i Randers | D34: Fleks | E34: 1.696882529 | F34: 1.500784017 | G34: 1.296336599 | H34: 0.8179166162 | I34: 0.6747553117 | J34: 0.7612657452
B35: 903 | C35: Retten i Randers | D35: Øvrige | E35: 3.850932225 | F35: 3.890001847 | G35: 1.207064134 | H35: 0.9234871607 | I35: 0.8783481298 | J35: 0.4655410458
B36: 903 | C36: Retten i Randers | D36: Samlet | E36: 8.784932118 | F36: 9.207097736 | G36: 5.731706022 | H36: 0.1837404473 | I36: 0.1993317086 | J36: 0.1248461076
D37: - ekskl. fleks og elever | E37: 6.984841816 | F37: 7.645018671 | G37: 4.425893978 | H37: 0.1664532668 | I37: 0.165513029 | J37: 0.1067147251
B38: 904 | C38: Retten i Århus | D38: Jurister | E38: 1.226600071 | F38: 1.326319556 | G38: 1.502239191 | H38: 0.05022893235 | I38: 0.05663697382 | J38: 0.06672760287
B39: 904 | C39: Retten i Århus | D39: Kontor | E39: 4.506457794 | F39: 4.174571599 | G39: 3.738227275 | H39: 0.1093875573 | I39: 0.09298758446 | J39: 0.086183477
B40: 904 | C40: Retten i Århus | D40: Elev | E40: 0.09764551541 | F40: 0.06386853133 | G40: 0.1149930944 | H40: 0.04942174931 | I40: 0.03137700997 | J40: 0.06179567209
B41: 904 | C41: Retten i Århus | D41: Fleks | E41: 1.597962451 | F41: 0.993460951 | G41: 1.192348196 | H41: 0.4055083567 | I41: 0.4129750131 | J41: 0.4110156552
B42: 904 | C42: Retten i Århus | D42: Øvrige | E42: 4.429379856 | F42: 3.593063197 | G42: 3.681802152 | H42: 0.8214892841 | I42: 0.7930008799 | J42: 0.6716827546
B43: 904 | C43: Retten i Århus | D43: Samlet | E43: 11.85804569 | F43: 10.15128383 | G43: 10.22960991 | H43: 0.1541494376 | I43: 0.1313505977 | J43: 0.134367586
D44: - ekskl. fleks og elever | E44: 10.16243772 | F44: 9.093954351 | G44: 8.922268618 | H44: 0.1431142805 | I44: 0.1176694849 | J44: 0.1250148154
B45: 905 | C45: Retten i Viborg | D45: Jurister | E45: 1.38583974 | F45: 1.303051779 | G45: 1.069864392 | H45: 0.09899024986 | I45: 0.09307904966 | J45: 0.07917795404
B46: 905 | C46: Retten i Viborg | D46: Kontor | E46: 3.696431963 | F46: 3.04737348 | G46: 3.225842229 | H46: 0.1521115965 | I46: 0.1266646749 | J46: 0.1211997267
B47: 905 | C47: Retten i Viborg | D47: Elev | E47: 0.3290571106 | F47: 0.1899732155 | G47: 0.3037094349 | H47: 0.08106552125 | I47: 0.04710398941 | J47: 0.07648628222
B48: 905 | C48: Retten i Viborg | D48: Fleks | E48: 0.1142296454 | F48: 0.09496004875 | G48: 0.07242446112 | H48: 0.05711310929 | I48: 0.04747860002 | J48: 0.03621114422
B49: 905 | C49: Retten i Viborg | D49: Øvrige | E49: 2.39230565 | F49: 2.559943619 | G49: 2.747711657 | H49: 0.674112987 | I49: 0.7062322558 | J49: 0.729013886
B50: 905 | C50: Retten i Viborg | D50: Samlet | E50: 7.91786411 | F50: 7.195302142 | G50: 7.419552174 | H50: 0.1652702733 | I50: 0.1507946121 | J50: 0.1487838925
D51: - ekskl. fleks og elever | E51: 7.474577354 | F51: 6.910368877 | G51: 7.043418278 | H51: 0.1786066876 | I51: 0.1448231602 | J51: 0.1604527464
B52: 906 | C52: Retten i Holstebro | D52: Jurister | E52: 1.119924859 | F52: 0.931273504 | G52: 0.9085010394 | H52: 0.110960223 | I52: 0.1193556309 | J52: 0.1088953742
B53: 906 | C53: Retten i Holstebro | D53: Kontor | E53: 1.994423064 | F53: 1.598179102 | G53: 1.347691462 | H53: 0.1108472829 | I53: 0.08558064091 | J53: 0.06834083221
B54: 906 | C54: Retten i Holstebro | D54: Elev | E54: 0.1155743702 | F54: 0.04688204797 | G54: 0.0497470595 | H54: 0.06668880705 | I54: 0.02744272166 | J54: 0.0400901453
B55: 906 | C55: Retten i Holstebro | D55: Fleks | E55: 2.06642 | F55: 2.134659037 | G55: 2.014446397 | H55: 1 | I55: 0.9512910377 | J55: 0.7740071149
B56: 906 | C56: Retten i Holstebro | D56: Øvrige | E56: 2.32869344 | F56: 2.221508116 | G56: 2.08866 | H56: 0.9083365928 | I56: 0.930275885 | J56: 1
B57: 906 | C57: Retten i Holstebro | D57: Samlet | E57: 7.625035733 | F57: 6.932501807 | G57: 6.409045959 | H57: 0.2213445941 | I57: 0.2112448284 | J57: 0.1885280229
D58: - ekskl. fleks og elever | E58: 5.443041363 | F58: 4.750960722 | G58: 4.344852502 | H58: 0.1775913395 | I58: 0.1447696532 | J58: 0.1440998001
B59: 907 | C59: Retten i Herning | D59: Jurister | E59: 0.5070691256 | F59: 0.5870465448 | G59: 0.4191155065 | H59: 0.04672242422 | I59: 0.05215942859 | J59: 0.03732833976
B60: 907 | C60: Retten i Herning | D60: Kontor | E60: 2.41809235 | F60: 1.710624653 | G60: 1.465547179 | H60: 0.1225567437 | I60: 0.08432446521 | J60: 0.07143835703
B61: 907 | C61: Retten i Herning | D61: Elev | E61: 0.08135198007 | F61: 0.1751750325 | G61: 0.2494645112 | H61: 0.0284379868 | I61: 0.05794262217 | J61: 0.07898320733
B62: 907 | C62: Retten i Herning | D62: Fleks | E62: 0 | F62: 0.1081465398 | G62: 0 | H62: 0 | I62: 0.3092109786 | J62: -
B63: 907 | C63: Retten i Herning | D63: Øvrige | E63: 2.001580375 | F63: 2.152288722 | G63: 2.00006 | H63: 0.9976376523 | I63: 0.9362702648 | J63: 1
B64: 907 | C64: Retten i Herning | D64: Samlet | E64: 5.008093831 | F64: 4.733281492 | G64: 4.134187196 | H64: 0.1412712832 | I64: 0.1271947787 | J64: 0.1120340411
D65: - ekskl. fleks og elever | E65: 4.926741851 | F65: 4.449959919 | G65: 3.884722685 | H65: 0.1511756958 | I65: 0.1195812394 | J65: 0.1151277279
B66: 908 | C66: Retten i Horsens | D66: Jurister | E66: 0.8881616017 | F66: 0.6641910236 | G66: 0.6881712666 | H66: 0.06775804417 | I66: 0.05187440193 | J66: 0.0601805024
B67: 908 | C67: Retten i Horsens | D67: Kontor | E67: 3.391757973 | F67: 2.909736097 | G67: 2.849680359 | H67: 0.1685389962 | I67: 0.157127773 | J67: 0.1524512828
B68: 908 | C68: Retten i Horsens | D68: Elev | E68: 0.276862864 | F68: 0.4342581811 | G68: 0.5959390973 | H68: 0.08820238105 | I68: 0.112692178 | J68: 0.1936438984
B69: 908 | C69: Retten i Horsens | D69: Fleks | E69: 0.5591736611 | F69: 1.00801021 | G69: 0.8970889244 | H69: 0.2652991451 | I69: 0.2335362568 | J69: 0.2377944102
B70: 908 | C70: Retten i Horsens | D70: Øvrige | E70: 2.547194311 | F70: 2.472148312 | G70: 2.407923066 | H70: 0.6083883623 | I70: 0.5570134676 | J70: 0.5368537017
B71: 908 | C71: Retten i Horsens | D71: Samlet | E71: 7.663150411 | F71: 7.488343824 | G71: 7.438802713 | H71: 0.1796089045 | I71: 0.1704603932 | J71: 0.1794090346
D72: - ekskl. fleks og elever | E72: 6.827113886 | F72: 6.046075433 | G72: 5.945774691 | H72: 0.1824499757 | I72: 0.1376294171 | J72: 0.1717797995
B73: 909 | C73: Retten i Kolding | D73: Jurister | E73: 1.232693387 | F73: 1.190276446 | G73: 1.216881101 | H73: 0.06484586923 | I73: 0.06370302902 | J73: 0.06194973391
B74: 909 | C74: Retten i Kolding | D74: Kontor | E74: 3.92989339 | F74: 3.720763431 | G74: 3.332999538 | H74: 0.1075102278 | I74: 0.1019116687 | J74: 0.09206461312
B75: 909 | C75: Retten i Kolding | D75: Elev | E75: 0.01257587921 | F75: 0.05155026221 | G75: 0.495600075 | H75: 0.003605821442 | I75: 0.01544137615 | J75: 0.1451431736
B76: 909 | C76: Retten i Kolding | D76: Fleks | E76: 1.026636905 | F76: 1.00003 | G76: 1.00003 | H76: 0.3421997545 | I76: 0.3333333333 | J76: 0.3333333333
B77: 909 | C77: Retten i Kolding | D77: Øvrige | E77: 3.077060747 | F77: 3.085375969 | G77: 3.005624461 | H77: 0.9834855507 | I77: 0.9092740455 | J77: 0.8875312153
B78: 909 | C78: Retten i Kolding | D78: Samlet | E78: 9.278860309 | F78: 9.047996108 | G78: 9.051135175 | H78: 0.1423580005 | I78: 0.1393581009 | J78: 0.1378757966
D79: - ekskl. fleks og elever | E79: 8.239647525 | F79: 7.996415846 | G79: 7.5555051 | H79: 0.1403879392 | I79: 0.1231615611 | J79: 0.1275570284
B80: 910 | C80: Retten i Esbjerg | D80: Jurister | E80: 1.08004299 | F80: 1.027797878 | G80: 1.071889357 | H80: 0.07721393124 | I80: 0.07349450565 | J80: 0.0818161829
B81: 910 | C81: Retten i Esbjerg | D81: Kontor | E81: 2.482812146 | F81: 2.005595139 | G81: 1.790201993 | H81: 0.1023497347 | I81: 0.07713358722 | J81: 0.06892595044
B82: 910 | C82: Retten i Esbjerg | D82: Elev | E82: 0.1270756176 | F82: 0.1844939304 | G82: 0.06762991596 | H82: 0.03345468603 | I82: 0.05892906252 | J82: 0.03079083602
B83: 910 | C83: Retten i Esbjerg | D83: Fleks | E83: 0.01222191528 | F83: 0 | G83: 0.0001464451841 | H83: 0.01222154864 | I83: 0 | J83: 0.000165663847
B84: 910 | C84: Retten i Esbjerg | D84: Øvrige | E84: 2.79649 | F84: 2.955197754 | G84: 2.563983131 | H84: 1 | I84: 0.9995291043 | J84: 0.9531500368
B85: 910 | C85: Retten i Esbjerg | D85: Samlet | E85: 6.498642668 | F85: 6.173084702 | G85: 5.493850842 | H85: 0.141765627 | I85: 0.1311366779 | J85: 0.1225090472
D86: - ekskl. fleks og elever | E86: 6.359345135 | F86: 5.988590772 | G86: 5.426074481 | H86: 0.1549461954 | I86: 0.1272174184 | J86: 0.1299221958
B87: 911 | C87: Retten i Sønderborg | D87: Jurister | E87: 1.169493282 | F87: 1.053634876 | G87: 1.151366095 | H87: 0.07402057665 | I87: 0.06361933973 | J87: 0.07766444619
B88: 911 | C88: Retten i Sønderborg | D88: Kontor | E88: 3.54860732 | F88: 3.479651774 | G88: 3.854914582 | H88: 0.1191741623 | I88: 0.1189693276 | J88: 0.1272680824
B89: 911 | C89: Retten i Sønderborg | D89: Elev | E89: 0.3429214634 | F89: 0.1844223082 | G89: 0.1254916812 | H89: 0.1645954552 | I89: 0.08655357938 | J89: 0.05696580519
B90: 911 | C90: Retten i Sønderborg | D90: Fleks | E90: 1.00003 | F90: 1.00003 | G90: 1.00003 | H90: 1 | I90: 1 | J90: 1
B91: 911 | C91: Retten i Sønderborg | D91: Øvrige | E91: 2.912060253 | F91: 3.276495886 | G91: 3.445588812 | H91: 0.777370304 | I91: 0.8124779023 | J91: 0.8877637874
B92: 911 | C92: Retten i Sønderborg | D92: Samlet | E92: 8.973112319 | F92: 8.994234844 | G92: 9.57739117 | H92: 0.1712239433 | I92: 0.1697879508 | J92: 0.1834792851
D93: - ekskl. fleks og elever | E93: 7.630160855 | F93: 7.809782536 | G93: 8.451869489 | H93: 0.1547001467 | I93: 0.1474285468 | J93: 0.1725019183
B94: 912 | C94: Retten i Odense | D94: Jurister | E94: 2.42970382 | F94: 2.125780645 | G94: 1.981702385 | H94: 0.1084099242 | I94: 0.1046404739 | J94: 0.1044054652
B95: 912 | C95: Retten i Odense | D95: Kontor | E95: 3.114865263 | F95: 2.943860838 | G95: 2.831804277 | H95: 0.07776272487 | I95: 0.07222787496 | J95: 0.0669212847
B96: 912 | C96: Retten i Odense | D96: Elev | E96: 0.02899134568 | F96: 0.05906564626 | G96: 0.04319138845 | H96: 0.008496130376 | I96: 0.02413610968 | J96: 0.01619608233
B97: 912 | C97: Retten i Odense | D97: Fleks | E97: 0.4132317134 | F97: 0.4123504325 | G97: 0.4774976963 | H97: 0.3831256962 | I97: 0.3853058172 | J97: 0.4400778746
B98: 912 | C98: Retten i Odense | D98: Øvrige | E98: 4.177663291 | F98: 3.473409267 | G98: 3.991310814 | H98: 0.9894845859 | I98: 0.8120128363 | J98: 0.9954932719
B99: 912 | C99: Retten i Odense | D99: Samlet | E99: 10.16445543 | F99: 9.01446683 | G99: 9.325506562 | H99: 0.1427970106 | I99: 0.1308949304 | J99: 0.1350397946
D100: - ekskl. fleks og elever | E100: 9.722232373 | F100: 8.543050751 | G100: 8.804817477 | H100: 0.1457818715 | I100: 0.1240497141 | J100: 0.1348247223
B101: 913 | C101: Retten i Svendborg | D101: Jurister | E101: 1.075461367 | F101: 0.9424041336 | G101: 0.7999540838 | H101: 0.1096142283 | I101: 0.09388533901 | J101: 0.07701767404
B102: 913 | C102: Retten i Svendborg | D102: Kontor | E102: 3.153269147 | F102: 2.573637068 | G102: 2.166809319 | H102: 0.1569357463 | I102: 0.1352473693 | J102: 0.1113776223
B103: 913 | C103: Retten i Svendborg | D103: Elev | E103: 0.4863701067 | F103: 0.5989689905 | G103: 0.0690498637 | H103: 0.2431753263 | I103: 0.3001327821 | J103: 0.05590674664
B104: 913 | C104: Retten i Svendborg | D104: Fleks | E104: 0.6535200731 | F104: 0.5498822452 | G104: 0.4132303088 | H104: 0.6535004681 | I104: 0.5498657492 | J104: 0.4132179123
B105: 913 | C105: Retten i Svendborg | D105: Øvrige | E105: 2.429756022 | F105: 1.999293618 | G105: 2.65835527 | H105: 0.8761750298 | I105: 0.6775015819 | J105: 0.7102090989
B106: 913 | C106: Retten i Svendborg | D106: Samlet | E106: 7.798376715 | F106: 6.664186055 | G106: 6.107398845 | H106: 0.2185807879 | I106: 0.1903312498 | J106: 0.1705051936
D107: - ekskl. fleks og elever | E107: 6.658486536 | F107: 5.515334819 | G107: 5.625118673 | H107: 0.2037654541 | I107: 0.1575196972 | J107: 0.1674924592
B108: 914 | C108: Retten i Nykøbing F. | D108: Jurister | E108: 0.9324034298 | F108: 0.8339395876 | G108: 0.983215888 | H108: 0.06873936492 | I108: 0.06598077459 | J108: 0.07767385786
B109: 914 | C109: Retten i Nykøbing F. | D109: Kontor | E109: 3.909504956 | F109: 4.298112876 | G109: 3.988256714 | H109: 0.1370817235 | I109: 0.1440607947 | J109: 0.1307607575
B110: 914 | C110: Retten i Nykøbing F. | D110: Elev | E110: 0.09422752303 | F110: 0.1627612216 | G110: 0.5492903231 | H110: 0.08033721803 | I110: 0.1378713134 | J110: 0.4119502344
B111: 914 | C111: Retten i Nykøbing F. | D111: Fleks | E111: 0 | F111: 0.27914 | G111: 0.4551 | H111: 0 | I111: 1 | J111: 1
B112: 914 | C112: Retten i Nykøbing F. | D112: Øvrige | E112: 3.17061 | F112: 2.920239194 | G112: 2.470130231 | H112: 1 | I112: 0.9909697455 | J112: 0.9956870206
B113: 914 | C113: Retten i Nykøbing F. | D113: Samlet | E113: 8.106745909 | F113: 8.49419288 | G113: 8.445993157 | H113: 0.174611391 | I113: 0.1811860244 | J113: 0.1780803521
D114: - ekskl. fleks og elever | E114: 8.012518386 | F114: 8.052291658 | G114: 7.441602833 | H114: 0.1770547784 | I114: 0.1717600169 | J114: 0.1630518045
B115: 915 | C115: Retten i Næstved | D115: Jurister | E115: 1.601409025 | F115: 1.224263788 | G115: 1.305696534 | H115: 0.09306248615 | I115: 0.08175280502 | J115: 0.0787232851
B116: 915 | C116: Retten i Næstved | D116: Kontor | E116: 5.497724433 | F116: 5.336168368 | G116: 5.035027401 | H116: 0.1707016361 | I116: 0.1563149837 | J116: 0.1464444272
B117: 915 | C117: Retten i Næstved | D117: Elev | E117: 0.3273331001 | F117: 0.4301472193 | G117: 0.447190515 | H117: 0.07768139849 | I117: 0.131820436 | J117: 0.2240770231
B118: 915 | C118: Retten i Næstved | D118: Fleks | E118: 1.96631769 | F118: 1.755070123 | G118: 1.098232685 | H118: 0.6087180877 | I118: 0.4926125451 | J118: 0.4131971922
B119: 915 | C119: Retten i Næstved | D119: Øvrige | E119: 2.263468214 | F119: 3.004934111 | G119: 2.652297771 | H119: 0.9405800281 | I119: 0.9409650069 | J119: 0.8888248424
B120: 915 | C120: Retten i Næstved | D120: Samlet | E120: 11.65625246 | F120: 11.75058361 | G120: 10.53844491 | H120: 0.1966801074 | I120: 0.1987183827 | J120: 0.1798204654
D121: - ekskl. fleks og elever | E121: 9.362601673 | F121: 9.565366267 | G121: 8.993021707 | H121: 0.1806720304 | I121: 0.1617633794 | J121: 0.1666862837
B122: 916 | C122: Retten i Holbæk | D122: Jurister | E122: 1.051460973 | F122: 1.593452362 | G122: 0.9467990103 | H122: 0.08397781055 | I122: 0.1291540552 | J122: 0.08420669352
B123: 916 | C123: Retten i Holbæk | D123: Kontor | E123: 3.399462021 | F123: 3.419761221 | G123: 3.218122593 | H123: 0.1341753785 | I123: 0.136347918 | J123: 0.1353203641
B124: 916 | C124: Retten i Holbæk | D124: Elev | E124: 0.4111447985 | F124: 0.1896124706 | G124: 0.120300462 | H124: 0.131887508 | I124: 0.0721601998 | J124: 0.06014782508
B125: 916 | C125: Retten i Holbæk | D125: Fleks | E125: 0.6313291742 | F125: 0 | G125: 0.001369597657 | H125: 0.2381799015 | I125: 0 | J125: 0.0005849007115
B126: 916 | C126: Retten i Holbæk | D126: Øvrige | E126: 2.431918882 | F126: 1.468800137 | G126: 2.385519996 | H126: 0.9470531652 | I126: 0.9311703258 | J126: 0.8840301491
B127: 916 | C127: Retten i Holbæk | D127: Samlet | E127: 7.925315848 | F127: 6.671626191 | G127: 6.672111659 | H127: 0.1715712256 | I127: 0.1519957668 | J127: 0.1586128563
D128: - ekskl. fleks og elever | E128: 6.882841876 | F128: 6.48201372 | G128: 6.550441599 | H128: 0.1702639505 | I128: 0.1476759365 | J128: 0.1736425146
B129: 917 | C129: Retten i Roskilde | D129: Jurister | E129: 1.304585502 | F129: 1.150399745 | G129: 1.199777905 | H129: 0.07016069492 | I129: 0.06057346536 | J129: 0.06120569508
B130: 917 | C130: Retten i Roskilde | D130: Kontor | E130: 4.992296433 | F130: 5.052839787 | G130: 4.917069066 | H130: 0.1369416006 | I130: 0.1381879921 | J130: 0.1298933623
B131: 917 | C131: Retten i Roskilde | D131: Elev | E131: 0.2692628402 | F131: 0.09337966926 | G131: 0.02896862255 | H131: 0.06768731339 | I131: 0.02745782491 | J131: 0.01246160574
B132: 917 | C132: Retten i Roskilde | D132: Fleks | E132: 0.63256 | F132: 0 | G132: 0.4368218 | H132: 1 | I132: 0 | J132: 0.34
B133: 917 | C133: Retten i Roskilde | D133: Øvrige | E133: 2.3053 | F133: 2.163716655 | G133: 2.051019083 | H133: 1 | I133: 0.8748404562 | J133: 0.9300703704
B134: 917 | C134: Retten i Roskilde | D134: Samlet | E134: 9.504004775 | F134: 8.460335857 | G134: 8.633656477 | H134: 0.1533749785 | I134: 0.1349891535 | J134: 0.1364537259
D135: - ekskl. fleks og elever | E135: 8.602181935 | F135: 8.366956187 | G135: 8.167866054 | H135: 0.1499808288 | I135: 0.1334992313 | J135: 0.1369016748
B136: 918 | C136: Retten i Hillerød | D136: Jurister | E136: 1.084947268 | F136: 1.563523089 | G136: 1.125933998 | H136: 0.07947801782 | I136: 0.111007121 | J136: 0.08407260823
B137: 918 | C137: Retten i Hillerød | D137: Kontor | E137: 3.842103404 | F137: 2.829902157 | G137: 2.328194745 | H137: 0.1669320652 | I137: 0.129851815 | J137: 0.1071528556
B138: 918 | C138: Retten i Hillerød | D138: Elev | E138: 0.04048004867 | F138: 0.01913789493 | G138: 0.02290674225 | H138: 0.01025735819 | I138: 0.006958905554 | J138: 0.007822325738
B139: 918 | C139: Retten i Hillerød | D139: Fleks | E139: 1.028288541 | F139: 1.27348855 | G139: 1.280832638 | H139: 0.4335641966 | I139: 0.4631473755 | J139: 0.4535735138
B140: 918 | C140: Retten i Hillerød | D140: Øvrige | E140: 2.369828663 | F140: 2.640039345 | G140: 3.072949891 | H140: 0.5100475138 | I140: 0.5205422521 | J140: 0.5178206843
B141: 918 | C141: Retten i Hillerød | D141: Samlet | E141: 8.365647924 | F141: 8.326091036 | G141: 7.830818015 | H141: 0.1756333422 | I141: 0.1792496578 | J141: 0.1673007554
D142: - ekskl. fleks og elever | E142: 7.296879335 | F142: 7.033464591 | G142: 6.527078634 | H142: 0.1766235642 | I142: 0.1514211309 | J142: 0.1589853954
B143: 919 | C143: Retten i Helsingør | D143: Jurister | E143: 0.9459729892 | F143: 0.9159008137 | G143: 1.08689978 | H143: 0.06977313415 | I143: 0.07056888174 | J143: 0.08529487358
B144: 919 | C144: Retten i Helsingør | D144: Kontor | E144: 3.044827242 | F144: 2.957827742 | G144: 2.652640666 | H144: 0.1291838529 | I144: 0.1286145709 | J144: 0.1151556143
B145: 919 | C145: Retten i Helsingør | D145: Elev | E145: 0.2679323428 | F145: 0.08709938576 | G145: 0.1628429762 | H145: 0.08428593447 | I145: 0.03153478292 | J145: 0.06600395441
B146: 919 | C146: Retten i Helsingør | D146: Fleks | E146: 1.640880733 | F146: 1.537935171 | G146: 1.470594676 | H146: 0.3795505972 | I146: 0.4958937656 | J146: 0.572737308
B147: 919 | C147: Retten i Helsingør | D147: Øvrige | E147: 2.072315453 | F147: 1.808054642 | G147: 1.769694006 | H147: 0.963733178 | I147: 0.9714926262 | J147: 0.7110803081
B148: 919 | C148: Retten i Helsingør | D148: Samlet | E148: 7.97192876 | F148: 7.306817754 | G148: 7.142672105 | H148: 0.1704134393 | I148: 0.1672006624 | J148: 0.1649513473
D149: - ekskl. fleks og elever | E149: 6.063115684 | F149: 5.681783198 | G149: 5.509234452 | H149: 0.1543647155 | I149: 0.1300152742 | J149: 0.1439688141
B150: 920 | C150: Retten i Lyngby | D150: Jurister | E150: 0.9969027618 | F150: 1.068192647 | G150: 1.040394702 | H150: 0.05607571026 | I150: 0.05985932495 | J150: 0.06420374378
B151: 920 | C151: Retten i Lyngby | D151: Kontor | E151: 4.703035228 | F151: 4.473383298 | G151: 3.169298236 | H151: 0.1628084129 | I151: 0.1490893199 | J151: 0.1121769063
B152: 920 | C152: Retten i Lyngby | D152: Elev | E152: 0.5239602577 | F152: 0.7498136004 | G152: 2.134684104 | H152: 0.1689970867 | I152: 0.3146880877 | J152: 0.4598877802
B153: 920 | C153: Retten i Lyngby | D153: Fleks | E153: 0 | F153: 0.04389274465 | G153: 0.06708863806 | H153: 0 | I153: 0.0477178038 | J153: 0.07300893239
B154: 920 | C154: Retten i Lyngby | D154: Øvrige | E154: 3.100286659 | F154: 2.97377084 | G154: 2.830981178 | H154: 0.9705106791 | I154: 0.9802229041 | J154: 0.9961228636
B155: 920 | C155: Retten i Lyngby | D155: Samlet | E155: 9.324184907 | F155: 9.30905313 | G155: 9.242446858 | H155: 0.1760621233 | I155: 0.1717978066 | J155: 0.1748479161
D156: - ekskl. fleks og elever | E156: 8.800224649 | F156: 8.515346785 | G156: 7.040674117 | H156: 0.1765014505 | I156: 0.1571500216 | J156: 0.14885379
B157: 921 | C157: Retten i Glostrup | D157: Jurister | E157: 1.829884394 | F157: 2.10505699 | G157: 2.315447991 | H157: 0.05967058432 | I157: 0.07058773987 | J157: 0.07874227152
B158: 921 | C158: Retten i Glostrup | D158: Kontor | E158: 7.060785296 | F158: 7.207998896 | G158: 7.54733249 | H158: 0.1239264102 | I158: 0.1281859567 | J158: 0.1374222401
B159: 921 | C159: Retten i Glostrup | D159: Elev | E159: 0.2764162661 | F159: 0.7063918506 | G159: 0.5100308074 | H159: 0.0771493987 | I159: 0.1566022095 | J159: 0.1400929522
B160: 921 | C160: Retten i Glostrup | D160: Fleks | E160: 1.00003 | F160: 1.00003 | G160: 0.785513196 | H160: 0.5 | I160: 0.5 | J160: 0.4338725281
B161: 921 | C161: Retten i Glostrup | D161: Øvrige | E161: 3.950147963 | F161: 4.150775125 | G161: 3.608572463 | H161: 0.8858244166 | I161: 0.9228497448 | J161: 0.7549014711
B162: 921 | C162: Retten i Glostrup | D162: Samlet | E162: 14.11726392 | F162: 15.17025286 | G162: 14.76689695 | H162: 0.1445192868 | I162: 0.1562956998 | J162: 0.1561684862
D163: - ekskl. fleks og elever | E163: 12.84081765 | F163: 13.46383101 | G163: 13.47135294 | H163: 0.1394204999 | I163: 0.1387148196 | J163: 0.1511828782
B164: 922 | C164: Retten på Frederiksberg | D164: Jurister | E164: 1.84485761 | F164: 0.9223506766 | G164: 0.8231600449 | H164: 0.07961948914 | I164: 0.04023580369 | J164: 0.03318472497
B165: 922 | C165: Retten på Frederiksberg | D165: Kontor | E165: 6.12114608 | F165: 5.126606382 | G165: 4.280378162 | H165: 0.1422433356 | I165: 0.1253132187 | J165: 0.1030843623
B166: 922 | C166: Retten på Frederiksberg | D166: Elev | E166: 0.7052810482 | F166: 0.339337124 | G166: 0.1541509596 | H166: 0.1860899863 | I166: 0.0853951134 | J166: 0.04667818134
B167: 922 | C167: Retten på Frederiksberg | D167: Fleks | E167: 0.008425466268 | F167: 0.1173175813 | G167: 0.00263688487 | H167: 0.002808404504 | I167: 0.03898876418 | J167: 0.0008487517205
B168: 922 | C168: Retten på Frederiksberg | D168: Øvrige | E168: 4.201266193 | F168: 4.9042122 | G168: 4.528052556 | H168: 0.8373025843 | I168: 0.8219965405 | J168: 0.8757576832
B169: 922 | C169: Retten på Frederiksberg | D169: Samlet | E169: 12.8809764 | F169: 11.40982396 | G169: 9.788378606 | H169: 0.165116252 | I169: 0.1485984445 | J169: 0.1256400793
D170: - ekskl. fleks og elever | E170: 12.16726988 | F170: 10.95316926 | G170: 9.631590762 | H170: 0.1708371069 | I170: 0.1426510978 | J170: 0.1347096544
B171: 923 | C171: Københavns Byret | D171: Jurister | E171: 3.131295518 | F171: 3.981888792 | G171: 3.158767182 | H171: 0.05458763064 | I171: 0.06750656296 | J171: 0.05308648983
B172: 923 | C172: Københavns Byret | D172: Kontor | E172: 31.82381174 | F172: 23.01056656 | G172: 22.15463473 | H172: 0.2952026571 | I172: 0.2065786318 | J172: 0.198992891
B173: 923 | C173: Københavns Byret | D173: Elev | E173: 0.925887551 | F173: 1.12192377 | G173: 0.9262598759 | H173: 0.1264517842 | I173: 0.1696165785 | J173: 0.1524531948
B174: 923 | C174: Københavns Byret | D174: Fleks | E174: 0 | F174: 0 | G174: 0 | H174: 0 | I174: 0 | J174: -
B175: 923 | C175: Københavns Byret | D175: Øvrige | E175: 6.182050352 | F175: 5.079668232 | G175: 5.629063146 | H175: 0.6800965408 | I175: 0.5524044464 | J175: 0.4992818322
B176: 923 | C176: Københavns Byret | D176: Samlet | E176: 42.06304516 | F176: 33.19404735 | G176: 31.86872494 | H176: 0.2316527362 | I176: 0.1782861169 | J176: 0.169346859
D177: - ekskl. fleks og elever | E177: 41.13715761 | F177: 32.07212358 | G177: 30.94246506 | H177: 0.2360731743 | I177: 0.1722602343 | J177: 0.1699104777
B178: 924 | C178: Retten på Bornholm | D178: Jurister | E178: 0.7195838965 | F178: 1.041507875 | G178: 0.7366236389 | H178: 0.2153295239 | I178: 0.3216674929 | J178: 0.2175857906
B179: 924 | C179: Retten på Bornholm | D179: Kontor | E179: 1.276015415 | F179: 2.015072438 | G179: 1.17770268 | H179: 0.1912587726 | I179: 0.2842477984 | J179: 0.1687782672
B180: 924 | C180: Retten på Bornholm | D180: Elev | E180: 0.4718203074 | F180: 0.6216053409 | G180: 0.3655262158 | H180: 0.2478789908 | I180: 0.282118293 | J180: 0.1896128729
B181: 924 | C181: Retten på Bornholm | D181: Fleks | E181: 0 | F181: 0 | G181: 0 | H181: 0 | I181: 0 | J181: -
B182: 924 | C182: Retten på Bornholm | D182: Øvrige | E182: 1.636059882 | F182: 1.50998774 | G182: 1.553818312 | H182: 0.9932429662 | I182: 0.9970403775 | J182: 0.9957565254
B183: 924 | C183: Retten på Bornholm | D183: Samlet | E183: 4.103479501 | F183: 5.188173394 | G183: 3.833670848 | H183: 0.30252568 | I183: 0.3694017284 | J183: 0.276770563
D184: - ekskl. fleks og elever | E184: 3.631659194 | F184: 4.566568054 | G184: 3.468144632 | H184: 0.3114459578 | I184: 0.3251429749 | J184: 0.2908616906
B186: 1) I opgørelsen er årsværksforbrug under kategorierne "ledelse og administration", "hjælpefunktioner" og "transporttid" henført under generel ledelse og administration mv.

Sheet Aktivitet
B2: AKTIVITET VED RETTEN MÅLT SOM VÆGTEDE AFSLUTTEDE SAGER
D4: Samlet | F4: Straffesager | H4: Civile sager | J4: Øvrige Fogedsager | L4: Tvangsauktionssager | N4: Insolvensskiftesager | P4: Dødsboskiftesager | R4: Notarialforretninger
D5: =Overblik!$D$6 -> 2017 | E5: =Overblik!$E$6 -> 2018 | F5: =Overblik!$D$6 -> 2017 | G5: =Overblik!$E$6 -> 2018 | H5: =Overblik!$D$6 -> 2017 | I5: =Overblik!$E$6 -> 2018 | J5: =Overblik!$D$6 -> 2017 | K5: =Overblik!$E$6 -> 2018 | L5: =Overblik!$D$6 -> 2017 | M5: =Overblik!$E$6 -> 2018 | N5: =Overblik!$D$6 -> 2017 | O5: =Overblik!$E$6 -> 2018 | P5: =Overblik!$D$6 -> 2017 | Q5: =Overblik!$E$6 -> 2018 | R5: =Overblik!$D$6 -> 2017 | S5: =Overblik!$E$6 -> 2018
C7: SAMLET BYRETTERNE | D7: =SUM(D9:D32) -> 716276.7676 | E7: =SUM(E9:E32) -> 746501.5235 | F7: 174501.9075 | G7: 192725.3449 | H7: 51585.28687 | I7: 49931.23293 | J7: 332425.1998 | K7: 326056.2472 | L7: 8764.50688 | M7: 12631.95188 | N7: 14953.71172 | O7: =SUM(O9:O32) -> 15128.06065 | P7: 53201.63033 | Q7: =SUM(Q9:Q32) -> 54946.97498 | R7: =SUM(R9:R32) -> 80554.99961 | S7: =SUM(S9:S32) -> 97843.99974
B8: EID | C8: Ret
B9: 901 | C9: Retten i Hjørring | D9: 23615.728 | E9: 23692.47431 | F9: 4161.699219 | G9: 5103.22583 | H9: 1695.258179 | I9: 1629.252502 | J9: 13827.80908 | K9: 10684.4917 | L9: 486.8047638 | M9: 571.5749207 | N9: 724.143692 | O9: 660.6035461 | P9: 2192.915863 | Q9: 2226.498077 | R9: 1716.999939 | S9: 2044.999985
B10: 902 | C10: Retten i Aalborg | D10: 34934.54309 | E10: 40175.77402 | F10: 7330.288086 | G10: 9862.9646 | H10: 2467.396729 | I10: 2976.641724 | J10: 17943.50977 | K10: 15303.78271 | L10: 443.7893066 | M10: 526.6828156 | N10: 1078.292847 | O10: 1047.354309 | P10: 2919.64386 | Q10: 3021.052612 | R10: 3575.000015 | S10: 4427.999969
B11: 903 | C11: Retten i Randers | D11: 21713.92795 | E11: 23387.94635 | F11: 4278.299927 | G11: 4673.26709 | H11: 1511.667084 | I11: 1548.426605 | J11: 10669.49609 | K11: 11564.59058 | L11: 305.6825409 | M11: 539.0864105 | N11: 724.5636749 | O11: 730.0540619 | P11: 2228.511108 | Q11: 2343.029724 | R11: 2041.000008 | S11: 2593.000107
B12: 904 | C12: Retten i Århus | D12: 37632.03244 | E12: 43622.64002 | F12: 9651.52417 | G12: 11766.85059 | H12: 2366.866821 | I12: 2898.002686 | J12: 17328.76318 | K12: 16780.72754 | L12: 207.1888428 | M12: 440.2990417 | N12: 1233.332428 | O12: 1317.881683 | P12: 2568.61322 | Q12: 2711.540039 | R12: 5943.000122 | S12: 6175.999817
B13: 905 | C13: Retten i Viborg | D13: 23381.60826 | E13: 24919.59403 | F13: 4454.597412 | G13: 5306.53064 | H13: 1753.092773 | I13: 1719.894592 | J13: 11629.24658 | K13: 11326.56177 | L13: 286.1830597 | M13: 581.4272461 | N13: 801.4689941 | O13: 744.2971802 | P13: 2105.447906 | Q13: 2189.821594 | R13: 2532.999893 | S13: 3360.999924
B14: 906 | C14: Retten i Holstebro | D14: 16385.49788 | E14: 17463.86808 | F14: 3364.567871 | G14: 4253.936279 | H14: 1025.081726 | I14: 1051.227875 | J14: 8467.656738 | K14: 7248.803711 | L14: 295.1556244 | M14: 424.6714172 | N14: 514.7563934 | O14: 447.087265 | P14: 1758.696899 | Q14: 1746.374908 | R14: 1712.000023 | S14: 2311.999893
B15: 907 | C15: Retten i Herning | D15: 19241.98648 | E15: 20567.72308 | F15: 4437.78064 | G15: 5651.328857 | H15: 1330.362549 | I15: 1228.683136 | J15: 8934.416016 | K15: 7766.885498 | L15: 214.3439484 | M15: 391.9185333 | N15: 552.9547424 | O15: 547.7787628 | P15: 1620.269257 | Q15: 1618.967682 | R15: 2024.999962 | S15: 2756.000015
B16: 908 | C16: Retten i Horsens | D16: 19388.38326 | E16: 21761.00089 | F16: 3533.744629 | G16: 4566.937378 | H16: 1696.78772 | I16: 1653.536469 | J16: 8273.311523 | K16: 9641.987793 | L16: 315.2118835 | M16: 435.9309082 | N16: 642.3245087 | O16: 617.7525024 | P16: 1505.567719 | Q16: 1699.696411 | R16: 2208.999954 | S16: 3142.000031
B17: 909 | C17: Retten i Kolding | D17: 35213.28107 | E17: 35150.8707 | F17: 8225.305908 | G17: 8397.17749 | H17: 2652.802063 | I17: 2418.955505 | J17: 16288.91504 | K17: 15842.68555 | L17: 416.5181122 | M17: 571.4271698 | N17: 836.8509827 | O17: 939.9170532 | P17: 2464.22168 | Q17: 2509.425537 | R17: 4060 | S17: 5415.999969
B18: 910 | C18: Retten i Esbjerg | D18: 22098.84325 | E18: 23940.0552 | F18: 5657.842285 | G18: 6414.44458 | H18: 1244.859314 | I18: 1308.442627 | J18: 11488.60547 | K18: 10932.47876 | L18: 330.1954498 | M18: 420.449173 | N18: 591.7672577 | O18: 603.5010681 | P18: 1785.22464 | Q18: 2086.383972 | R18: 1913 | S18: 2425.999969
B19: 911 | C19: Retten i Sønderborg | D19: 29121.37608 | E19: 29793.69679 | F19: 7882.26416 | G19: 8710.662598 | H19: 1665.705139 | I19: 1606.355591 | J19: 14103.22559 | K19: 11804.07544 | L19: 477.1868896 | M19: 603.6824951 | N19: 660.7237091 | O19: 630.3104248 | P19: 2288.850525 | Q19: 2511.990662 | R19: 2356.999985 | S19: 2925.000015
B20: 912 | C20: Retten i Odense | D20: 38729.77985 | E20: 39219.30496 | F20: 9173.661133 | G20: 9479.505615 | H20: 2569.873962 | I20: 2411.559448 | J20: 20371.56152 | K20: 19259.48193 | L20: 414.9350586 | M20: 653.1593323 | N20: 927.2755432 | O20: 1124.505341 | P20: 3076.216003 | Q20: 3113.812195 | R20: 3447.999939 | S20: 4062.000107
B21: 913 | C21: Retten i Svendborg | D21: 18340.45818 | E21: 19376.21214 | F21: 3980.899902 | G21: 4057.502197 | H21: 1158.554535 | I21: 1218.523041 | J21: 8480.197754 | K21: 9985.297607 | L21: 316.6490021 | M21: 403.3958893 | N21: 574.9624634 | O21: 558.0394135 | P21: 2038.416138 | Q21: 1972.602539 | R21: 1281.999969 | S21: 1914.999985
B22: 914 | C22: Retten i Nykøbing F. | D22: 25116.74747 | E22: 27369.45543 | F22: 5885.332764 | G22: 6850.87207 | H22: 1432.59903 | I22: 1403.047852 | J22: 14347.50781 | K22: 14026.06006 | L22: 780.2901001 | M22: 1386.465942 | N22: 539.5553589 | O22: 547.3398285 | P22: 2169.487885 | Q22: 2244.337463 | R22: 1136.999977 | S22: 1528.000031
B23: 915 | C23: Retten i Næstved | D23: 33138.15842 | E23: 36032.49796 | F23: 7679.4729 | G23: 9209.815674 | H23: 2096.513916 | I23: 2023.118164 | J23: 18116.34229 | K23: 17443.00781 | L23: 639.309021 | M23: 1105.589294 | N23: 920.6660767 | O23: 963.3230286 | P23: 2459.489563 | Q23: 2622.270447 | R23: 2096.999985 | S23: 3135.999939
B24: 916 | C24: Retten i Holbæk | D24: 19915.47722 | E24: 20274.03245 | F24: 3451.251343 | G24: 4287.174316 | H24: 1440.346893 | I24: 1310.661346 | J24: 11940.73706 | K24: 10024.80371 | L24: 450.1526031 | M24: 705.4308167 | N24: 612.5605164 | O24: 590.5718079 | P24: 1738.810242 | Q24: 1726.103729 | R24: 1654.000053 | S24: 1766.000015
B25: 917 | C25: Retten i Roskilde | D25: 36178.67813 | E25: 36391.30832 | F25: 7587.369385 | G25: 8367.686035 | H25: 2837.005981 | I25: 2500.242493 | J25: 16104.32031 | K25: 16736.75732 | L25: 457.4829102 | M25: 483.1692047 | N25: 1208.985321 | O25: 1155.329742 | P25: 2671.967834 | Q25: 2713.036072 | R25: 3437.000046 | S25: 4547.999908
B26: 918 | C26: Retten i Hillerød | D26: 23486.99706 | E26: 23757.17099 | F26: 5578.423462 | G26: 5744.852295 | H26: 1658.713562 | I26: 1548.743835 | J26: 9482.888184 | K26: 9670.594727 | L26: 466.9835815 | M26: 560.8435364 | N26: 749.4545441 | O26: 761.7433319 | P26: 1721.39328 | Q26: 1802.917542 | R26: 2414.000031 | S26: 2957.999908
B27: 919 | C27: Retten i Helsingør | D27: 20496.59142 | E27: 21840.22375 | F27: 3917.590698 | G27: 4540.025513 | H27: 1634.508179 | I27: 1440.248566 | J27: 9307.266602 | K27: 10529.37402 | L27: 367.2591095 | M27: 505.4365845 | N27: 680.0417633 | O27: 745.9877319 | P27: 1731.751434 | Q27: 1979.370514 | R27: 1794.999939 | S27: 1901.000053
B28: 920 | C28: Retten i Lyngby | D28: 29635.20943 | E28: 24445.0528 | F28: 7376.595947 | G28: 5449.93335 | H28: 2683.794128 | I28: 2029.97699 | J28: 8598.964111 | K28: 8783.092773 | L28: 277.3869553 | M28: 215.4587402 | N28: 92.69241905 | O28: 73.7784462 | P28: 2464.64212 | Q28: 2393.009125 | R28: 9599.999878 | S28: 13573.00037
B29: 921 | C29: Retten i Glostrup | D29: 49521.99481 | E29: 54865.00673 | F29: 12324.59668 | G29: 15254.61475 | H29: 3818.697266 | I29: 3731.905518 | J29: 27324.58496 | K29: 30308.36621 | L29: 219.9447174 | M29: 428.7471313 | N29: 59.62018776 | O29: 67.80335045 | P29: 3807.779419 | Q29: 3531.277161 | R29: 4573.000092 | S29: 5444.999908
B30: 922 | C30: Retten på Frederiksberg | D30: 38884.15705 | E30: 38676.33454 | F30: 11887.15088 | G30: 11135.11108 | H30: 2532.234741 | I30: 2599.202271 | J30: 19236.4292 | K30: 20695.41211 | L30: 180.2424698 | M30: 227.8617172 | N30: 32.73265171 | O30: 25.71851158 | P30: 2512.882324 | Q30: 2499.74884 | R30: 4135.999878 | S30: 3354.000015
B31: 923 | C31: Københavns Byret | D31: 96339.96974 | E31: 95661.57089 | F31: 31963.63184 | G31: 32846.99609 | H31: 8087.431885 | I31: 7422.799805 | J31: 28486.51172 | K31: 27997.35547 | L31: 359.6644287 | M31: 395.2616577 | N31: 67.80335045 | O31: 77.15553665 | P31: 2788.440247 | Q31: 3073.324402 | R31: 14523.99994 | S31: 15595.99982
B32: 924 | C32: Retten på Bornholm | D32: 3765.34103 | E32: 4117.709124 | F32: 718.0162659 | G32: 793.9299622 | H32: 225.1326904 | I32: 251.7842941 | J32: 1672.933228 | K32: 1699.572388 | L32: 55.94650078 | M32: 53.98189926 | N32: 126.1822929 | O32: 150.2267227 | P32: 582.3911667 | Q32: 610.383728 | R32: 372.9999886 | S32: 481.9999962
B34: 1) Vægtningen på tværs af sagstyper betyder, at antallet af vægtede sager inden for de enkelte sagområder ikke summer op til det samlede antal vægtede sager.

Sheet Målopf.Straf
B2: MÅLOPFYLDELSE STRAFFESAGER (PROCENT)
D4: Alle alm. straffesager | F4: Nævninge- og domsmandssager (hfh.) | H4: Tilståelsessager og sager uden domsmænd (hfh) | J4: Voldssager | L4: Voldtægtssager | N4: Våbensager
D5: =Overblik!$D$6 -> 2017 | E5: =Overblik!$E$6 -> 2018 | F5: =Overblik!$D$6 -> 2017 | G5: =Overblik!$E$6 -> 2018 | H5: =Overblik!$D$6 -> 2017 | I5: =Overblik!$E$6 -> 2018 | J5: =Overblik!$D$6 -> 2017 | K5: =Overblik!$E$6 -> 2018 | L5: =Overblik!$D$6 -> 2017 | M5: =Overblik!$E$6 -> 2018 | N5: =Overblik!$D$6 -> 2017 | O5: =Overblik!$E$6 -> 2018
D6: <2 MDR. | F6: <4 MDR. | H6: <4 MDR. | J6: <37 DG. | L6: <37 DG. | N6: <37 DG.
C8: MÅL (procent) | D8: 80 pct. | F8: 77 pct. | G8: 80 pct. | H8: 78 pct. | I8: 80 pct.
C9: SAMLET BYRETTERNE | D9: 79.57291769 | E9: 80.16299769 | F9: 63.7697757 | G9: 59.46714338 | H9: 68.67560323 | I9: 65.73204957 | J9: 40.17521902 | K9: 56.63176265 | L9: 29.03225806 | M9: 46.69603524 | N9: =0.482517482517482*100 -> 48.25174825 | O9: 53.65853659
C10: 5. BEDSTE RET | D10: =LARGE(D12:D35,5) -> 83.92266909 | E10: =LARGE(E12:E35,5) -> 84.72253101 | F10: 75.88535556 | G10: 79.99510168 | H10: 86.02460582 | I10: 83.88249781 | J10: 55 | K10: 71.08433735 | L10: 45.45454545 | M10: 75 | N10: =LARGE(N12:N35,5) -> 72.22222222 | O10: 63.63636364
B11: EID | C11: Ret
B12: 901 | C12: Retten i Hjørring | D12: 81.60154725 | E12: 84.0607866 | F12: 72.26898294 | G12: 66.07501197 | H12: 82.60149631 | I12: 78.39942567 | J12: 34.61538462 | K12: 56.75675676 | L12: 20 | M12: 20 | N12: 37.5 | O12: 23.07692308
B13: 902 | C13: Retten i Aalborg | D13: 79.113223 | E13: 83.03240576 | F13: 62.65235392 | G13: 58.19563543 | H13: 65.63530469 | I13: 68.18983126 | J13: 29.16666667 | K13: 47.95918367 | L13: 0 | M13: 21.42857143 | N13: 72.22222222 | O13: 62.5
B14: 903 | C14: Retten i Randers | D14: 81.01053278 | E14: 78.79525933 | F14: 73.52348829 | G14: 52.33887643 | H14: 78.71210787 | I14: 69.99510404 | J14: 42.85714286 | K14: 38.57142857 | L14: 33.33333333 | M14: 100 | N14: 50 | O14: 58.33333333
B15: 904 | C15: Retten i Århus | D15: 75.05794465 | E15: 73.65461119 | F15: 59.97730346 | G15: 37.2264109 | H15: 42.89690429 | I15: 26.54148699 | J15: 32.43243243 | K15: 61.81818182 | L15: 23.07692308 | M15: 0 | N15: 38.46153846 | O15: 50
B16: 905 | C16: Retten i Viborg | D16: 77.97110939 | E16: 76.6362059 | F16: 63.84138517 | G16: 57.71640949 | H16: 64.0010852 | I16: 29.04807492 | J16: 52.63157895 | K16: 23.75 | L16: 42.85714286 | M16: 31.25 | N16: 22.22222222 | O16: 47.82608696
B17: 906 | C17: Retten i Holstebro | D17: 78.00787915 | E17: 83.3785018 | F17: 83.50265038 | G17: 85.21523686 | H17: 89.2452089 | I17: 88.56730027 | J17: 53.33333333 | K17: 71.08433735 | L17: 18.18181818 | M17: 87.5 | N17: 57.14285714 | O17: 77.77777778
B18: 907 | C18: Retten i Herning | D18: 76.63818436 | E18: 75.31960991 | F18: 76.42612365 | G18: 68.54979967 | H18: 81.03494315 | I18: 80.24053965 | J18: 36.36363636 | K18: 75.49019608 | L18: 0 | M18: 75 | N18: 87.5 | O18: 77.77777778
B19: 908 | C19: Retten i Horsens | D19: 72.26412391 | E19: 63.64059269 | F19: 69.19229755 | G19: 60.21462733 | H19: 77.90255061 | I19: 57.74931744 | J19: 27.02702703 | K19: 25.51020408 | L19: 75 | M19: 0 | N19: 0 | O19: 38.46153846
B20: 909 | C20: Retten i Kolding | D20: 79.45072964 | E20: 84.43803685 | F20: 59.18588893 | G20: 65.81906565 | H20: 54.58580829 | I20: 69.92276414 | J20: 64.1025641 | K20: 62.99212598 | L20: 100 | M20: 28.57142857 | N20: 83.33333333 | O20: 80
B21: 910 | C21: Retten i Esbjerg | D21: 78.73853522 | E21: 78.70968838 | F21: 60.12695908 | G21: 57.90996369 | H21: 79.03637084 | I21: 68.1412911 | J21: 59.45945946 | K21: 68.23529412 | L21: 0 | M21: 100 | N21: 37.5 | O21: 52.63157895
B22: 911 | C22: Retten i Sønderborg | D22: 57.35398651 | E22: 71.79975274 | F22: 68.11890594 | G22: 59.6727952 | H22: 86.19371091 | I22: 77.00290651 | J22: 25.53191489 | K22: 56.60377358 | L22: 44.44444444 | M22: 37.5 | N22: 30 | O22: 36.36363636
B23: 912 | C23: Retten i Odense | D23: 85.44937011 | E23: 86.57929526 | F23: 75.43861678 | G23: 81.34487513 | H23: 86.02460582 | I23: 88.55681668 | J23: 34.61538462 | K23: 69.84126984 | L23: 0 | M23: 58.62068966 | N23: 50 | O23: 58.53658537
B24: 913 | C24: Retten i Svendborg | D24: 73.0985654 | E24: 78.11033962 | F24: 49.5495846 | G24: 46.58439512 | H24: 55.6968157 | I24: 53.85952812 | J24: 41.17647059 | K24: 63.33333333 | L24: 50 | M24: 36.36363636 | N24: 25 | O24: 25
B25: 914 | C25: Retten i Nykøbing F. | D25: 86.62919046 | E25: 89.29833753 | F25: 82.01814816 | G25: 83.94398425 | H25: 82.89383258 | I25: 83.88249781 | J25: 27.02702703 | K25: 72.54901961 | L25: 45.45454545 | M25: 85.71428571 | N25: 60 | O25: 56.52173913
B26: 915 | C26: Retten i Næstved | D26: 83.92266909 | E26: 83.7437194 | F26: 54.11244625 | G26: 57.30685936 | H26: 64.53664624 | I26: 48.18538004 | J26: 52.17391304 | K26: 78.49462366 | L26: 40 | M26: 71.42857143 | N26: 75 | O26: 50
B27: 916 | C27: Retten i Holbæk | D27: 82.31750347 | E27: 79.28248956 | F27: 75.88535556 | G27: 53.63039567 | H27: 92.88869823 | I27: 73.28823857 | J27: 50 | K27: 44.44444444 | L27: 0 | M27: 25 | N27: 30 | O27: 63.63636364
B28: 917 | C28: Retten i Roskilde | D28: 75.83615534 | E28: 79.74188837 | F28: 57.13160624 | G28: 60.5320857 | H28: 60.08826849 | I28: 62.78283494 | J28: 28.57142857 | K28: 67.70833333 | L28: 0 | M28: 33.33333333 | N28: 50 | O28: 58.82352941
B29: 918 | C29: Retten i Hillerød | D29: 78.25497465 | E29: 84.72253101 | F29: 55.10759073 | G29: 64.67164777 | H29: 47.33110212 | I29: 67.9727171 | J29: 33.33333333 | K29: 65.82278481 | L29: 0 | M29: 55.55555556 | N29: 50 | O29: 60
B30: 919 | C30: Retten i Helsingør | D30: 73.14248317 | E30: 83.65849372 | F30: 68.86496331 | G30: 75.96286858 | H30: 63.86837894 | I30: 77.93574357 | J30: 55 | K30: 53.62318841 | L30: 40 | M30: 66.66666667 | N30: 28.57142857 | O30: 40
B31: 920 | C31: Retten i Lyngby | D31: 87.37779631 | E31: 89.79754542 | F31: 74.43950604 | G31: 79.99510168 | H31: 77.38997551 | I31: 86.46889528 | J31: 76.92307692 | K31: 58.33333333 | L31: 100 | M31: 60 | N31: 50 | O31: 83.33333333
B32: 921 | C32: Retten i Glostrup | D32: 73.97021104 | E32: 70.7631981 | F32: 57.96651075 | G32: 47.26748049 | H32: 43.02074028 | I32: 65.7699083 | J32: 27.5 | K32: 38.31168831 | L32: 16.66666667 | M32: 30 | N32: 37.5 | O32: 38.46153846
B33: 922 | C33: Retten på Frederiksberg | D33: 80.60360637 | E33: 80.27409388 | F33: 47.31281239 | G33: 50.87784473 | H33: 43.19083645 | I33: 37.42028762 | J33: 22.5 | K33: 52.17391304 | L33: 45.45454545 | M33: 38.46153846 | N33: 36.84210526 | O33: 46.15384615
B34: 923 | C34: Københavns Byret | D34: 83.15412089 | E34: 81.0547882 | F34: 60.00357254 | G34: 49.4233223 | H34: 69.16681122 | I34: 58.22113926 | J34: 37.03703704 | K34: 49.47368421 | L34: 25 | M34: 28.57142857 | N34: 28.57142857 | O34: 60.19417476
B35: 924 | C35: Retten på Bornholm | D35: 90.34311294 | E35: 95.48679296 | F35: 96.99207189 | G35: 98.45352902 | H35: 95.10959032 | I35: 99.23010608 | J35: 100 | K35: 89.47368421 | L35: - | M35: 66.66666667 | N35: 100 | O35: -
B37: 1) Målene for de enkelte sagstyper er opstillet i samarbejde med byretterne. De aktuelle mål trådte i kraft 1. januar 2015. Sammensatte mål i 2017 og 2018 er vægtet på baggrund af den fordeling af sagerne, retterne havde for alle byretter i 2014. Målene for voldssager og voldtægtssager er fastsat eksternt.

Sheet Målopf.Civil
B2: MÅLOPFYLDELSE CIVILE SAGER (PROCENT)
D4: Alle alm. sager, boligsager, småsager og forbud/påbudssager | F4: Hfh. almindelige sager og boligsager | H4: Hfh. småsager | J4: Alle forældreansvars- og ægtefællesager
D5: =Overblik!$D$6 -> 2017 | E5: =Overblik!$E$6 -> 2018 | F5: =Overblik!$D$6 -> 2017 | G5: =Overblik!$E$6 -> 2018 | H5: =Overblik!$D$6 -> 2017 | I5: =Overblik!$E$6 -> 2018 | J5: =Overblik!$D$6 -> 2017 | K5: =Overblik!$E$6 -> 2018
D6: <6 MDR. | F6: <15 MDR. | H6: <9 MDR. | J6: <6 MDR.
C8: MÅL (procent) | D8: 76 pct. | E8: 80 pct. | F8: 67 pct. | G8: 70 pct. | H8: 69 pct. | I8: 70 pct. | J8: 80 pct.
C9: SAMLET BYRETTERNE | D9: 69.1239646 | E9: 66.3974063 | F9: 67.18380174 | G9: 61.771686 | H9: 63.27683616 | I9: 53.94944708 | J9: 75.56355886 | K9: 66.7490363
C10: 5. BEDSTE RET | D10: =LARGE(D12:D35,5) -> 76.43372703 | E10: 72.59563427 | F10: 80.85038899 | G10: 71.80939746 | H10: 88.88888889 | I10: 81.81818182 | J10: 84.52493851 | K10: 80.27335893
B11: EID | C11: Ret
B12: 901 | C12: Retten i Hjørring | D12: 79.10061838 | E12: 72.59563427 | F12: 79.40344079 | G12: 61.14278211 | H12: 73.80952381 | I12: 72.4137931 | J12: 71.95031363 | K12: 59.99988956
B13: 902 | C13: Retten i Aalborg | D13: 71.86186112 | E13: 69.17463492 | F13: 69.88766156 | G13: 63.087612 | H13: 55.35714286 | I13: 42.85714286 | J13: 79.33416303 | K13: 43.68360477
B14: 903 | C14: Retten i Randers | D14: 65.09317549 | E14: 54.14714633 | F14: 61.52493517 | G14: 59.53536644 | H14: 58.33333333 | I14: 88.23529412 | J14: 68.8028408 | K14: 82.0008403
B15: 904 | C15: Retten i Århus | D15: 57.44573064 | E15: 52.47150924 | F15: 68.92168094 | G15: 45.992512 | H15: 34.88372093 | I15: 26.82926829 | J15: 69.38348098 | K15: 50.59012929
B16: 905 | C16: Retten i Viborg | D16: 68.66104631 | E16: 63.32780962 | F16: 72.13947572 | G16: 54.61167088 | H16: 68.35443038 | I16: 70.73170732 | J16: 76.68470002 | K16: 75.09779747
B17: 906 | C17: Retten i Holstebro | D17: 82.24433054 | E17: 71.47141633 | F17: 74.45303972 | G17: 69.66298467 | H17: 96.875 | I17: 85.71428571 | J17: 91.28430648 | K17: 84.17933159
B18: 907 | C18: Retten i Herning | D18: 76.71250779 | E18: 77.13647199 | F18: 73.03439485 | G18: 76.36076728 | H18: 92.59259259 | I18: 81.81818182 | J18: 81.83345516 | K18: 67.95727187
B19: 908 | C19: Retten i Horsens | D19: 66.90220812 | E19: 64.85519906 | F19: 46.51882932 | G19: 59.47590963 | H19: 60.71428571 | I19: 69.23076923 | J19: 65.58361047 | K19: 80.09946988
B20: 909 | C20: Retten i Kolding | D20: 73.92535275 | E20: 67.1907848 | F20: 72.86442192 | G20: 50.97588026 | H20: 72.4137931 | I20: 24.3902439 | J20: 84.52493851 | K20: 77.07175154
B21: 910 | C21: Retten i Esbjerg | D21: 70.50841289 | E21: 53.52659471 | F21: 61.81961636 | G21: 46.17322331 | H21: 52 | I21: 44.44444444 | J21: 61.22945199 | K21: 50.58242504
B22: 911 | C22: Retten i Sønderborg | D22: 63.92730226 | E22: 64.21468032 | F22: 55.66887182 | G22: 53.33026982 | H22: 65.75342466 | I22: 62.22222222 | J22: 75.18030821 | K22: 69.39971766
B23: 912 | C23: Retten i Odense | D23: 75.56983458 | E23: 71.24456812 | F23: 81.22348414 | G23: 69.79689864 | H23: 85.24590164 | I23: 83.05084746 | J23: 83.36131263 | K23: 77.21622014
B24: 913 | C24: Retten i Svendborg | D24: 67.54519701 | E24: 63.46149766 | F24: 83.85424954 | G24: 62.31296037 | H24: 53.57142857 | I24: 62.22222222 | J24: 84.88516852 | K24: 86.29767984
B25: 914 | C25: Retten i Nykøbing F. | D25: 76.14286765 | E25: 76.23366028 | F25: 80.85038899 | G25: 76.1404893 | H25: 92.59259259 | I25: 88.23529412 | J25: 86.75485388 | K25: 80.27335893
B26: 915 | C26: Retten i Næstved | D26: 72.84071142 | E26: 73.55924645 | F26: 73.88226616 | G26: 63.67179482 | H26: 80 | I26: 70.27027027 | J26: 82.97270501 | K26: 77.05165561
B27: 916 | C27: Retten i Holbæk | D27: 76.43372703 | E27: 67.52627368 | F27: 81.82677947 | G27: 67.47114293 | H27: 88.88888889 | I27: 67.56756757 | J27: 83.01592918 | K27: 76.73564497
B28: 917 | C28: Retten i Roskilde | D28: 67.63870872 | E28: 70.34281526 | F28: 67.50043833 | G28: 64.12667585 | H28: 71.76470588 | I28: 37.83783784 | J28: 55.32523545 | K28: 60.11261898
B29: 918 | C29: Retten i Hillerød | D29: 71.37132786 | E29: 68.01644187 | F29: 63.0212128 | G29: 71.80939746 | H29: 67.35102041 | I29: 56 | J29: 82.04304691 | K29: 60.00154611
B30: 919 | C30: Retten i Helsingør | D30: 67.80996892 | E30: 64.10997282 | F30: 60.30184209 | G30: 66.90051389 | H30: 74.36153846 | I30: 58.53658537 | J30: 71.9032774 | K30: 63.87888876
B31: 920 | C31: Retten i Lyngby | D31: 70.18242873 | E31: 68.3540755 | F31: 70.41472189 | G31: 78.58563624 | H31: 61.11388889 | I31: 73.4375 | J31: 67.89617064 | K31: 68.97851179
B32: 921 | C32: Retten i Glostrup | D32: 70.61429577 | E32: 70.99591324 | F32: 51.77269611 | G32: 53.24266141 | H32: 67.70833333 | I32: 56.71641791 | J32: 82.15777623 | K32: 69.75499134
B33: 922 | C33: Retten på Frederiksberg | D33: 68.52553436 | E33: 67.48788874 | F33: 44.75201415 | G33: 52.08998634 | H33: 49.29126761 | I33: 65.71428571 | J33: 71.02439143 | K33: 60.9688558
B34: 923 | C34: Københavns Byret | D34: 65.05307523 | E34: 63.18418112 | F34: 63.69532349 | G34: 61.70971514 | H34: 49.40898345 | I34: 44.7592068 | J34: 65.62431012 | K34: 52.37903459
B35: 924 | C35: Retten på Bornholm | D35: 88.79906384 | E35: 78.62924225 | F35: 84.76882326 | G35: 74.50670981 | H35: 100 | I35: 80 | J35: 97.41878959 | K35: 91.91904144
B37: 1) Målene for de enkelte sagstyper er opstillet i samarbejde med byretterne. De aktuelle mål trådte i kraft 1. januar 2015. Sammensatte mål i 2017 og 2018 er vægtet på baggrund af den fordeling af sagerne, retterne havde for alle byretter i 2014. Generelt er målene opstillet i forhold til hovedforhandlede sager.

Sheet Målopf.Foged
B2: MÅLOPFYLDELSE FOGEDSAGER (PROCENT)
D4: Alm. fogedsager og betalingspåkrav | F4: Særlige fogedsager | H4: Tvangsauktion solgt efter 1. auktion
D5: =Overblik!$D$6 -> 2017 | E5: =Overblik!$E$6 -> 2018 | F5: =Overblik!$D$6 -> 2017 | G5: =Overblik!$E$6 -> 2018 | H5: =Overblik!$D$6 -> 2017 | I5: =Overblik!$E$6 -> 2018
D6: <3 MDR. | F6: <2 MDR. | H6: <5 MDR.
C8: MÅL (procent) | D8: 80 pct. | F8: 80 pct. | H8: 80 pct.
C9: SAMLET BYRETTERNE | D9: 73.51402627 | E9: 69.32672594 | F9: 76.35000828 | G9: 75.04393002 | H9: 80.93685965 | I9: 76.36320269
C10: 5. BEDSTE RET | D10: =LARGE(D12:D35,5) -> 87.72681488 | E10: 87.7246263 | F10: 87.55760369 | G10: 85.48812665 | H10: 90.28180556 | I10: 91.07107143
B11: EID | C11: Ret
B12: 901 | C12: Retten i Hjørring | D12: 87.70042301 | E12: 75.42371092 | F12: 89.03436989 | G12: 87.35042735 | H12: 85.38776923 | I12: 81.20832215
B13: 902 | C13: Retten i Aalborg | D13: 77.9088074 | E13: 71.57961931 | F13: 80.21201413 | G13: 76.65148064 | H13: 80.28140845 | I13: 77.27030303
B14: 903 | C14: Retten i Randers | D14: 78.70447435 | E14: 35.83739294 | F14: 72.37762238 | G14: 58.24665676 | H14: 62.63703297 | I14: 40.00226667
B15: 904 | C15: Retten i Århus | D15: 54.64927312 | E15: 65.0470311 | F15: 77.82921811 | G15: 77.24687144 | H15: 58.82352941 | I15: 83.33
B16: 905 | C16: Retten i Viborg | D16: 79.37652649 | E16: 85.18188624 | F16: 84.07350689 | G16: 75.90163934 | H16: 80.00328571 | I16: 77.46225352
B17: 906 | C17: Retten i Holstebro | D17: 94.20305566 | E17: 93.22218285 | F17: 95.5 | G17: 93.98734177 | H17: 91.26368932 | I17: 94.11470588
B18: 907 | C18: Retten i Herning | D18: 91.31585092 | E18: 87.88027824 | F18: 88.58267717 | G18: 84.32835821 | H18: 86.36454545 | I18: 91.07107143
B19: 908 | C19: Retten i Horsens | D19: 82.26957734 | E19: 69.77285645 | F19: 72.37851662 | G19: 75.80645161 | H19: 90.24463415 | I19: 68.574
B20: 909 | C20: Retten i Kolding | D20: 87.48230195 | E20: 87.7246263 | F20: 86.16932104 | G20: 88.33976834 | H20: 90.28180556 | I20: 91.43257143
B21: 910 | C21: Retten i Esbjerg | D21: 73.70661323 | E21: 85.25021779 | F21: 87.55760369 | G21: 85.48812665 | H21: 81.35457627 | I21: 77.92207792
B22: 911 | C22: Retten i Sønderborg | D22: 54.94526269 | E22: 57.06555424 | F22: 82.62910798 | G22: 76.5832106 | H22: 77.39191304 | I22: 46.15794872
B23: 912 | C23: Retten i Odense | D23: 75.71615863 | E23: 66.230008 | F23: 79.01614143 | G23: 84.19380461 | H23: 69.02433628 | I23: 59.99695652
B24: 913 | C24: Retten i Svendborg | D24: 31.98681668 | E24: 35.11265787 | F24: 58.20895522 | G24: 75.10917031 | H24: 61.44638554 | I24: 71.59215909
B25: 914 | C25: Retten i Nykøbing F. | D25: 76.18924616 | E25: 77.08459769 | F25: 80.02980626 | G25: 75.85714286 | H25: 91.98144385 | I25: 91.46140704
B26: 915 | C26: Retten i Næstved | D26: 50.97006764 | E26: 53.83160591 | F26: 73.24380165 | G26: 77.15909091 | H26: 78.07254386 | I26: 70.29712871
B27: 916 | C27: Retten i Holbæk | D27: 88.95490479 | E27: 88.11638572 | F27: 84.6921797 | G27: 81.72690763 | H27: 87.42059603 | I27: 78.23408163
B28: 917 | C28: Retten i Roskilde | D28: 86.05407852 | E28: 85.56656218 | F28: 78.47993168 | G28: 77.38287561 | H28: 81.66516667 | I28: 90.47619048
B29: 918 | C29: Retten i Hillerød | D29: 75.3377314 | E29: 86.01036862 | F29: 69.07407407 | G29: 68.76006441 | H29: 93.93969697 | I29: 84.44311111
B30: 919 | C30: Retten i Helsingør | D30: 73.60651432 | E30: 63.36094929 | F30: 79.69283276 | G30: 83.88554217 | H30: 79.24339623 | I30: 80.39294118
B31: 920 | C31: Retten i Lyngby | D31: 87.72681488 | E31: 85.74615624 | F31: 90.72463768 | G31: 81.61953728 | H31: 90.90909091 | I31: 87.49625
B32: 921 | C32: Retten i Glostrup | D32: 63.84272759 | E32: 56.00964743 | F32: 67.43068392 | G32: 71.78849145 | H32: 72.22333333 | I32: 74.99892857
B33: 922 | C33: Retten på Frederiksberg | D33: 63.45476875 | E33: 52.51363341 | F33: 65.63763322 | G33: 58.16744731 | H33: 66.66666667 | I33: 37.4975
B34: 923 | C34: Københavns Byret | D34: 73.38035188 | E34: 73.16513485 | F34: 73.56855463 | G34: 73.16831683 | H34: 33.33111111 | I34: 33.33222222
B35: 924 | C35: Retten på Bornholm | D35: 97.5626275 | E35: 98.1819329 | F35: 80.72289157 | G35: 95.29411765 | H35: 88.88888889 | I35: 100.0016667
B37: 1) Målene for de enkelte sagstyper er opstillet i samarbejde med byretterne. Sammensatte mål i 2017 og 2018 er vægtet på baggrund af den fordeling af sagerne, retterne havde for alle byretter i 2014.

Sheet Målopf.Skifte
B2: MÅLOPFYLDELSE SKIFTESAGER (PROCENT)
D4: Udlevering af bo | F4: Tvangsopløsningssager (eksklusive likvidation) | H4: Gældssanering (dog kun indledte sager)
D5: =Overblik!$D$6 -> 2017 | E5: =Overblik!$E$6 -> 2018 | F5: =Overblik!$D$6 -> 2017 | G5: =Overblik!$E$6 -> 2018 | H5: =Overblik!$D$6 -> 2017 | I5: =Overblik!$E$6 -> 2018
D6: <2 MDR. | F6: <3 MDR. | H6: <9 MDR.
C8: MÅL (procent) | D8: 80 pct. | F8: 74 pct. | G8: 75 pct. | H8: 77 pct. | I8: 80 pct.
C9: SAMLET BYRETTERNE | D9: 78.93493688 | E9: 75.2598551 | F9: 89.31963759 | G9: 86.26229706 | H9: 85.52669321 | I9: 80.88669243
C10: 5. BEDSTE RET | D10: =LARGE(D12:D35,5) -> 83.45345679 | E10: 82.21 | F10: 91.14189873 | G10: 91.28512821 | H10: 91.30130435 | I10: 91.1137037
B11: EID | C11: Ret
B12: 901 | C12: Retten i Hjørring | D12: 79.79957895 | E12: 78.83 | F12: 87.4113986 | G12: 95.08785276 | H12: 93.05381944 | I12: 83.93258929
B13: 902 | C13: Retten i Aalborg | D13: 78.25135768 | E13: 71.5 | F13: 89.12975831 | G13: 90.38221154 | H13: 69.27240223 | I13: 63.15593985
B14: 903 | C14: Retten i Randers | D14: 82.73773508 | E14: 78.4 | F14: 90.95879397 | G14: 81.91209524 | H14: 87.28737288 | I14: 75.24712871
B15: 904 | C15: Retten i Århus | D15: 66.89055492 | E15: 61.21 | F15: 92.24779661 | G15: 89.53017032 | H15: 90.38548077 | I15: 86.9601087
B16: 905 | C16: Retten i Viborg | D16: 81.04672261 | E16: 77.17 | F16: 92.19219512 | G16: 90.0539267 | H16: 76.41509434 | I16: 73.55008264
B17: 906 | C17: Retten i Holstebro | D17: 81.03251825 | E17: 67.75 | F17: 99.18434426 | G17: 94.35314516 | H17: 95.835 | I17: 93.84369231
B18: 907 | C18: Retten i Herning | D18: 77.13235901 | E18: 78.23 | F18: 89.52114286 | G18: 83.46212598 | H18: 92.68073171 | I18: 90.3244086
B19: 908 | C19: Retten i Horsens | D19: 78.88140123 | E19: 71.55 | F19: 91.3338 | G19: 88.4952518 | H19: 88.13508475 | I19: 98.68289474
B20: 909 | C20: Retten i Kolding | D20: 81.78353014 | E20: 78.17 | F20: 86.89405488 | G20: 86.1218509 | H20: 86.27127451 | I20: 76.69883495
B21: 910 | C21: Retten i Esbjerg | D21: 63.04396267 | E21: 48.4 | F21: 89.17345361 | G21: 83.54607595 | H21: 76.19171429 | I21: 74.99683333
B22: 911 | C22: Retten i Sønderborg | D22: 73.32437118 | E22: 68.49 | F22: 87.97495192 | G22: 91.55128889 | H22: 89.99988889 | I22: 62.19268293
B23: 912 | C23: Retten i Odense | D23: 79.30178456 | E23: 82.21 | F23: 91.14189873 | G23: 84.84348485 | H23: 91.30130435 | I23: 91.1137037
B24: 913 | C24: Retten i Svendborg | D24: 74.52069502 | E24: 74.14 | F24: 87.12712871 | G24: 89.59552083 | H24: 73.07776923 | I24: 72.88288136
B25: 914 | C25: Retten i Nykøbing F. | D25: 93.53129621 | E25: 93.1 | F25: 88.36883721 | G25: 81.29141935 | H25: 88.78168224 | I25: 92.08287129
B26: 915 | C26: Retten i Næstved | D26: 71.28257426 | E26: 73.37 | F26: 89.23098655 | G26: 88.80088803 | H26: 88.23779412 | I26: 82.17960396
B27: 916 | C27: Retten i Holbæk | D27: 85.31431373 | E27: 84.52 | F27: 84.9884 | G27: 85.83292035 | H27: 88.78962617 | I27: 86.27705882
B28: 917 | C28: Retten i Roskilde | D28: 81.86810811 | E28: 77.76 | F28: 85.90667606 | G28: 75.56780899 | H28: 85.18398148 | I28: 79.83159664
B29: 918 | C29: Retten i Hillerød | D29: 81.07030779 | E29: 76.84 | F29: 90.05270718 | G29: 91.28512821 | H29: 90.11076923 | I29: 77.502
B30: 919 | C30: Retten i Helsingør | D30: 73.16642462 | E30: 74.24 | F30: 86.60330218 | G30: 78.67817259 | H30: 86.11125 | I30: 85.71285714
B31: 920 | C31: Retten i Lyngby | D31: 83.45345679 | E31: 77.57 | F31: - | G31: - | H31: - | I31: -
B32: 921 | C32: Retten i Glostrup | D32: 86.25576119 | E32: 84.5 | F32: - | G32: - | H32: - | I32: -
B33: 922 | C33: Retten på Frederiksberg | D33: 75.6536971 | E33: 77.42 | F33: - | G33: - | H33: - | I33: -
B34: 923 | C34: Københavns Byret | D34: 79.80714742 | E34: 67.65 | F34: - | G34: - | H34: - | I34: -
B35: 924 | C35: Retten på Bornholm | D35: 95.89884868 | E35: 96.1 | F35: 86.66733333 | G35: 93.95363636 | H35: 92.0032 | I35: 100
B37: 1) Målene for de enkelte sagstyper er opstillet i samarbejde med byretterne. De aktuelle mål trådte i kraft 1. januar 2015.

Sheet Sagstid.Straf
B2: GENNEMSNITLIG SAGSBEHANDLINGSTID STRAFFESAGER (DAGE)
D4: Nævningesager | F4: Domsmandssager | H4: Sager uden domsmænd | J4: Tilståelsessager
D5: =Overblik!$D$6 -> 2017 | E5: =Overblik!$E$6 -> 2018 | F5: =Overblik!$D$6 -> 2017 | G5: =Overblik!$E$6 -> 2018 | H5: =Overblik!$D$6 -> 2017 | I5: =Overblik!$E$6 -> 2018 | J5: =Overblik!$D$6 -> 2017 | K5: =Overblik!$E$6 -> 2018
C6: SAMLET BYRETTERNE | D6: 147.5540541 | E6: 133.536036 | F6: 126.0366475 | G6: 134.495307 | H6: 27.62626829 | I6: 29.97034207 | J6: 80.95917804 | K6: 86.06921348
C7: 5. BEDSTE RET | D7: =SMALL(D9:D32,5) -> 85 | E7: =SMALL(E9:E32,5) -> 62 | F7: 95 | G7: 91 | H7: 18 | I7: 19 | J7: 66 | K7: 58
B8: EID | C8: Ret
B9: 901 | C9: Retten i Hjørring | D9: 137 | E9: 121 | F9: 101 | G9: 107 | H9: 22 | I9: 26 | J9: 74 | K9: 78
B10: 902 | C10: Retten i Aalborg | D10: 0 | E10: 97 | F10: 118 | G10: 142 | H10: 33 | I10: 27 | J10: 88 | K10: 98
B11: 903 | C11: Retten i Randers | D11: 90 | E11: 117 | F11: 127 | G11: 139 | H11: 29 | I11: 37 | J11: 90 | K11: 102
B12: 904 | C12: Retten i Århus | D12: 155 | E12: 147 | F12: 143 | G12: 222 | H12: 50 | I12: 72 | J12: 114 | K12: 175
B13: 905 | C13: Retten i Viborg | D13: - | E13: 108 | F13: 130 | G13: 147 | H13: 33 | I13: 37 | J13: 83 | K13: 136
B14: 906 | C14: Retten i Holstebro | D14: 82 | E14: 155 | F14: 79 | G14: 79 | H14: 30 | I14: 27 | J14: 64 | K14: 61
B15: 907 | C15: Retten i Herning | D15: 85 | E15: 118 | F15: 93 | G15: 106 | H15: 30 | I15: 25 | J15: 68 | K15: 74
B16: 908 | C16: Retten i Horsens | D16: - | E16: 126 | F16: 112 | G16: 119 | H16: 47 | I16: 56 | J16: 80 | K16: 98
B17: 909 | C17: Retten i Kolding | D17: 102 | E17: 76 | F17: 129 | G17: 110 | H17: 29 | I17: 22 | J17: 99 | K17: 62
B18: 910 | C18: Retten i Esbjerg | D18: 138 | E18: 176 | F18: 147 | G18: 159 | H18: 31 | I18: 30 | J18: 69 | K18: 67
B19: 911 | C19: Retten i Sønderborg | D19: 86 | E19: 40 | F19: 116 | G19: 131 | H19: 60 | I19: 47 | J19: 66 | K19: 73
B20: 912 | C20: Retten i Odense | D20: 146 | E20: 62 | F20: 101 | G20: 89 | H20: 13 | I20: 10 | J20: 68 | K20: 58
B21: 913 | C21: Retten i Svendborg | D21: 153 | E21: 106 | F21: 170 | G21: 171 | H21: 49 | I21: 39 | J21: 129 | K21: 94
B22: 914 | C22: Retten i Nykøbing F. | D22: 77 | E22: 111 | F22: 92 | G22: 77 | H22: 20 | I22: 19 | J22: 51 | K22: 37
B23: 915 | C23: Retten i Næstved | D23: 123 | E23: 109 | F23: 132 | G23: 132 | H23: 12 | I23: 14 | J23: 84 | K23: 97
B24: 916 | C24: Retten i Holbæk | D24: 118 | E24: 61 | F24: 95 | G24: 130 | H24: 21 | I24: 34 | J24: 61 | K24: 89
B25: 917 | C25: Retten i Roskilde | D25: 152 | E25: 98 | F25: 159 | G25: 124 | H25: 33 | I25: 24 | J25: 75 | K25: 64
B26: 918 | C26: Retten i Hillerød | D26: 165 | E26: 97 | F26: 141 | G26: 115 | H26: 39 | I26: 24 | J26: 99 | K26: 57
B27: 919 | C27: Retten i Helsingør | D27: 134 | E27: 113 | F27: 135 | G27: 102 | H27: 38 | I27: 23 | J27: 77 | K27: 79
B28: 920 | C28: Retten i Lyngby | D28: 125 | E28: 8 | F28: 117 | G28: 91 | H28: 12 | I28: 15 | J28: 71 | K28: 33
B29: 921 | C29: Retten i Glostrup | D29: 165 | E29: 136 | F29: 135 | G29: 162 | H29: 38 | I29: 48 | J29: 94 | K29: 115
B30: 922 | C30: Retten på Frederiksberg | D30: 198 | E30: 152 | F30: 149 | G30: 144 | H30: 25 | I30: 35 | J30: 89 | K30: 101
B31: 923 | C31: Københavns Byret | D31: 179 | E31: 201 | F31: 128 | G31: 152 | H31: 18 | I31: 23 | J31: 73 | K31: 79
B32: 924 | C32: Retten på Bornholm | D32: 85 | E32: 28 | F32: 52 | G32: 41 | H32: 16 | I32: 11 | J32: 39 | K32: 32

Sheet Sagstid.Civil
B2: GENNEMSNITLIG SAGSBEHANDLINGSTID CIVILE SAGER (DAGE)
D4: Hovedforhandlede almindelige sager | F4: Hovedforhandlede boligretssager | H4: Hovedforhandlede småsager | J4: Alle civile sager m. forhandlingsmaksime | L4: Alle ægteskabssager | N4: Alle forældre- ansvarssager
D5: =Overblik!$D$6 -> 2017 | E5: =Overblik!$E$6 -> 2018 | F5: =Overblik!$D$6 -> 2017 | G5: =Overblik!$E$6 -> 2018 | H5: =Overblik!$D$6 -> 2017 | I5: =Overblik!$E$6 -> 2018 | J5: =Overblik!$D$6 -> 2017 | K5: =Overblik!$E$6 -> 2018 | L5: =Overblik!$D$6 -> 2017 | M5: =Overblik!$E$6 -> 2018 | N5: =Overblik!$D$6 -> 2017 | O5: =Overblik!$E$6 -> 2018
C6: SAMLET BYRETTERNE | D6: 436.6407947 | E6: 500.2284269 | F6: 433.5585366 | G6: 545.1807451 | H6: 289.4293785 | I6: 288.7873553 | J6: 179.9532776 | K6: 188.6545288 | L6: 122.3668508 | M6: 117.2434242 | N6: 145.5854249 | O6: 147.3172643
C7: 5. BEDSTE RET | D7: =SMALL(D9:D32,5) -> 345.7209302 | E7: =SMALL(E9:E32,5) -> 421.733194 | F7: 289.8333333 | G7: 289.159 | H7: 199.0163934 | I7: 211.7197627 | J7: 148.4945175 | K7: 158.1275472 | L7: 97 | M7: 93.3894 | N7: 122.125 | O7: 119.1884571
B8: EID | C8: Ret
B9: 901 | C9: Retten i Hjørring | D9: 340.4950495 | E9: 483.197134 | F9: 156 | G9: 289.159 | H9: 213.0952381 | I9: 246.7866207 | J9: 144.9853862 | K9: 179.965368 | L9: 100.5714286 | M9: 78.86666667 | N9: 151.295302 | O9: 152.1553091
B10: 902 | C10: Retten i Aalborg | D10: 416.1111111 | E10: 500.4864583 | F10: 392 | G10: 413.2774286 | H10: 267.9821429 | I10: 332.7948 | J10: 163.6837871 | K10: 169.406387 | L10: 120.3409091 | M10: 98.99175 | N10: 137.8429319 | O10: 139.1715
B11: 903 | C11: Retten i Randers | D11: 468.5813953 | E11: 505.0009714 | F11: 587.4722222 | G11: 1672.258596 | H11: 305.797619 | I11: 373.7521224 | J11: 197.3784047 | K11: 299.3687375 | L11: 134.1034483 | M11: 140.79 | N11: 162.6821705 | O11: 185.1350526
B12: 904 | C12: Retten i Århus | D12: 446.1372549 | E12: 608.8778621 | F12: 450.8846154 | G12: 511.2370714 | H12: 333.627907 | I12: 395.9917317 | J12: 226.8631201 | K12: 265.8682755 | L12: 136 | M12: 127.764 | N12: 150.0119048 | O12: 151.6752162
B13: 905 | C13: Retten i Viborg | D13: 410.9880952 | E13: 576.0712941 | F13: 275 | G13: 422.9301818 | H13: 275.3544304 | I13: 231.8350244 | J13: 208.7333333 | K13: 229.6630901 | L13: 135.4736842 | M13: 128.5752 | N13: 143.6 | O13: 146.4385
B14: 906 | C14: Retten i Holstebro | D14: 364.4 | E14: 508.6731 | F14: 313 | G14: 163.254 | H14: 136 | I14: 173.8647857 | J14: 151.1460481 | K14: 255.3507341 | L14: 100.1818182 | M14: 89.4855 | N14: 106.7204301 | O14: 119.1884571
B15: 907 | C15: Retten i Herning | D15: 366.4532374 | E15: 449.2415065 | F15: 483 | G15: 290.004 | H15: 187 | I15: 206.856 | J15: 156.9372973 | K15: 143.1850394 | L15: 77.76923077 | M15: 79.6835 | N15: 123 | O15: 118.534
B16: 908 | C16: Retten i Horsens | D16: 605.1505376 | E16: 494.4026486 | F16: 289.8333333 | G16: 323.6913333 | H16: 309.0357143 | I16: 229.32 | J16: 233.8155894 | K16: 202.0034404 | L16: 124.7391304 | M16: 93.3894 | N16: 137.018018 | O16: 123.708
B17: 909 | C17: Retten i Kolding | D17: 386.1547619 | E17: 512.4342524 | F17: 419.8235294 | G17: 472.524 | H17: 251.5862069 | I17: 375.18 | J17: 142.2922144 | K17: 153.5748284 | L17: 97.58974359 | M17: 109.902 | N17: 126.1627907 | O17: 131.2948929
B18: 910 | C18: Retten i Esbjerg | D18: 426.961039 | E18: 598.1892558 | F18: 430 | G18: 430.274 | H18: 279.12 | I18: 319.41 | J18: 197.2687898 | K18: 283.3290816 | L18: 155.7826087 | M18: 193.674 | N18: 180.6782609 | O18: 172.35972
B19: 911 | C19: Retten i Sønderborg | D19: 515.7769231 | E19: 566.124 | F19: 569 | G19: 353.7411429 | H19: 270.4794521 | I19: 286.5338667 | J19: 207.4948007 | K19: 206.2182469 | L19: 139.5555556 | M19: 119.99 | N19: 140.4628099 | O19: 139.0258723
B20: 912 | C20: Retten i Odense | D20: 305.741784 | E20: 497.5723671 | F20: 359.1363636 | G20: 279.4231304 | H20: 199.0163934 | I20: 211.7197627 | J20: 157.0766332 | K20: 170.3621118 | L20: 103.5892857 | M20: 82.02133333 | N20: 127.1707317 | O20: 127.3535714
B21: 913 | C21: Retten i Svendborg | D21: 352.6470588 | E21: 527.6092208 | F21: 249.2 | G21: 375.9405 | H21: 309.8571429 | I21: 320.1536 | J21: 179.6305556 | K21: 205.3445946 | L21: 80.6 | M21: 108.9036 | N21: 115.7826087 | O21: 124.0556571
B22: 914 | C22: Retten i Nykøbing F. | D22: 345.7209302 | E22: 417.4611316 | F22: 241 | G22: 354.6465 | H22: 195.1666667 | I22: 177.0921176 | J22: 148.4945175 | K22: 126.4641598 | L22: 121.7083333 | M22: 104.6955 | N22: 96.13868613 | O22: 95.64192857
B23: 915 | C23: Retten i Næstved | D23: 364.6089109 | E23: 487.5312 | F23: 380.55 | G23: 389.1374118 | H23: 255.4 | I23: 239.0847568 | J23: 164.1619985 | K23: 158.1275472 | L23: 116.2926829 | M23: 145.2917143 | N23: 128.8816568 | O23: 128.5111579
B24: 916 | C24: Retten i Holbæk | D24: 280.609375 | E24: 421.733194 | F24: 438 | G24: 354.6746667 | H24: 226.8888889 | I24: 251.8830811 | J24: 138.5400943 | K24: 163.6064103 | L24: 133.1 | M24: 108.7877143 | N24: 122.125 | O24: 117.4945532
B25: 917 | C25: Retten i Roskilde | D25: 402.0520833 | E25: 482.82 | F25: 421.5 | G25: 432.2456667 | H25: 283.5764706 | I25: 294.06 | J25: 197.4680611 | K25: 177.0438084 | L25: 154.84 | M25: 163.1019 | N25: 217.7932961 | O25: 219.4296
B26: 918 | C26: Retten i Hillerød | D26: 476.5819672 | E26: 407.7776066 | F26: 379.6875 | G26: 373.4417143 | H26: 250.244898 | I26: 255.4266 | J26: 165.1089566 | K26: 161.2359551 | L26: 92.52 | M26: 99.372 | N26: 133.9919355 | O26: 149.1614694
B27: 919 | C27: Retten i Helsingør | D27: 436.07 | E27: 426.864466 | F27: 467.0869565 | G27: 426.0152 | H27: 243.8205128 | I27: 264.1099024 | J27: 188.2169492 | K27: 190.9246231 | L27: 96.44117647 | M27: 111.7653333 | N27: 158.1339286 | O27: 169.9982791
B28: 920 | C28: Retten i Lyngby | D28: 445.9375 | E28: 365.2606941 | F28: 379.6923077 | G28: 277.6516364 | H28: 272.6111111 | I28: 241.4112187 | J28: 179.5351759 | K28: 164.0839272 | L28: 136.8043478 | M28: 108.8182105 | N28: 154.0857143 | O28: 172.746766
B29: 921 | C29: Retten i Glostrup | D29: 563.9087452 | E29: 524.0676797 | F29: 465.0869565 | G29: 471.51 | H29: 252.5833333 | I29: 255.2555821 | J29: 204.7345877 | K29: 191.5073052 | L29: 122.3368421 | M29: 100.1266047 | N29: 149.9105058 | O29: 139.2150303
B30: 922 | C30: Retten på Frederiksberg | D30: 660.3421053 | E30: 587.0411512 | F30: 467 | G30: 500.6987143 | H30: 323.2676056 | I30: 270.6221143 | J30: 202.6724551 | K30: 221.130945 | L30: 110.9861111 | M30: 121.3758 | N30: 165.18125 | O30: 160.7437317
B31: 923 | C31: Københavns Byret | D31: 488.9716312 | E31: 495.7333333 | F31: 462.474359 | G31: 448.5445714 | H31: 369.21513 | I31: 310.019728 | J31: 174.1997683 | K31: 169.6697332 | L31: 153.2666667 | M31: 145.8025263 | N31: 169.5630631 | O31: 188.4662963
B32: 924 | C32: Retten på Bornholm | D32: 274.125 | E32: 414.2488235 | F32: - | G32: 122.187 | H32: 108 | I32: 209.4924 | J32: 109.3787879 | K32: 140.942623 | L32: 97 | M32: 159.6325714 | N32: 89.90909091 | O32: 82.2354
B34: 1) Alle civile sager med forhandlingsmaksime inkluderer sagstyperne almindelige sager, boligretssager, forbud/påbudssager og småsager.

Sheet Sagstid.Foged
B2: GENNEMSNITLIG SAGSBEHANDLINGSTID FOGEDSAGER (DAGE)
D4: Alm. fogedsager | F4: Særlige fogedsager | H4: Betalingspåkrav | J4: Tvangsauktioner
D5: =Overblik!$D$6 -> 2017 | E5: =Overblik!$E$6 -> 2018 | F5: =Overblik!$D$6 -> 2017 | G5: =Overblik!$E$6 -> 2018 | H5: =Overblik!$D$6 -> 2017 | I5: =Overblik!$E$6 -> 2018 | J5: =Overblik!$D$6 -> 2017 | K5: =Overblik!$E$6 -> 2018
C6: SAMLET BYRETTERNE | D6: 77.77558883 | E6: 82.74815948 | F6: 51.24867484 | G6: 48.55454962 | H6: 72.42313321 | I6: 82.94203313 | J6: 75.90439247 | K6: 67.06208969
C7: 5. BEDSTE RET | D7: =SMALL(D9:D32,5) -> 53.88521798 | E7: 56.75281778 | F7: 38.37349398 | G7: 38.50516283 | H7: 50.5717313 | I7: 54.60540541 | J7: 64 | K7: 54
B8: EID | C8: Ret
B9: 901 | C9: Retten i Hjørring | D9: 55.54402808 | E9: 56.75281778 | F9: 32.7806874 | G9: 35.03076923 | H9: 50.5717313 | I9: 71.27825497 | J9: 83 | K9: 84
B10: 902 | C10: Retten i Aalborg | D10: 56.32976967 | E10: 64.98275331 | F10: 45.06831567 | G10: 55.11389522 | H10: 90.2151708 | I10: 96.31415461 | J10: 64 | K10: 60
B11: 903 | C11: Retten i Randers | D11: 69.43215259 | E11: 114.9492871 | F11: 51.1013986 | G11: 69.57206538 | H11: 77.35163327 | I11: 116.1987796 | J11: 103 | K11: 94
B12: 904 | C12: Retten i Århus | D12: 119.6671426 | E12: 105.2783143 | F12: 95.39609053 | G12: 38.97269625 | H12: 89.28967343 | I12: 93.15954416 | J12: 100 | K12: 66
B13: 905 | C13: Retten i Viborg | D13: 64.63577023 | E13: 65.28458003 | F13: 40.20673813 | G13: 50.45737705 | H13: 75.61182583 | I13: 61.10082806 | J13: 84 | K13: 66
B14: 906 | C14: Retten i Holstebro | D14: 39.40611054 | E14: 44.95084327 | F14: 27.14 | G14: 28.09177215 | H14: 48.82015609 | I14: 49.2414979 | J14: 73 | K14: 66
B15: 907 | C15: Retten i Herning | D15: 53.88521798 | E15: 61.50138013 | F15: 43.06889764 | G15: 40.43781095 | H15: 46.68951094 | I15: 56.8769559 | J15: 73 | K15: 57
B16: 908 | C16: Retten i Horsens | D16: 62.37785688 | E16: 72.30747078 | F16: 43.39897698 | G16: 43.67741935 | H16: 69.33198507 | I16: 87.6372549 | J16: 66 | K16: 64
B17: 909 | C17: Retten i Kolding | D17: 50.80989608 | E17: 55.49160207 | F17: 41.17686505 | G17: 39.36756757 | H17: 52.10739468 | I17: 47.32624237 | J17: 77 | K17: 54
B18: 910 | C18: Retten i Esbjerg | D18: 48.83268127 | E18: 51.58879047 | F18: 36.33179724 | G18: 36.75065963 | H18: 96.65968718 | I18: 73.31321244 | J18: 75 | K18: 70
B19: 911 | C19: Retten i Sønderborg | D19: 69.47039732 | E19: 73.1895683 | F19: 40.1314554 | G19: 49.10751105 | H19: 132.5847169 | I19: 175.6742546 | J19: 83 | K19: 89
B20: 912 | C20: Retten i Odense | D20: 85.39605376 | E20: 75.39640434 | F20: 48.58800922 | G20: 38.50516283 | H20: 71.55670262 | I20: 90.50287987 | J20: 81 | K20: 71
B21: 913 | C21: Retten i Svendborg | D21: 104.4154221 | E21: 106.4509033 | F21: 64.91684435 | G21: 56.58733624 | H21: 134.9970599 | I21: 189.1641253 | J21: 102 | K21: 81
B22: 914 | C22: Retten i Nykøbing F. | D22: 74.16159696 | E22: 75.24575477 | F22: 42.63040238 | G22: 46.32714286 | H22: 82.14341969 | I22: 75.95245078 | J22: 74 | K22: 54
B23: 915 | C23: Retten i Næstved | D23: 106.1116657 | E23: 93.02628621 | F23: 53.1642562 | G23: 52.94318182 | H23: 117.5697403 | I23: 115.0600505 | J23: 76 | K23: 68
B24: 916 | C24: Retten i Holbæk | D24: 55.72065165 | E24: 61.83408135 | F24: 41.8452579 | G24: 43.9939759 | H24: 56.14709549 | I24: 58.29144225 | J24: 94 | K24: 81
B25: 917 | C25: Retten i Roskilde | D25: 59.55418394 | E25: 63.65395454 | F25: 44.49786507 | G25: 46.95557351 | H25: 59.80248804 | I25: 58.48449406 | J25: 61 | K25: 56
B26: 918 | C26: Retten i Hillerød | D26: 79.48039826 | E26: 64.04495934 | F26: 47.85555556 | G26: 47.44605475 | H26: 55.70120482 | I26: 56.94895449 | J26: 50 | K26: 45
B27: 919 | C27: Retten i Helsingør | D27: 94.51259237 | E27: 89.01426471 | F27: 45.88054608 | G27: 42.58433735 | H27: 72.96179625 | I27: 100.0215506 | J27: 72 | K27: 59
B28: 920 | C28: Retten i Lyngby | D28: 57.29748707 | E28: 63.52278313 | F28: 34.82173913 | G28: 40.9125964 | H28: 50.92875 | I28: 48.09824992 | J28: 45 | K28: 49
B29: 921 | C29: Retten i Glostrup | D29: 116.5858821 | E29: 138.299454 | F29: 52.05286506 | G29: 49.22488336 | H29: 40.97812783 | I29: 54.60540541 | J29: 66 | K29: 60
B30: 922 | C30: Retten på Frederiksberg | D30: 102.9720144 | E30: 113.2241101 | F30: 56.21021683 | G30: 64.27459016 | H30: 70.76216035 | I30: 80.48282995 | J30: 85 | K30: 78
B31: 923 | C31: Københavns Byret | D31: 88.04387145 | E31: 84.75326759 | F31: 51.23119777 | G31: 49.35247525 | H31: 55.37685787 | I31: 67.33943929 | J31: 77 | K31: 81
B32: 924 | C32: Retten på Bornholm | D32: 31.61662631 | E32: 26.96698523 | F32: 38.37349398 | G32: 26.72941176 | H32: 29.87269373 | I32: 25.34384858 | J32: 64 | K32: 50

Sheet Sagstid.Skifte
B2: GENNEMSNITLIG SAGSBEHANDLINGSTID SKIFTESAGER (DAGE)
D4: Boudlæg | F4: Uskiftet bo | H4: Privat skifte | J4: Forenklet privat skifte
D5: =Overblik!$D$6 -> 2017 | E5: =Overblik!$E$6 -> 2018 | F5: =Overblik!$D$6 -> 2017 | G5: =Overblik!$E$6 -> 2018 | H5: =Overblik!$D$6 -> 2017 | I5: =Overblik!$E$6 -> 2018 | J5: =Overblik!$D$6 -> 2017 | K5: =Overblik!$E$6 -> 2018
C6: SAMLET BYRETTERNE | D6: 47.08044387 | E6: 51.1015314 | F6: 96.82607865 | G6: 99.1195218 | H6: 342.9536343 | I6: 354.8299834 | J6: 74.14713395 | K6: 76.8242631
C7: 5. BEDSTE RET | D7: =SMALL(D9:D32,5) -> 40.17 | E7: 41.66 | F7: 86.15 | G7: 84.29 | H7: 322.56 | I7: 334.5 | J7: 66.25 | K7: 68.21
B8: EID | C8: Ret
B9: 901 | C9: Retten i Hjørring | D9: 53.06 | E9: 55.55 | F9: 92.75 | G9: 84.09 | H9: 332.52 | I9: 333.63 | J9: 73.85 | K9: 72.13
B10: 902 | C10: Retten i Aalborg | D10: 41.52 | E10: 51.77 | F10: 81.54 | G10: 84.46 | H10: 332.99 | I10: 353.89 | J10: 72.27 | K10: 82
B11: 903 | C11: Retten i Randers | D11: 48.66 | E11: 55.88 | F11: 87.6 | G11: 86.17 | H11: 353.63 | I11: 337.99 | J11: 66.25 | K11: 73.11
B12: 904 | C12: Retten i Århus | D12: 65.33 | E12: 71.46 | F12: 108 | G12: 112.03 | H12: 387.31 | I12: 408.43 | J12: 81.43 | K12: 81.35
B13: 905 | C13: Retten i Viborg | D13: 44.11 | E13: 51.84 | F13: 91.1 | G13: 92.71 | H13: 313.42 | I13: 331.53 | J13: 68.22 | K13: 70.42
B14: 906 | C14: Retten i Holstebro | D14: 54.34 | E14: 62.87 | F14: 82.79 | G14: 82.1 | H14: 359.63 | I14: 355.15 | J14: 70.24 | K14: 81.18
B15: 907 | C15: Retten i Herning | D15: 61.14 | E15: 58.18 | F15: 96.77 | G15: 84.29 | H15: 318.43 | I15: 335.97 | J15: 74.91 | K15: 73.28
B16: 908 | C16: Retten i Horsens | D16: 49.13 | E16: 56.3 | F16: 101.72 | G16: 108.77 | H16: 356.92 | I16: 359.72 | J16: 73.71 | K16: 85.23
B17: 909 | C17: Retten i Kolding | D17: 35.62 | E17: 41.46 | F17: 88.12 | G17: 90.81 | H17: 339.49 | I17: 346.92 | J17: 64.38 | K17: 66.88
B18: 910 | C18: Retten i Esbjerg | D18: 54.39 | E18: 64.94 | F18: 101.71 | G18: 113.15 | H18: 392.16 | I18: 409.41 | J18: 78.3 | K18: 86.31
B19: 911 | C19: Retten i Sønderborg | D19: 54.66 | E19: 61.25 | F19: 112.97 | G19: 118.59 | H19: 362.7 | I19: 362.99 | J19: 84.47 | K19: 97.12
B20: 912 | C20: Retten i Odense | D20: 45.82 | E20: 47.46 | F20: 93.39 | G20: 90.93 | H20: 343.45 | I20: 355.89 | J20: 78.07 | K20: 69.51
B21: 913 | C21: Retten i Svendborg | D21: 51.29 | E21: 54.89 | F21: 86.15 | G21: 95.55 | H21: 366.58 | I21: 357.82 | J21: 83.37 | K21: 77.95
B22: 914 | C22: Retten i Nykøbing F. | D22: 35.21 | E22: 36.98 | F22: 50.36 | G22: 44.24 | H22: 336.2 | I22: 332.7 | J22: 43.02 | K22: 44.65
B23: 915 | C23: Retten i Næstved | D23: 53.85 | E23: 49.46 | F23: 107.6 | G23: 107.8 | H23: 360.14 | I23: 353.93 | J23: 76.79 | K23: 68.21
B24: 916 | C24: Retten i Holbæk | D24: 49.88 | E24: 38.81 | F24: 128.56 | G24: 117.17 | H24: 345.23 | I24: 368.43 | J24: 70.64 | K24: 101.07
B25: 917 | C25: Retten i Roskilde | D25: 41.38 | E25: 51.27 | F25: 97.47 | G25: 110.88 | H25: 331.77 | I25: 362.93 | J25: 66.13 | K25: 73.2
B26: 918 | C26: Retten i Hillerød | D26: 43.81 | E26: 48.38 | F26: 95.08 | G26: 94.92 | H26: 338.22 | I26: 366.95 | J26: 86.21 | K26: 84.45
B27: 919 | C27: Retten i Helsingør | D27: 53.88 | E27: 51.31 | F27: 126.56 | G27: 122.83 | H27: 344.67 | I27: 350.89 | J27: 120.45 | K27: 108.56
B28: 920 | C28: Retten i Lyngby | D28: 37.25 | E28: 43.77 | F28: 114.83 | G28: 127.74 | H28: 350.27 | I28: 365.57 | J28: 66.66 | K28: 67.75
B29: 921 | C29: Retten i Glostrup | D29: 40.17 | E29: 41.66 | F29: 102.44 | G29: 112.16 | H29: 313.8 | I29: 334.5 | J29: 69.43 | K29: 69.43
B30: 922 | C30: Retten på Frederiksberg | D30: 50.24 | E30: 46.08 | F30: 107.23 | G30: 103.08 | H30: 335.78 | I30: 341.94 | J30: 90 | K30: 71.5
B31: 923 | C31: Københavns Byret | D31: 42.31 | E31: 54.98 | F31: 93.26 | G31: 109.21 | H31: 322.56 | I31: 351.34 | J31: 80.08 | K31: 89.2
B32: 924 | C32: Retten på Bornholm | D32: 27.79 | E32: 23.76 | F32: 37.41 | G32: 35.49 | H32: 303.12 | I32: 298.28 | J32: 37.49 | K32: 41.38

Sheet HR-nøgletal_lønsum
B2: UDVALGTE HR-NØGLETAL
D4: Gnst. antal sygedage pr. ansat | F4: Personaleomsætning (%) | H4: Lønsumsforbrug (mio.) 2018-pl
D5: =Overblik!$D$6 -> 2017 | E5: =Overblik!$E$6 -> 2018 | F5: =Overblik!$D$6 -> 2017 | G5: =Overblik!$E$6 -> 2018 | H5: =Overblik!$D$6 -> 2017 | I5: =Overblik!$E$6 -> 2018
C6: SAMLET BYRETTERNE | D6: 9.783816705 | E6: 9.764627718 | F6: 9.280484834 | G6: 10.33152447 | H6: 32.21947042 | I6: 32.38383151
C7: 5. BEDSTE RET | D7: =SMALL(D9:D32,5) -> 5.333551361 | E7: =SMALL(E9:E32,5) -> 6.637582669
B8: EID | C8: Ret
B9: 901 | C9: Retten i Hjørring | D9: 5.046419979 | E9: 5.730838319 | F9: 2.010494068 | G9: 10.15364941 | H9: 24.26645175 | I9: 24.63338445
B10: 902 | C10: Retten i Aalborg | D10: 6.76901361 | E10: 6.501520143 | F10: 11.8338101 | G10: 12.11743046 | H10: 37.84590127 | I10: 37.55113361
B11: 903 | C11: Retten i Randers | D11: 3.939503049 | E11: 10.27738974 | F11: 3.782834789 | G11: 5.51325207 | H11: 24.61354887 | I11: 25.69024243
B12: 904 | C12: Retten i Århus | D12: 13.80442757 | E12: 16.58179415 | F12: 15.84281489 | G12: 15.63153285 | H12: 43.23246624 | I12: 42.70973142
B13: 905 | C13: Retten i Viborg | D13: 13.87929991 | E13: 13.37190019 | F13: 7.677776741 | G13: 18.18388198 | H13: 24.6956827 | I13: 25.50201953
B14: 906 | C14: Retten i Holstebro | D14: 17.46607961 | E14: 5.036595683 | F14: 2.784766948 | G14: 21.09435374 | H14: 17.77359742 | I14: 18.50196768
B15: 907 | C15: Retten i Herning | D15: 5.333551361 | E15: 6.765788574 | F15: 7.422151788 | G15: 5.628443228 | H15: 19.50974581 | I15: 19.68615417
B16: 908 | C16: Retten i Horsens | D16: 16.0847127 | E16: 12.16187031 | F16: 13.01072294 | G16: 20.93666005 | H16: 22.79152113 | I16: 21.3643055
B17: 909 | C17: Retten i Kolding | D17: 6.743828937 | E17: 8.391346653 | F17: 7.311036601 | G17: 7.1205379 | H17: 34.70803163 | I17: 35.27060904
B18: 910 | C18: Retten i Esbjerg | D18: 12.14565349 | E18: 18.08001835 | F18: 8.613865387 | G18: 11.85258732 | H18: 24.48153157 | I18: 24.48879049
B19: 911 | C19: Retten i Sønderborg | D19: 16.85459244 | E19: 7.159856839 | F19: 11.04904839 | G19: 19.34537469 | H19: 31.37827669 | I19: 30.6269769
B20: 912 | C20: Retten i Odense | D20: 7.514927499 | E20: 8.051195822 | F20: 10.50482438 | G20: 6.960939618 | H20: 37.0122084 | I20: 37.49781746
B21: 913 | C21: Retten i Svendborg | D21: 6.668163574 | E21: 9.574065984 | F21: 11.5170435 | G21: 5.258645265 | H21: 19.09608549 | I21: 19.67457372
B22: 914 | C22: Retten i Nykøbing F. | D22: 4.636120841 | E22: 6.637582669 | F22: 8.51199942 | G22: 8.994663904 | H22: 25.32008281 | I22: 25.1439967
B23: 915 | C23: Retten i Næstved | D23: 9.149256557 | E23: 7.687176755 | F23: 23.3910835 | G23: 4.710463807 | H23: 29.51336587 | I23: 30.50068776
B24: 916 | C24: Retten i Holbæk | D24: 8.902072309 | E24: 5.26581695 | F24: 10.1093667 | G24: 14.8645185 | H24: 22.5590746 | I24: 21.74829751
B25: 917 | C25: Retten i Roskilde | D25: 9.679845664 | E25: 11.85945551 | F25: 4.224425252 | G25: 5.984630325 | H25: 35.54648194 | I25: 36.19257958
B26: 918 | C26: Retten i Hillerød | D26: 6.369150131 | E26: 7.006743778 | F26: 7.978419258 | G26: 7.881058842 | H26: 24.76665329 | I26: 24.90650638
B27: 919 | C27: Retten i Helsingør | D27: 10.39178217 | E27: 11.29010186 | F27: 6.226884515 | G27: 12.37549035 | H27: 23.40220163 | I27: 23.08191679
B28: 920 | C28: Retten i Lyngby | D28: 9.655802825 | E28: 12.46306964 | F28: 10.89434771 | G28: 14.24446056 | H28: 30.210867 | I28: 30.56093986
B29: 921 | C29: Retten i Glostrup | D29: 10.93379319 | E29: 13.04044338 | F29: 10.66483288 | G29: 10.35412234 | H29: 53.09718096 | I29: 52.57323579
B30: 922 | C30: Retten på Frederiksberg | D30: 14.87865078 | E30: 13.12803276 | F30: 8.791300009 | G30: 10.2057964 | H30: 45.87780361 | I30: 45.444564
B31: 923 | C31: Københavns Byret | D31: 8.885792531 | E31: 7.053268655 | F31: 7.219406038 | G31: 5.242178625 | H31: 112.5730252 | I31: 114.8730123
B32: 924 | C32: Retten på Bornholm | D32: 3.273421734 | E32: 11.35858 | F32: 11.35838021 | G32: 10.3713778 | H32: 8.995504153 | I32: 8.9885132
B34: 1) Gennemsnitlig antal sygedage pr. ansat er ekskl. ansatte under socialt kapitel. Deltidssygdom er inkluderet, men barns sygdom, omsorgsdage og særlige feriedage indgår ikke.
B35: 2) Det gennemsnitlige antal sygedage pr. ansat "samlet" er for alle byretter.
B36: 3) Perioden for personaleomsætningen opgøres af ISOLA som rullende år og løber fra november til november.
B37: 4) Lønsumsforbruget inkluderer egentlig løn, over- og merarbejde, stævningsmænd, refusioner og pensionsbidrag og er i faste priser (2018). Lønsummen for 2017 er opregnet til 2018-pl, således at det kan foretages en sammenligning mellem de to år. Samlet vises det gns. lønsumsforbrug pr. byret.

Sheet Årsværk_Pers.kat
B2: ÅRSVÆRKSFORBRUG 2017 OG 2018
D4: Jur | E4: Kon | F4: Elev | G4: Fleks | H4: Øvr. | I4: I ALT | J4: Jur | K4: Kon | L4: Elev | M4: Fleks | N4: Øvr. | O4: I ALT | P4: Jur | Q4: Kon | R4: Elev | S4: Fleks | T4: Øvr. | U4: I ALT | V4: Jur | W4: Kon | X4: Elev | Y4: Fleks | Z4: Øvr. | AA4: I ALT
D5: =Overblik!$D$6 -> 2017 | J5: =Overblik!$E$6 -> 2018 | P5: =Overblik!$D$6 -> 2017 | V5: =Overblik!$E$6 -> 2018
D6: - absolutte tal - | J6: - absolutte tal - | P6: - indeks - | V6: - indeks -
C8: SAMLET BYRETTERNE | D8: =SUM(D10:D33) -> 412.4092 | E8: 787.60291 | F8: 72.60373 | G8: 44.61379 | H8: 87.16508 | I8: =SUM(I10:I33) -> 1404.39471 | J8: 408.47744 | K8: 791.71393 | L8: 66.22139 | M8: 43.36902 | N8: 89.30087 | O8: =SUM(O10:O33) -> 1399.08265 | P8: 100 | Q8: 100 | R8: 100 | S8: 100 | T8: 100 | U8: 100 | V8: =J8*100/D8 -> 99.04663621 | W8: =K8*100/E8 -> 100.5219661 | X8: =L8*100/F8 -> 91.20934971 | Y8: 97.20989855 | Z8: 102.4502817 | AA8: =O8*100/I8 -> 99.62175449
B9: EID | C9: Ret
B10: 901 | C10: Retten i Hjørring | D10: 12.0152 | E10: 28.8538 | F10: 1.95973 | G10: 2.75046 | H10: 3.0198 | I10: 48.59899 | J10: 12.88924 | K10: 26.81338 | L10: 1.84593 | M10: 2.64116 | N10: 3.26772 | O10: 47.45743 | P10: 100 | Q10: 100 | R10: 100 | S10: 100 | T10: 100 | U10: 100 | V10: =J10*100/D10 -> 107.2744524 | W10: =K10*100/E10 -> 92.92841844 | X10: 94.19307762 | Y10: 96.02611927 | Z10: 108.2098152 | AA10: 97.6510623
B11: 902 | C11: Retten i Aalborg | D11: 20.04874 | E11: 40.77501 | F11: 4.36544 | G11: 2.11826 | H11: 3.49311 | I11: 70.80056 | J11: 19.47866 | K11: 41.1891 | L11: 3.98035 | M11: 2.81258 | N11: 3.48658 | O11: 70.94727 | P11: 100 | Q11: 100 | R11: 100 | S11: 100 | T11: 100 | U11: 100 | V11: =J11*100/D11 -> 97.15652954 | W11: =K11*100/E11 -> 101.0155485 | X11: =L11*100/F11 -> 91.17866698 | Y11: =M11*100/G11 -> 132.777846 | Z11: =N11*100/H11 -> 99.81306057 | AA11: =O11*100/I11 -> 100.2072159
B12: 903 | C12: Retten i Randers | D12: 12.6618 | E12: 23.96233 | F12: 2.91274 | G12: 2.22419 | H12: 4.42877 | I12: 46.18983 | J12: 12.61336 | K12: 26.26789 | L12: 2.73323 | M12: 1.70287 | N12: 2.59282 | O12: 45.91017 | P12: 100 | Q12: 100 | R12: 100 | S12: 100 | T12: 100 | U12: 100 | V12: 99.61743196 | W12: 109.6216019 | X12: =L12*100/F12 -> 93.83707437 | Y12: 76.56135492 | Z12: 58.54492331 | AA12: 99.39454205
B13: 904 | C13: Retten i Århus | D13: 23.41791 | E13: 44.89386 | F13: 2.03552 | G13: 2.40562 | H13: 4.53097 | I13: 77.28388 | J13: 22.51301 | K13: 43.37522 | L13: 1.86086 | M13: 2.90098 | N13: 5.48146 | O13: 76.13153 | P13: 100 | Q13: 100 | R13: 100 | S13: 100 | T13: 100 | U13: 100 | V13: 96.13586353 | W13: 96.6172657 | X13: 91.41939161 | Y13: 120.5917809 | Z13: 120.9776273 | AA13: 98.50893873
B14: 905 | C14: Retten i Viborg | D14: 13.99941 | E14: 24.05859 | F14: 4.03306 | G14: 2.00006 | H14: 3.62479 | I14: 47.71591 | J14: 13.51215 | K14: 26.61592 | L14: 3.97077 | M14: 2.00006 | N14: 3.76908 | O14: 49.86798 | P14: 100 | Q14: 100 | R14: 100 | S14: 100 | T14: 100 | U14: 100 | V14: 96.51942475 | W14: 110.6295922 | X14: 98.45551517 | Y14: 100 | Z14: 103.9806444 | AA14: 104.5101728
B15: 906 | C15: Retten i Holstebro | D15: 7.80251 | E15: 18.67454 | F15: 1.70836 | G15: 2.24396 | H15: 2.38801 | I15: 32.81738 | J15: 8.34288 | K15: 19.72015 | L15: 1.24088 | M15: 2.60262 | N15: 2.08866 | O15: 33.99519 | P15: 100 | Q15: 100 | R15: 100 | S15: 100 | T15: 100 | U15: 100 | V15: 106.9255919 | W15: 105.5991205 | X15: 72.63574422 | Y15: 115.9833509 | Z15: 87.46445785 | AA15: 103.5889824
B16: 907 | C16: Retten i Herning | D16: 11.25485 | E16: 20.28622 | F16: 3.02325 | G16: 0.34975 | H16: 2.29879 | I16: 37.21286 | J16: 11.22781 | K16: 20.51485 | L16: 3.15845 | M16: 0 | N16: 2.00006 | O16: 36.90117 | P16: 100 | Q16: 100 | R16: 100 | S16: 100 | T16: 100 | U16: 100 | V16: 99.75974802 | W16: 101.1270212 | X16: 104.4720086 | Y16: - | Z16: 87.00490258 | AA16: 99.16241321
B17: 908 | C17: Retten i Horsens | D17: 12.80383 | E17: 18.51828 | F17: 3.85349 | G17: 4.31629 | H17: 4.43822 | I17: 43.93011 | J17: 11.43512 | K17: 18.6924 | L17: 3.0775 | M17: 3.77254 | N17: 4.48525 | O17: 41.46281 | P17: 100 | Q17: 100 | R17: 100 | S17: 100 | T17: 100 | U17: 100 | V17: 89.31015173 | W17: 100.9402601 | X17: 79.86266994 | Y17: =M17*100/G17 -> 87.40237565 | Z17: 101.0596591 | AA17: 94.38357883
B18: 909 | C18: Retten i Kolding | D18: 18.68477 | E18: 36.50969 | F18: 3.33845 | G18: 3.00009 | H18: 3.39323 | I18: 64.92623 | J18: 19.64304 | K18: 36.20283 | L18: 3.41456 | M18: 3.00009 | N18: 3.3865 | O18: 65.64702 | P18: 100 | Q18: 100 | R18: 100 | S18: 100 | T18: 100 | U18: 100 | V18: 105.1286154 | W18: 99.1595108 | X18: 102.2798005 | Y18: 100 | Z18: 99.8016639 | AA18: 101.1101676
B19: 910 | C19: Retten i Esbjerg | D19: 13.98469 | E19: 26.00158 | F19: 3.13078 | G19: 1.00003 | H19: 2.95659 | I19: 47.07367 | J19: 13.10119 | K19: 25.97283 | L19: 2.19643 | M19: 0.88399 | N19: 2.69001 | O19: 44.84445 | P19: 100 | Q19: 100 | R19: 100 | S19: 100 | T19: 100 | U19: 100 | V19: 93.68237694 | W19: 99.8894298 | X19: 70.15599946 | Y19: 88.39634811 | Z19: 90.9835317 | AA19: 95.26440152
B20: 911 | C20: Retten i Sønderborg | D20: 16.56155 | E20: 29.24831 | F20: 2.13073 | G20: 1.00003 | H20: 4.03272 | I20: 52.97334 | J20: 14.82488 | K20: 30.28972 | L20: 2.20293 | M20: 1.00003 | N20: 3.8812 | O20: 52.19876 | P20: 100 | Q20: 100 | R20: 100 | S20: 100 | T20: 100 | U20: 100 | V20: 89.51384381 | W20: 103.5605818 | X20: 103.38851 | Y20: 100 | Z20: 96.24273443 | AA20: 98.53779278
B21: 912 | C21: Retten i Odense | D21: 20.31509 | E21: 40.75796 | F21: 2.44719 | G21: 1.07019 | H21: 4.27753 | I21: 68.86796 | J21: 18.98083 | K21: 42.31545 | L21: 2.66678 | M21: 1.08503 | N21: 4.00938 | O21: 69.05747 | P21: 100 | Q21: 100 | R21: 100 | S21: 100 | T21: 100 | U21: 100 | V21: 93.43217283 | W21: 103.8213149 | X21: 108.9731488 | Y21: 101.3866697 | Z21: 93.73119534 | AA21: 100.2751788
B22: 913 | C22: Retten i Svendborg | D22: 10.03782 | E22: 19.02911 | F22: 1.99568 | G22: 1.00003 | H22: 2.95098 | I22: 35.01362 | J22: 10.38663 | K22: 19.45462 | L22: 1.23509 | M22: 1.00003 | N22: 3.74306 | O22: 35.81943 | P22: 100 | Q22: 100 | R22: 100 | S22: 100 | T22: 100 | U22: 100 | V22: 103.4749577 | W22: 102.2361004 | X22: 61.88817847 | Y22: 100 | Z22: 126.8412527 | AA22: 102.3014187
B23: 914 | C23: Retten i Nykøbing F. | D23: 12.63913 | E23: 29.83541 | F23: 1.18053 | G23: 0.27914 | H23: 2.94685 | I23: 46.88106 | J23: 12.65826 | K23: 30.50041 | L23: 1.33339 | M23: 0.4551 | N23: 2.48083 | O23: 47.42799 | P23: 100 | Q23: 100 | R23: 100 | S23: 100 | T23: 100 | U23: 100 | V23: 100.1513554 | W23: 102.2288951 | X23: 112.9484215 | Y23: - | Z23: 84.18582554 | AA23: 101.1666332
B24: 915 | C24: Retten i Næstved | D24: 14.97519 | E24: 34.13728 | F24: 3.26313 | G24: 3.56278 | H24: 3.19346 | I24: 59.13184 | J24: 16.5859 | K24: 34.38183 | L24: 1.9957 | M24: 2.65789 | N24: 2.98405 | O24: 58.60537 | P24: 100 | Q24: 100 | R24: 100 | S24: 100 | T24: 100 | U24: 100 | V24: 110.7558569 | W24: 100.7163722 | X24: 61.1590712 | Y24: 74.60157517 | Z24: 93.44253568 | AA24: 99.10966748
B25: 916 | C25: Retten i Holbæk | D25: 12.33761 | E25: 25.08114 | F25: 2.62766 | G25: 2.26972 | H25: 1.57737 | I25: 43.8935 | J25: 11.24375 | K25: 23.78151 | L25: 2.00008 | M25: 2.34159 | N25: 2.69846 | O25: 42.06539 | P25: 100 | Q25: 100 | R25: 100 | S25: 100 | T25: 100 | U25: 100 | V25: 91.13393923 | W25: 94.81829773 | X25: 76.11639253 | Y25: 103.1664699 | Z25: 171.073369 | AA25: 95.83512365
B26: 917 | C26: Retten i Roskilde | D26: 18.99181 | E26: 36.56497 | F26: 3.40084 | G26: 1.2433 | H26: 2.47327 | I26: 62.67419 | J26: 19.60239 | K26: 37.85466 | L26: 2.32463 | M26: 1.28477 | N26: 2.20523 | O26: 63.27168 | P26: 100 | Q26: 100 | R26: 100 | S26: 100 | T26: 100 | U26: 100 | V26: 103.2149648 | W26: 103.527119 | X26: 68.35458299 | Y26: 103.3354782 | Z26: 89.16252573 | AA26: 100.953327
B27: 918 | C27: Retten i Hillerød | D27: 14.08489 | E27: 21.79332 | F27: 2.75013 | G27: 2.74964 | H27: 5.07171 | I27: 46.44969 | J27: 13.3924 | K27: 21.72779 | L27: 2.92838 | M27: 2.82387 | N27: 5.93439 | O27: 46.80683 | P27: 100 | Q27: 100 | R27: 100 | S27: 100 | T27: 100 | U27: 100 | V27: 95.08345468 | W27: 99.69931153 | X27: 106.4815118 | Y27: 102.6996261 | Z27: 117.0096476 | AA27: 100.7688749
B28: 919 | C28: Retten i Helsingør | D28: 12.97882 | E28: 22.99761 | F28: 2.76201 | G28: 3.10134 | H28: 1.86111 | I28: 43.70089 | J28: 12.74285 | K28: 23.03527 | L28: 2.46717 | M28: 2.56766 | N28: 2.48874 | O28: 43.30169 | P28: 100 | Q28: 100 | R28: 100 | S28: 100 | T28: 100 | U28: 100 | V28: 98.18188402 | W28: 100.1637561 | X28: 89.32516537 | Y28: =M28*100/G28 -> 82.79195445 | Z28: 133.7234231 | AA28: 99.08651746
B29: 920 | C29: Retten i Lyngby | D29: 17.84505 | E29: 30.00472 | F29: 2.38272 | G29: 0.91984 | H29: 3.03377 | I29: 54.1861 | J29: 16.20458 | K29: 28.25268 | L29: 4.64175 | M29: 0.91891 | N29: 2.842 | O29: 52.85992 | P29: 100 | Q29: 100 | R29: 100 | S29: 100 | T29: 100 | U29: 100 | V29: 90.8071426 | W29: 94.16078537 | X29: 194.8088739 | Y29: - | Z29: 93.67882206 | AA29: 97.55254576
B30: 921 | C30: Retten i Glostrup | D30: 29.82185 | E30: 56.2308 | F30: 4.51074 | G30: 2.00006 | H30: 4.49778 | I30: 97.06123 | J30: 29.4054 | K30: 54.92075 | L30: 3.64066 | M30: 1.81047 | N30: 4.78019 | O30: 94.55747 | P30: 100 | Q30: 100 | R30: 100 | S30: 100 | T30: 100 | U30: 100 | V30: 98.60354069 | W30: 97.67022699 | X30: 80.71092548 | Y30: 90.52078438 | Z30: 106.2788754 | AA30: 97.42043244
B31: 922 | C31: Retten på Frederiksberg | D31: 22.92363 | E31: 40.91034 | F31: 3.97373 | G31: 3.00901 | H31: 5.96622 | I31: 76.78293 | J31: 24.80539 | K31: 41.52306 | L31: 3.30242 | M31: 3.10678 | N31: 5.17044 | O31: 77.90809 | P31: 100 | Q31: 100 | R31: 100 | S31: 100 | T31: 100 | U31: 100 | V31: 108.2088221 | W31: 101.4977143 | X31: 83.10630063 | Y31: 103.2492414 | Z31: 86.66190653 | AA31: 101.4653778
B32: 923 | C32: Københavns Byret | D32: 58.98521 | E32: 111.3889 | F32: 6.61447 | G32: 0 | H32: 9.19556 | I32: 186.18414 | J32: 59.50228 | K32: 111.3338 | L32: 6.0757 | M32: 0 | N32: 11.27432 | O32: 188.1861 | P32: 100 | Q32: 100 | R32: 100 | S32: 100 | T32: 100 | U32: 100 | V32: 100.8766096 | W32: 99.95053367 | X32: 91.85467619 | Y32: - | Z32: 122.6061273 | AA32: 101.0752581
B33: 924 | C33: Retten på Bornholm | D33: 3.23784 | E33: 7.08914 | F33: 2.20335 | G33: 0 | H33: 1.51447 | I33: 14.0448 | J33: 3.38544 | K33: 6.97781 | L33: 1.92775 | M33: 0 | N33: 1.56044 | O33: 13.85144 | P33: 100 | Q33: 100 | R33: 100 | S33: 100 | T33: 100 | U33: 100 | V33: 104.5585946 | W33: 98.42956974 | X33: 87.49177389 | Y33: - | Z33: 103.0353853 | AA33: 98.6232627
B34: 1) Det opgjorte årsværksforbrug er inkl. de korrektioner, der foretages som led i produktivitetsberegningen, hvorfor det ikke kan stemmes af i forhold til eksempelvis prognoseværktøjet SOL.

Sheet Årsværk_Sagsområder
B2: ÅRSVÆRKSFORBRUG DE ENKELTE SAGSOMRÅDER I 2018
E4: Straf | G4: Civil | I4: Foged | K4: Skifte | M4: Notarial
E5: Årsværk | F5: % | G5: Årsværk | H5: % | I5: Årsværk | J5: % | K5: Årsværk | L5: % | M5: Årsværk | N5: %
C7: SAMLET BYRETTERNE | D7: Jurister | E7: 175.2557611 | F7: 0.4290463656 | G7: 134.5174814 | H7: 0.3293143468 | I7: 37.7034104 | J7: 0.09230230781 | K7: 31.89839059 | L7: 0.07809094816 | M7: 0.5211885563 | N7: 0.001275929844
D8: Kontor | E8: 212.4983602 | F8: 0.2684029574 | G8: 140.9483985 | H8: 0.1780294538 | I8: 185.6220435 | J8: 0.2344559524 | K8: 140.0316743 | L8: 0.1768715554 | M8: 16.34254701 | N8: 0.02064198493
D9: Elev | E9: 16.37970675 | F9: 0.2473476735 | G9: 8.275361802 | H9: 0.1249650876 | I9: 17.37839188 | J9: 0.2624286787 | K9: 15.96829913 | L9: 0.2411350643 | M9: 0.2350787084 | N9: 0.003549890879
D10: Fleks | E10: 5.725873055 | F10: 0.1320268029 | G10: 7.080034665 | H10: 0.1632509719 | I10: 9.622166018 | J10: 0.2218672688 | K10: 4.182981976 | L10: 0.09645092224 | M10: 2.118354776 | N10: 0.04884488457
D11: Øvrige | E11: 10.58711537 | F11: 0.1185555681 | G11: 3.568925333 | H11: 0.03996517988 | I11: 6.969662053 | J11: 0.07804696699 | K11: 1.463801565 | L11: 0.01639179512 | M11: 0.6013875042 | N11: 0.006734396924
B12: EID | C12: Ret
B13: 901 | C13: Retten i Hjørring | D13: Jurister | E13: 4.896647272 | F13: 0.3799019393 | G13: 4.835848565 | H13: 0.3751849267 | I13: 1.250391306 | J13: 0.09701047585 | K13: 0.9548412316 | L13: 0.0740804913 | M13: 0.004080465497 | N13: 0.0003165792163
B14: 901 | C14: Retten i Hjørring | D14: Kontor | E14: 6.241517584 | F14: 0.2327762328 | G14: 4.635582652 | H14: 0.1728831894 | I14: 7.323006111 | J14: 0.2731101454 | K14: 5.57482608 | L14: 0.2079120976 | M14: 0.6213786242 | N14: 0.02317419975
B15: 901 | C15: Retten i Hjørring | D15: Elev | E15: 0.5696124213 | F15: 0.3085774766 | G15: 0.6228524116 | H15: 0.3374193017 | I15: 0.5997532531 | J15: 0.3249057402 | K15: 0.002860327443 | L15: 0.001549531912 | M15: 0 | N15: 0
B16: 901 | C16: Retten i Hjørring | D16: Fleks | E16: 1.006798975 | F16: 0.3811957531 | G16: 0.989505266 | H16: 0.3746479827 | I16: 0.2073540163 | J16: 0.07850869174 | K16: 0.4312306624 | L16: 0.1632732066 | M16: 0 | N16: 0
B17: 901 | C17: Retten i Hjørring | D17: Øvrige | E17: 0.1241516918 | F17: 0.03799336902 | G17: 0.1814659194 | H17: 0.05553288514 | I17: 0.2637099315 | J17: 0.08070150793 | K17: 0.0007007335423 | L17: 0.0002144411217 | M17: 0 | N17: 0
B18: 902 | C18: Retten i Aalborg | D18: Jurister | E18: 8.02009387 | F18: 0.4117374537 | G18: 6.482294317 | H18: 0.3327895408 | I18: 2.123790516 | J18: 0.1090316539 | K18: 1.902593109 | L18: 0.09767576973 | M18: 0.001408579814 | N18: 7.231399972e-05
B19: 902 | C19: Retten i Aalborg | D19: Kontor | E19: 9.65337676 | F19: 0.2343672661 | G19: 7.237869336 | H19: 0.17572293 | I19: 9.775324113 | J19: 0.2373279366 | K19: 9.045581914 | L19: 0.2196110601 | M19: 0.7614197647 | N19: 0.01848595295
B20: 902 | C20: Retten i Aalborg | D20: Elev | E20: 0.4347172344 | F20: 0.1092158314 | G20: 0.6828028311 | H20: 0.1715434148 | I20: 1.486989387 | J20: 0.373582571 | K20: 0.9875019436 | L20: 0.2480942489 | M20: 0.001081637085 | N20: 0.0002717442147
B21: 902 | C21: Retten i Aalborg | D21: Fleks | E21: 0.9045253201 | F21: 0.321599855 | G21: 0.00896047318 | H21: 0.0031858554 | I21: 0.6989182046 | J21: 0.2484971821 | K21: 0.5286067162 | L21: 0.1879437087 | M21: 0 | N21: 0
B22: 902 | C22: Retten i Aalborg | D22: Øvrige | E22: 0.654186141 | F22: 0.1876297521 | G22: 0.3780200479 | H22: 0.1084214468 | I22: 1.39226949 | J22: 0.399322399 | K22: 0 | L22: 0 | M22: 0 | N22: 0
B23: 903 | C23: Retten i Randers | D23: Jurister | E23: 4.452074231 | F23: 0.3529649697 | G23: 4.496682559 | H23: 0.3565015633 | I23: 1.292025181 | J23: 0.1024330694 | K23: 1.219237575 | L23: 0.09666239412 | M23: 0.0004442943836 | N23: 3.522411028e-05
B24: 903 | C24: Retten i Randers | D24: Kontor | E24: 6.122240254 | F24: 0.2330693578 | G24: 6.073547961 | H24: 0.2312156767 | I24: 5.640070949 | J24: 0.2147135133 | K24: 5.87034579 | L24: 0.2234799137 | M24: 0.4957513638 | N24: 0.01887290391
B25: 903 | C25: Retten i Randers | D25: Elev | E25: 1.018422162 | F25: 0.3726075605 | G25: 0.1871048491 | H25: 0.06845558152 | I25: 0.752228141 | J25: 0.275215822 | K25: 0.7659994031 | L25: 0.280254279 | M25: 0 | N25: 0
B26: 903 | C26: Retten i Randers | D26: Fleks | E26: 0.005801107576 | F26: 0.003406664969 | G26: 0.2282196907 | H26: 0.1340206186 | I26: 0.006334723198 | J26: 0.003720027482 | K26: 0.1165147983 | L26: 0.06842260321 | M26: 0.04966308071 | N26: 0.02916434062
B27: 903 | C27: Retten i Randers | D27: Øvrige | E27: 0.0624976971 | F27: 0.02410414032 | G27: 0.2158681714 | H27: 0.08325613478 | I27: 0.895372422 | J27: 0.345327644 | K27: 0.2120175751 | L27: 0.08177103505 | M27: 0 | N27: 0
B28: 904 | C28: Retten i Århus | D28: Jurister | E28: 10.02076157 | F28: 0.4451098086 | G28: 7.004363683 | H28: 0.3111251531 | I28: 1.640833543 | J28: 0.07288379221 | K28: 2.329842758 | L28: 0.1034887275 | M28: 0.01496925335 | N28: 0.0006649156799
B29: 904 | C29: Retten i Århus | D29: Kontor | E29: 15.9967882 | F29: 0.3688001629 | G29: 7.035678915 | H29: 0.1622050312 | I29: 7.864540619 | J29: 0.1813141379 | K29: 7.790475085 | L29: 0.1796065838 | M29: 0.9495099065 | N29: 0.02189060728
B30: 904 | C30: Retten i Århus | D30: Elev | E30: 0.2030748258 | F30: 0.1091295561 | G30: 0.3981266411 | H30: 0.2139476592 | I30: 0.6249889893 | J30: 0.3358602954 | K30: 0.5177194804 | L30: 0.2782151695 | M30: 0.001956969145 | N30: 0.001051647703
B31: 904 | C31: Retten i Århus | D31: Fleks | E31: 0.4732652017 | F31: 0.1631397671 | G31: 0.2816013049 | H31: 0.09707109489 | I31: 0.9537652979 | J31: 0.3287734827 | K31: 0 | L31: 0 | M31: 0 | N31: 0
B32: 904 | C32: Retten i Århus | D32: Øvrige | E32: 1.417027053 | F32: 0.2585127052 | G32: 0.06854602105 | H32: 0.01250506636 | I32: 0.1866675424 | J32: 0.03405434727 | K32: 0.1274172315 | L32: 0.02324512658 | M32: 0 | N32: 0
B33: 905 | C33: Retten i Viborg | D33: Jurister | E33: 4.808400592 | F33: 0.3558575498 | G33: 4.709055317 | H33: 0.3485052576 | I33: 1.445267887 | J33: 0.106960616 | K33: 1.455302788 | L33: 0.1077032736 | M33: 0.02425902414 | N33: 0.001795348937
B34: 905 | C34: Retten i Viborg | D34: Kontor | E34: 6.380887685 | F34: 0.2397395125 | G34: 4.623546662 | H34: 0.1737135768 | I34: 6.844880388 | J34: 0.2571724137 | K34: 4.700975646 | L34: 0.1766226997 | M34: 0.8397873896 | N34: 0.0315520707
B35: 905 | C35: Retten i Viborg | D35: Elev | E35: 1.063742633 | F35: 0.2678932884 | G35: 0.387367593 | H35: 0.0975547798 | I35: 1.295605121 | J35: 0.3262856123 | K35: 0.9042652192 | L35: 0.227730445 | M35: 0.01607999946 | N35: 0.00404959226
B36: 905 | C36: Retten i Viborg | D36: Fleks | E36: 0.5243255508 | F36: 0.2621549107 | G36: 0.6628905458 | H36: 0.3314353299 | I36: 0.7404194423 | J36: 0.3701986152 | K36: 0 | L36: 0 | M36: 0 | N36: 0
B37: 905 | C37: Retten i Viborg | D37: Øvrige | E37: 0.2033065286 | F37: 0.0539406244 | G37: 0.001841020868 | H37: 0.0004884536459 | I37: 0.8095919866 | J37: 0.2147983027 | K37: 0.006628806598 | L37: 0.001758733324 | M37: 0 | N37: 0
B38: 906 | C38: Retten i Holstebro | D38: Jurister | E38: 3.347346515 | F38: 0.401221942 | G38: 2.310990039 | H38: 0.2770014718 | I38: 0.6894186367 | J38: 0.0826355691 | K38: 1.065727231 | L38: 0.1277409277 | M38: 0.02089653799 | N38: 0.002504715157
B39: 906 | C39: Retten i Holstebro | D39: Kontor | E39: 4.490225316 | F39: 0.2276973205 | G39: 3.269895728 | H39: 0.1658149521 | I39: 5.016157508 | J39: 0.2543671072 | K39: 5.112629149 | L39: 0.259259141 | M39: 0.4835508359 | N39: 0.02452064695
B40: 906 | C40: Retten i Holstebro | D40: Elev | E40: 0.5272454171 | F40: 0.4248963776 | G40: 0.1457594399 | H40: 0.1174645735 | I40: 0.1624995167 | J40: 0.1309550615 | K40: 0.3495064924 | L40: 0.2816601867 | M40: 0.006122074441 | N40: 0.004933655504
B41: 906 | C41: Retten i Holstebro | D41: Fleks | E41: 0.1763255106 | F41: 0.06774923371 | G41: 0.3150981467 | H41: 0.121069594 | I41: 0.04659459766 | J41: 0.01790295843 | K41: 0.04833885603 | L41: 0.01857315168 | M41: 0.001816491557 | N41: 0.0006979472827
B42: 906 | C42: Retten i Holstebro | D42: Øvrige | E42: 0 | F42: 0 | G42: 0 | H42: 0 | I42: 0 | J42: 0 | K42: 0 | L42: 0 | M42: 0 | N42: 0
B43: 907 | C43: Retten i Herning | D43: Jurister | E43: 4.899057674 | F43: 0.4363324348 | G43: 3.592313568 | H43: 0.3199478409 | I43: 1.04956835 | J43: 0.09347934725 | K43: 1.240515246 | L43: 0.1104859493 | M43: 0.02723965538 | N43: 0.002426088025
B44: 907 | C44: Retten i Herning | D44: Kontor | E44: 5.570969411 | F44: 0.2715578915 | G44: 2.901825148 | H44: 0.1414499812 | I44: 6.031293697 | J44: 0.2939964805 | K44: 3.952273863 | L44: 0.1926542901 | M44: 0.5929407021 | N44: 0.02890299964
B45: 907 | C45: Retten i Herning | D45: Elev | E45: 0.401245596 | F45: 0.1270387677 | G45: 0.04513857198 | H45: 0.01429136823 | I45: 1.344591034 | J45: 0.4257123064 | K45: 1.099101717 | L45: 0.3479876891 | M45: 0.0189085698 | N45: 0.005986661115
B46: 907 | C46: Retten i Herning | D46: Fleks | E46: 0 | F46: - | G46: 0 | H46: - | I46: 0 | J46: - | K46: 0 | L46: - | M46: 0 | N46: -
B47: 907 | C47: Retten i Herning | D47: Øvrige | E47: 0 | F47: 0 | G47: 0 | H47: 0 | I47: 0 | J47: 0 | K47: 0 | L47: 0 | M47: 0 | N47: 0
B48: 908 | C48: Retten i Horsens | D48: Jurister | E48: 3.996807345 | F48: 0.3495203675 | G48: 4.376900256 | H48: 0.3827594513 | I48: 1.080878171 | J48: 0.09452267849 | K48: 1.26685725 | L48: 0.1107865287 | M48: 0.02550571091 | N48: 0.002230471644
B49: 908 | C49: Retten i Horsens | D49: Kontor | E49: 3.514670302 | F49: 0.1880267008 | G49: 2.154001891 | H49: 0.1152341 | I49: 5.34323318 | J49: 0.2858505692 | K49: 4.174251102 | L49: 0.2233127422 | M49: 0.6565631656 | N49: 0.03512460495
B50: 908 | C50: Retten i Horsens | D50: Elev | E50: 0.366115926 | F50: 0.1189653699 | G50: 0.3616101103 | H50: 0.1175012544 | I50: 0.9309229891 | J50: 0.302493254 | K50: 0.726651442 | L50: 0.2361174466 | M50: 0.09626043526 | N50: 0.03127877669
B51: 908 | C51: Retten i Horsens | D51: Fleks | E51: 0.08276984029 | F51: 0.02194008289 | G51: 1.306385439 | H51: 0.3462880285 | I51: 0.5095253159 | J51: 0.1350616073 | K51: 0.9470000832 | L51: 0.2510245307 | M51: 0.02977039711 | N51: 0.007891340347
B52: 908 | C52: Retten i Horsens | D52: Øvrige | E52: 0.888634824 | F52: 0.1981238112 | G52: 0.0442087916 | H52: 0.009856483274 | I52: 0.697862095 | J52: 0.1555904565 | K52: 0.2544975839 | L52: 0.05674100304 | M52: 0.19212364 | N52: 0.04283454434
B53: 909 | C53: Retten i Kolding | D53: Jurister | E53: 9.403056489 | F53: 0.4786966014 | G53: 6.67819746 | H53: 0.3399777967 | I53: 1.403808581 | J53: 0.07146595337 | K53: 0.9100191065 | L53: 0.04632781415 | M53: 0.03107726238 | N53: 0.001582100448
B54: 909 | C54: Retten i Kolding | D54: Kontor | E54: 8.81738348 | F54: 0.2435550889 | G54: 7.652804075 | H54: 0.2113869019 | I54: 8.642941143 | J54: 0.2387366165 | K54: 6.784271202 | L54: 0.1873961567 | M54: 0.9724305614 | N54: 0.02686062281
B55: 909 | C55: Retten i Kolding | D55: Elev | E55: 1.094121414 | F55: 0.3204282292 | G55: 0.2685708037 | H55: 0.07865458615 | I55: 0.8282686017 | J55: 0.2425696434 | K55: 0.7084559008 | L55: 0.2074808763 | M55: 0.01954320445 | N55: 0.0057234913
B56: 909 | C56: Retten i Kolding | D56: Fleks | E56: 1.00003 | F56: 0.3333333333 | G56: 0 | H56: 0 | I56: 1.00003 | J56: 0.3333333333 | K56: 0 | L56: 0 | M56: 0 | N56: 0
B57: 909 | C57: Retten i Kolding | D57: Øvrige | E57: 0 | F57: 0 | G57: 0.338378154 | H57: 0.09991972655 | I57: 0.04249738536 | J57: 0.01254905813 | K57: 0 | L57: 0 | M57: 0 | N57: 0
B58: 910 | C58: Retten i Esbjerg | D58: Jurister | E58: 6.924080572 | F58: 0.5285077594 | G58: 2.774057677 | H58: 0.2117408936 | I58: 1.541912609 | J58: 0.1176925615 | K58: 0.7415937668 | L58: 0.05660506922 | M58: 0.04765601734 | N58: 0.003637533486
B59: 910 | C59: Retten i Esbjerg | D59: Kontor | E59: 6.888928652 | F59: 0.2652359659 | G59: 4.029219968 | H59: 0.1551321118 | I59: 7.193605967 | J59: 0.2769665826 | K59: 5.537880664 | L59: 0.2132182232 | M59: 0.5329927561 | N59: 0.02052116601
B60: 910 | C60: Retten i Esbjerg | D60: Elev | E60: 0.6136223286 | F60: 0.2793725858 | G60: 0.2824682764 | H60: 0.1286033593 | I60: 0.2430364934 | J60: 0.1106506892 | K60: 0.9813436652 | L60: 0.4467903212 | M60: 0.008329320486 | N60: 0.003792208487
B61: 910 | C61: Retten i Esbjerg | D61: Fleks | E61: 0 | F61: 0 | G61: 0 | H61: 0 | I61: 0 | J61: 0 | K61: 0.8735492982 | L61: 0.9881891178 | M61: 0.01029425661 | N61: 0.01164521839
B62: 910 | C62: Retten i Esbjerg | D62: Øvrige | E62: 0 | F62: 0 | G62: 0.1260268695 | H62: 0.04684996318 | I62: 0 | J62: 0 | K62: 0 | L62: 0 | M62: 0 | N62: 0
B63: 911 | C63: Retten i Sønderborg | D63: Jurister | E63: 5.829367776 | F63: 0.3932151745 | G63: 5.436702989 | H63: 0.3667282965 | I63: 1.473647964 | J63: 0.09940370267 | K63: 0.9227408053 | L63: 0.06224271665 | M63: 0.01105437082 | N63: 0.0007456634267
B64: 911 | C64: Retten i Sønderborg | D64: Kontor | E64: 7.590302906 | F64: 0.2505900651 | G64: 5.937909347 | H64: 0.1960371158 | I64: 6.541584631 | J64: 0.2159671542 | K64: 5.516436448 | L64: 0.1821223982 | M64: 0.8485720852 | N64: 0.0280151842
B65: 911 | C65: Retten i Sønderborg | D65: Elev | E65: 0.6805045396 | F65: 0.3089088349 | G65: 0.4862638822 | H65: 0.2207350584 | I65: 0.4162418443 | J65: 0.1889491924 | K65: 0.4944280526 | L65: 0.2244411092 | M65: 0 | N65: 0
B66: 911 | C66: Retten i Sønderborg | D66: Fleks | E66: 0 | F66: 0 | G66: 0 | H66: 0 | I66: 0 | J66: 0 | K66: 0 | L66: 0 | M66: 0 | N66: 0
B67: 911 | C67: Retten i Sønderborg | D67: Øvrige | E67: 0.0003368362665 | F67: 8.678662952e-05 | G67: 0.2265701681 | H67: 0.05837631868 | I67: 0.1342955744 | J67: 0.03460155993 | K67: 0.001814730217 | L67: 0.0004675693644 | M67: 0.07259387938 | N67: 0.01870397799
B68: 912 | C68: Retten i Odense | D68: Jurister | E68: 7.47810089 | F68: 0.3939817642 | G68: 5.636716154 | H68: 0.2969688973 | I68: 2.291341143 | J68: 0.1207187011 | K68: 1.568596555 | L68: 0.08264109394 | M68: 0.02437287162 | N68: 0.001284078284
B69: 912 | C69: Retten i Odense | D69: Kontor | E69: 13.65389394 | F69: 0.3226692364 | G69: 6.647940116 | H69: 0.1571043228 | I69: 9.439619143 | J69: 0.2230773664 | K69: 9.126294998 | L69: 0.2156728807 | M69: 0.615897528 | N69: 0.01455490909
B70: 912 | C70: Retten i Odense | D70: Elev | E70: 0.8128652143 | F70: 0.3048115009 | G70: 0.1626152614 | H70: 0.06097813144 | I70: 0.873206221 | J70: 0.3274384167 | K70: 0.7726678721 | L70: 0.2897381382 | M70: 0.002234042718 | N70: 0.0008377304157
B71: 912 | C71: Retten i Odense | D71: Fleks | E71: 0 | F71: 0 | G71: 0 | H71: 0 | I71: 0.6075323037 | J71: 0.5599221254 | K71: 0 | L71: 0 | M71: 0 | N71: 0
B72: 912 | C72: Retten i Odense | D72: Øvrige | E72: 0.005941949935 | F72: 0.001482012165 | G72: 0 | H72: 0 | I72: 0.01212723557 | J72: 0.003024715933 | K72: 0 | L72: 0 | M72: 0 | N72: 0
B73: 913 | C73: Retten i Svendborg | D73: Jurister | E73: 4.316264163 | F73: 0.4155596342 | G73: 3.456925237 | H73: 0.332824529 | I73: 1.128614289 | J73: 0.1086602959 | K73: 0.6841622824 | L73: 0.06586951518 | M73: 0.0007099443333 | N73: 6.835174963e-05
B74: 913 | C74: Retten i Svendborg | D74: Kontor | E74: 6.052412865 | F74: 0.3111041421 | G74: 2.925239197 | H74: 0.1503621863 | I74: 4.742088302 | J74: 0.2437512685 | K74: 3.508869876 | L74: 0.1803617792 | M74: 0.05920043984 | N74: 0.003043001603
B75: 913 | C75: Retten i Svendborg | D75: Elev | E75: 0.1815359683 | F75: 0.1469819756 | G75: 0.6049681757 | H75: 0.4898170787 | I75: 0.1391948243 | J75: 0.1127001468 | K75: 0.2280652568 | L75: 0.1846547675 | M75: 0.01227591119 | N75: 0.00993928474
B76: 913 | C76: Retten i Svendborg | D76: Fleks | E76: 0.03292883028 | F76: 0.03292784244 | G76: 0.001699944905 | H76: 0.001699893908 | I76: 0.0162817961 | J76: 0.01628130766 | K76: 0.04582210716 | L76: 0.04582073254 | M76: 0.4900670128 | N76: 0.4900523112
B77: 913 | C77: Retten i Svendborg | D77: Øvrige | E77: 0.5257757513 | F77: 0.1404668243 | G77: 0.03290041501 | H77: 0.008789710828 | I77: 0.4249936831 | J77: 0.1135417768 | K77: 0.1010348808 | L77: 0.02699258917 | M77: 0 | N77: 0
B78: 914 | C78: Retten i Nykøbing F. | D78: Jurister | E78: 5.470132091 | F78: 0.4321393376 | G78: 3.382245517 | H78: 0.2671967172 | I78: 1.630236526 | J78: 0.1287883585 | K78: 1.187901969 | L78: 0.09384401716 | M78: 0.004528008656 | N78: 0.0003577117752
B79: 914 | C79: Retten i Nykøbing F. | D79: Kontor | E79: 7.570271883 | F79: 0.248202299 | G79: 3.874268325 | H79: 0.1270234835 | I79: 8.937458262 | J79: 0.2930274794 | K79: 5.68896776 | L79: 0.1865210258 | M79: 0.441187055 | N79: 0.0144649549
B80: 914 | C80: Retten i Nykøbing F. | D80: Elev | E80: 0.004466015598 | F80: 0.003349369351 | G80: 0.08141278233 | H80: 0.06105699183 | I80: 0.3595195924 | J80: 0.2696282351 | K80: 0.3346581535 | L80: 0.2509829483 | M80: 0.004043133084 | N80: 0.003032220944
B81: 914 | C81: Retten i Nykøbing F. | D81: Fleks | E81: 0 | F81: 0 | G81: 0 | H81: 0 | I81: 0 | J81: 0 | K81: 0 | L81: 0 | M81: 0 | N81: 0
B82: 914 | C82: Retten i Nykøbing F. | D82: Øvrige | E82: 0 | F82: 0 | G82: 0.004377383273 | H82: 0.001764483368 | I82: 0 | J82: 0 | K82: 0 | L82: 0 | M82: 0.006322385531 | N82: 0.002548496081
B83: 915 | C83: Retten i Næstved | D83: Jurister | E83: 7.335018295 | F83: 0.4422442132 | G83: 4.221839104 | H83: 0.2545438658 | I83: 1.895162652 | J83: 0.1142634799 | K83: 1.814131507 | L83: 0.1093779359 | M83: 0.01405190801 | N83: 0.0008472201094
B84: 915 | C84: Retten i Næstved | D84: Kontor | E84: 7.783119427 | F84: 0.2263730414 | G84: 4.462398064 | H84: 0.1297894284 | I84: 10.66724395 | J84: 0.3102581786 | K84: 5.937871476 | L84: 0.1727037646 | M84: 0.4961696807 | N84: 0.01443115973
B85: 915 | C85: Retten i Næstved | D85: Elev | E85: 0.1482328907 | F85: 0.07427613903 | G85: 0.249063513 | H85: 0.1248000767 | I85: 0.4879678303 | J85: 0.2445096108 | K85: 0.663245251 | L85: 0.3323371504 | M85: 0 | N85: 0
B86: 915 | C86: Retten i Næstved | D86: Fleks | E86: 0.2022418534 | F86: 0.07609112996 | G86: 0.03509253238 | H86: 0.01320315452 | I86: 0.8687628748 | J86: 0.3268618622 | K86: 0.01847230848 | L86: 0.006949989835 | M86: 0.4350877456 | N86: 0.1636966713
B87: 915 | C87: Retten i Næstved | D87: Øvrige | E87: 0.2593718151 | F87: 0.08691939313 | G87: 0.06523246243 | H87: 0.02186037849 | I87: 0.004522760278 | J87: 0.001515644938 | K87: 0.001450448444 | L87: 0.0004860670712 | M87: 0.001174742929 | N87: 0.00039367401
B88: 916 | C88: Retten i Holbæk | D88: Jurister | E88: 4.369688449 | F88: 0.3886326581 | G88: 3.351576378 | H88: 0.2980835022 | I88: 1.407318 | J88: 0.1251644692 | K88: 1.143571028 | L88: 0.1017072621 | M88: 0.02479713444 | N88: 0.002205414958
B89: 916 | C89: Retten i Holbæk | D89: Kontor | E89: 4.9735125 | F89: 0.2091335874 | G89: 3.368049676 | H89: 0.1416247192 | I89: 6.898996287 | J89: 0.2900991689 | K89: 4.814668067 | L89: 0.2024542624 | M89: 0.5081608774 | N89: 0.02136789789
B90: 916 | C90: Retten i Holbæk | D90: Elev | E90: 0.4286482489 | F90: 0.2143155518 | G90: 0.3093933481 | H90: 0.1546904865 | I90: 0.7045818773 | J90: 0.3522768476 | K90: 0.4328658097 | L90: 0.2164242479 | M90: 0.004290253995 | N90: 0.002145041196
B91: 916 | C91: Retten i Holbæk | D91: Fleks | E91: 1.024683192 | F91: 0.4376014554 | G91: 0.9995100164 | H91: 0.4268509929 | I91: 0.316027194 | J91: 0.134962651 | K91: 0 | L91: 0 | M91: 0 | N91: 0
B92: 916 | C92: Retten i Holbæk | D92: Øvrige | E92: 0.1108351031 | F92: 0.04107346527 | G92: 0.0001729931292 | H92: 6.410809471e-05 | I92: 0.1556820655 | J92: 0.0576929306 | K92: 0.04567045798 | L92: 0.01692463775 | M92: 0.0005793841043 | N92: 0.000214709169
B93: 917 | C93: Retten i Roskilde | D93: Jurister | E93: 7.984017399 | F93: 0.407298161 | G93: 5.760909021 | H93: 0.2938880933 | I93: 2.005814517 | J93: 0.102324998 | K93: 2.63527789 | L93: 0.1344365605 | M93: 0.01659326717 | N93: 0.0008464920435
B94: 917 | C94: Retten i Roskilde | D94: Kontor | E94: 9.877670071 | F94: 0.2609367003 | G94: 7.509030379 | H94: 0.1983647556 | I94: 7.804805597 | J94: 0.2061781983 | K94: 7.249121339 | L94: 0.1914987835 | M94: 0.4969635477 | N94: 0.01312820001
B95: 917 | C95: Retten i Roskilde | D95: Elev | E95: 0.7405429196 | F95: 0.3185637799 | G95: 0.5221767626 | H95: 0.2246279032 | I95: 0.6680785987 | J95: 0.2873913692 | K95: 0.3579702965 | L95: 0.1539902249 | M95: 0.006892800033 | N95: 0.002965117044
B96: 917 | C96: Retten i Roskilde | D96: Fleks | E96: 0.1670201 | F96: 0.13 | G96: 0.2055632 | H96: 0.16 | I96: 0.2826494 | J96: 0.22 | K96: 0.128477 | L96: 0.1 | M96: 0.0642385 | N96: 0.05
B97: 917 | C97: Retten i Roskilde | D97: Øvrige | E97: 0 | F97: 0 | G97: 0.004660817987 | H97: 0.002113529195 | I97: 0.1370724176 | J97: 0.06215787815 | K97: 0 | L97: 0 | M97: 0.01247768156 | N97: 0.0056582223
B98: 918 | C98: Retten i Hillerød | D98: Jurister | E98: 5.075462582 | F98: 0.3789808087 | G98: 4.628562343 | H98: 0.3456111184 | I98: 1.332014208 | J98: 0.09946045576 | K98: 1.198591736 | L98: 0.0894979045 | M98: 0.03183513259 | N98: 0.002377104372
B99: 918 | C99: Retten i Hillerød | D99: Kontor | E99: 4.650828296 | F99: 0.2140497628 | G99: 4.782601874 | H99: 0.2201145111 | I99: 4.616387983 | J99: 0.2124646815 | K99: 4.924296093 | L99: 0.2266358471 | M99: 0.4254810087 | N99: 0.01958234172
B100: 918 | C100: Retten i Hillerød | D100: Elev | E100: 0.5044376949 | F100: 0.1722582776 | G100: 0.4612198015 | H100: 0.1574999835 | I100: 0.9813862651 | J100: 0.3351294112 | K100: 0.9584294962 | L100: 0.327290002 | M100: 0 | N100: 0
B101: 918 | C101: Retten i Hillerød | D101: Fleks | E101: 0.08199233167 | F101: 0.0290354484 | G101: 0.01707539098 | H101: 0.006046804909 | I101: 1.112932846 | J101: 0.394116176 | K101: 0 | L101: 0 | M101: 0.331036793 | N101: 0.1172280569
B102: 918 | C102: Retten i Hillerød | D102: Øvrige | E102: 1.793138848 | F102: 0.3021606008 | G102: 0.1205540252 | H102: 0.02031447634 | I102: 0.5154124546 | J102: 0.08685180021 | K102: 0.2062994691 | L102: 0.03476338244 | M102: 0.2260353127 | N102: 0.03808905595
B103: 919 | C103: Retten i Helsingør | D103: Jurister | E103: 4.384216109 | F103: 0.3440530265 | G103: 4.768190255 | H103: 0.3741855436 | I103: 1.250938914 | J103: 0.09816790701 | K103: 1.23713597 | L103: 0.09708471575 | M103: 0.01546897271 | N103: 0.001213933517
B104: 919 | C104: Retten i Helsingør | D104: Kontor | E104: 4.836243804 | F104: 0.2099495167 | G104: 4.695404015 | H104: 0.2038354235 | I104: 6.585891392 | J104: 0.2859046754 | K104: 4.121348681 | L104: 0.1789147113 | M104: 0.1437414413 | N104: 0.006240058888
B105: 919 | C105: Retten i Helsingør | D105: Elev | E105: 0.4162290497 | F105: 0.1687070813 | G105: 0.429017615 | H105: 0.1738905771 | I105: 0.7490941856 | J105: 0.3036248761 | K105: 0.7050454862 | L105: 0.2857709384 | M105: 0.004940687279 | N105: 0.002002572696
B106: 919 | C106: Retten i Helsingør | D106: Fleks | E106: 0.0393674532 | F106: 0.01533203508 | G106: 0.04201378849 | H106: 0.01636267593 | I106: 0.2131118945 | J106: 0.08299848676 | K106: 0.2566118521 | L106: 0.09993996563 | M106: 0.5459603354 | N106: 0.2126295286
B107: 919 | C107: Retten i Helsingør | D107: Øvrige | E107: 0 | F107: 0 | G107: 0.09517656764 | H107: 0.03824287296 | I107: 0.2587686765 | J107: 0.1039757775 | K107: 0.3651007499 | L107: 0.1467010414 | M107: 0 | N107: 0
B108: 920 | C108: Retten i Lyngby | D108: Jurister | E108: 4.111974297 | F108: 0.2537538336 | G108: 8.975453531 | H108: 0.5538837496 | I108: 0.8727605406 | J108: 0.05385888068 | K108: 1.203742544 | L108: 0.07428409397 | M108: 0.0002543855548 | N108: 1.569837384e-05
B109: 920 | C109: Retten i Lyngby | D109: Kontor | E109: 4.522747851 | F109: 0.1600820825 | G109: 7.662046207 | H109: 0.2711971469 | I109: 4.4639461 | J109: 0.1580008021 | K109: 6.638868297 | L109: 0.2349818954 | M109: 1.795773309 | N109: 0.06356116692
B110: 920 | C110: Retten i Lyngby | D110: Elev | E110: 0.7393887797 | F110: 0.1592909527 | G110: 0.4313392184 | H110: 0.09292599093 | I110: 0.7438307386 | J110: 0.1602479105 | K110: 0.5766194973 | L110: 0.1242245914 | M110: 0.01588766207 | N110: 0.003422774184
B111: 920 | C111: Retten i Lyngby | D111: Fleks | E111: 0 | F111: 0 | G111: 0 | H111: 0 | I111: 0.6885561016 | J111: 0.7493183246 | K111: 0.002845097417 | L111: 0.003096165475 | M111: 0.1604201629 | N111: 0.1745765776
B112: 920 | C112: Retten i Lyngby | D112: Øvrige | E112: 0.002007918217 | F112: 0.0007065159103 | G112: 0.002176068822 | H112: 0.0007656822036 | I112: 0.004460941502 | J112: 0.001569648663 | K112: 0.001582595399 | L112: 0.0005568597464 | M112: 0.0007912976997 | N112: 0.0002784298732
B113: 921 | C113: Retten i Glostrup | D113: Jurister | E113: 13.42724665 | F113: 0.4566251999 | G113: 9.102748136 | H113: 0.3095604255 | I113: 3.13473578 | J113: 0.1066040856 | K113: 1.351562089 | L113: 0.04596305742 | M113: 0.07365935124 | N113: 0.002504960015
B114: 921 | C114: Retten i Glostrup | D114: Kontor | E114: 14.33951737 | F114: 0.2610947113 | G114: 9.304540638 | H114: 0.1694175815 | I114: 16.37239 | J114: 0.2981093667 | K114: 6.491992267 | L114: 0.1182065479 | M114: 0.8649772356 | N114: 0.0157495525
B115: 921 | C115: Retten i Glostrup | D115: Elev | E115: 0.4763250129 | F115: 0.1308347972 | G115: 0.04179772692 | H115: 0.01148081033 | I115: 1.16627325 | J115: 0.3203466541 | K115: 1.43655993 | L115: 0.3945877754 | M115: 0.009673272563 | N115: 0.002657010697
B116: 921 | C116: Retten i Glostrup | D116: Fleks | E116: 0 | F116: 0 | G116: 0 | H116: 0 | I116: 0.239443608 | J116: 0.1322549437 | K116: 0.785513196 | L116: 0.4338725281 | M116: 0 | N116: 0
B117: 921 | C117: Retten i Glostrup | D117: Øvrige | E117: 0.2368167036 | F117: 0.04954127421 | G117: 0.4808851417 | H117: 0.1005995874 | I117: 0.3940961534 | J117: 0.08244361697 | K117: 0 | L117: 0 | M117: 0.05981953842 | N117: 0.01251405037
B118: 922 | C118: Retten på Frederiksberg | D118: Jurister | E118: 12.40547971 | F118: 0.5001122623 | G118: 8.694026781 | H118: 0.3504894211 | I118: 2.045531885 | J118: 0.08246320196 | K118: 0.8238478949 | L118: 0.03321245483 | M118: 0.01334368468 | N118: 0.0005379348876
B119: 922 | C119: Retten på Frederiksberg | D119: Kontor | E119: 11.24343013 | F119: 0.2707755674 | G119: 8.868463184 | H119: 0.21357923 | I119: 9.67068436 | J119: 0.2328991255 | K119: 7.113581809 | L119: 0.1713164157 | M119: 0.3465223546 | N119: 0.008345299084
B120: 922 | C120: Retten på Frederiksberg | D120: Elev | E120: 1.964919493 | F120: 0.5949938205 | G120: 0.2077658073 | H120: 0.0629131992 | I120: 0.5861035467 | J120: 0.1774769856 | K120: 0.3894801936 | L120: 0.1179378134 | M120: 0 | N120: 0
B121: 922 | C121: Retten på Frederiksberg | D121: Fleks | E121: 0.003797788316 | F121: 0.001222419456 | G121: 1.986418925 | H121: 0.6393819083 | I121: 1.113926402 | J121: 0.3585469205 | K121: 0 | L121: 0 | M121: 0 | N121: 0
B122: 922 | C122: Retten på Frederiksberg | D122: Øvrige | E122: 0.2254547061 | F122: 0.04360454934 | G122: 0 | H122: 0 | I122: 0.251141377 | J122: 0.04857253483 | K122: 0.1363217195 | L122: 0.02636559355 | M122: 0.02946964188 | N122: 0.005699639079
B123: 923 | C123: Københavns Byret | D123: Jurister | E123: 31.49377905 | F123: 0.529286929 | G123: 19.22400389 | H123: 0.3230801221 | I123: 3.160817045 | J123: 0.05312093998 | K123: 2.382877553 | L123: 0.04004682767 | M123: 0.08203528535 | N123: 0.001378691461
B124: 923 | C124: Københavns Byret | D124: Kontor | E124: 40.29431699 | F124: 0.3619234858 | G124: 20.08935018 | H124: 0.1804425087 | I124: 17.95436974 | J124: 0.1612661181 | K124: 8.601747525 | L124: 0.07726088147 | M124: 2.239380841 | N124: 0.02011411486
B125: 923 | C125: Københavns Byret | D125: Elev | E125: 2.339599871 | F125: 0.3850749495 | G125: 0.7072238276 | H125: 0.1164020323 | I125: 0.9840881599 | J125: 0.1619711572 | K125: 1.11215299 | L125: 0.1830493589 | M125: 0.006375276479 | N125: 0.001049307319
B126: 923 | C126: Københavns Byret | D126: Fleks | E126: 0 | F126: - | G126: 0 | H126: - | I126: 0 | J126: - | K126: 0 | L126: - | M126: 0 | N126: -
B127: 923 | C127: Københavns Byret | D127: Øvrige | E127: 4.076055212 | F127: 0.3615344617 | G127: 1.176819198 | H127: 0.1043805035 | I127: 0.3891178609 | J127: 0.03451364348 | K127: 0.003264582844 | L127: 0.000289559179 | M127: 0 | N127: 0
B128: 924 | C128: Retten på Bornholm | D128: Jurister | E128: 0.806687486 | F128: 0.2382814305 | G128: 0.6168785749 | H128: 0.1822151847 | I128: 0.5565821539 | J128: 0.1644046723 | K128: 0.6577207084 | L128: 0.1942792395 | M128: 0.01094743793 | N128: 0.003233682454
B129: 924 | C129: Retten på Bornholm | D129: Kontor | E129: 1.43310457 | F129: 0.2053802797 | G129: 1.207185007 | H129: 0.1730034218 | I129: 1.251524075 | J129: 0.1793577175 | K129: 1.754099133 | L129: 0.2513824728 | M129: 0.1541945355 | N129: 0.02209784094
B130: 924 | C130: Retten på Bornholm | D130: Elev | E130: 0.6500910953 | F130: 0.3372279057 | G130: 0.1993025522 | H130: 0.1033860989 | I130: 0.2499414199 | J130: 0.1296544779 | K130: 0.4627052581 | L130: 0.2400234771 | M130: 0.0001834588366 | N130: 9.516733839e-05
B131: 924 | C131: Retten på Bornholm | D131: Fleks | E131: 0 | F131: - | G131: 0 | H131: - | I131: 0 | J131: - | K131: 0 | L131: - | M131: 0 | N131: -
B132: 924 | C132: Retten på Bornholm | D132: Øvrige | E132: 0.001576592265 | F132: 0.001010351096 | G132: 0.005045095248 | H132: 0.003233123509 | I132: 0 | J132: 0 | K132: 0 | L132: 0 | M132: 0 | N132: 0
B134: 1) Procenten er beregnet i forhold til det samlede årsværksforbrug ved retten inkl. generel ledelse og administration, hvorfor der ikke kan summes op til 100 % for den enkelte ret.
B135: 2) Ansatte under socialt kapitel (fleksjobbere mv.) uden tidsfordeling indgår ikke i denne opgørelse.
B136: 3) Det opgjorte årsværksforbrug er inkl. de korrektioner, der foretages som led i produktivitetsberegningen.

Sheet Dataark til 901-924 (hidden)
B11: Samlet produktivitet, retten | D11: Samlet produktivitet, jurister | F11: Samlet produktivitet, kontor | H11: ÅRVK ledelse og adm. | J11: Sagstider domsmandssager | L11: Sagstider hfh. alm. Civil | N11: Sagstid alm. fogedsag | P11: Målopfyldelse vold | R11: Målopfyldelse voldtægt | T11: Sygefravær | V11: Personaleomsætning | X11: Årsværk retten | Z11: Årsværk jurist | AB11: Årsværk kontor | AD11: Samlet lønsum
A12: Ret | B12: 2013 | C12: 2014 | D12: 2013 | E12: 2014 | F12: 2013 | G12: 2014 | H12: 2013 | I12: 2014 | J12: 2013 | K12: 2014 | L12: 2013 | M12: 2014 | N12: 2013 | O12: 2014 | P12: 2013 | Q12: 2014 | R12: 2013 | S12: 2014 | T12: 2013 | U12: 2014 | V12: 2013 | W12: 2014 | X12: 2013 | Y12: 2014 | Z12: 2013 | AA12: 2014 | AB12: 2013 | AC12: 2014 | AD12: 2013 | AE12: 2014
A13: Retten i Hjørring | B13: 102.9146793 | C13: 103.5231212 | D13: 101.4346809 | E13: 100.759754 | F13: 103.2149744 | G13: 103.3974315 | H13: 0.1868261939 | I13: 0.1665256771 | J13: 96 | K13: 95 | L13: 631.7745665 | M13: 525.5742574 | N13: 49.86269469 | O13: 49.91041129 | P13: 64 | Q13: 56.25 | R13: 75 | S13: 33.33333333 | T13: 5.7 | U13: 8.9 | V13: 12.7 | W13: 5.7 | X13: 53.476 | Y13: 50.05401 | Z13: 14.51677 | AA13: 13.73052 | AB13: 29.3254 | AC13: 28.51714 | AD13: 25.23077424 | AE13: 23.90913679 | AF13: Retten i Hjørring
A14: Retten i Aalborg | B14: 98.62855147 | C14: 96.6556053 | D14: 98.45801217 | E14: 89.37239006 | F14: 98.27397591 | G14: 106.1063077 | H14: 0.1339181623 | I14: 0.1197207669 | J14: 106 | K14: 114 | L14: 593.4757282 | M14: 527.4122807 | N14: 41.55710276 | O14: 43.94413408 | P14: 33.89830508 | Q14: 54.28571429 | R14: 60 | S14: 100 | T14: 5.1 | U14: 7.5 | V14: 12 | W14: 14.9 | X14: 75.60557 | Y14: 74.76297 | Z14: 20.77576 | AA14: 23.25516 | AB14: 43.97071 | AC14: 40.42406 | AD14: 36.32284163 | AE14: 36.63402749 | AF14: Retten i Aalborg
A15: Retten i Randers | B15: 97.0241151 | C15: 103.339095 | D15: 91.55018696 | E15: 96.00976208 | F15: 105.3368061 | G15: 117.9593277 | H15: 0.1980503732 | I15: 0.2099300769 | J15: 151 | K15: 124 | L15: 622.7865854 | M15: 555.5109489 | N15: 47.72560892 | O15: 58.37249399 | P15: 40 | Q15: 47.72727273 | R15: 0 | S15: 66.66666667 | T15: 6.9 | U15: 8.2 | V15: 10.8 | W15: 16.8 | X15: 51.35568 | Y15: 51.06822 | Z15: 14.54448 | AA15: 14.54934 | AB15: 28.09834 | AC15: 26.15055 | AD15: 26.74664964 | AE15: 25.62575263 | AF15: Retten i Randers
A16: Retten i Århus | B16: 98.14882931 | C16: 96.18247078 | D16: 94.28098483 | E16: 89.7982108 | F16: 104.1593869 | G16: 109.6431052 | H16: 0.1656399121 | I16: 0.1516882453 | J16: 140 | K16: 139 | L16: 494.8684211 | M16: 483.0638298 | N16: 56.95581015 | O16: 59.21347896 | P16: 38.46153846 | Q16: 27.08333333 | R16: 100 | S16: 14.28571429 | T16: 10.8 | U16: 9.6 | V16: 11.6 | W16: 13.7 | X16: 83.99051 | Y16: 81.20104 | Z16: 25.22725 | AA16: 25.26038 | AB16: 45.35235 | AC16: 41.33383 | AD16: 41.02113215 | AE16: 40.6273674 | AF16: Retten i Århus
A17: Retten i Viborg | B17: 97.24417792 | C17: 96.93034019 | D17: 92.31263346 | E17: 86.7549527 | F17: 105.8387295 | G17: 111.2954665 | H17: 0.1831987808 | I17: 0.1776954429 | J17: 108 | K17: 128 | L17: 534.7073171 | M17: 519.2689655 | N17: 47.35630204 | O17: 51.79351254 | P17: 67.74193548 | Q17: 62.16216216 | R17: 0 | S17: 100 | T17: 4.7 | U17: 5.9 | V17: 16.2 | W17: 19.2 | X17: 53.08464 | Y17: 52.03653 | Z17: 15.00269 | AA17: 15.44982 | AB17: 28.03999 | AC17: 26.36467 | AD17: 25.88336059 | AE17: 24.61018693 | AF17: Retten i Viborg
A18: Retten i Holstebro | B18: 103.5572491 | C18: 100.812459 | D18: 103.5300145 | E18: 99.45621923 | F18: 106.9435187 | G18: 105.1031682 | H18: 0.2155162205 | I18: 0.2143408913 | J18: 86 | K18: 84 | L18: 475.9032258 | M18: 413.4242424 | N18: 32.54022491 | O18: 34.27151899 | P18: 72.72727273 | Q18: 71.42857143 | R18: 100 | S18: 50 | T18: 5 | U18: 7.3 | V18: 16.2 | W18: 14.1 | X18: 38.40156 | Y18: 37.12805 | Z18: 9.67165 | AA18: 9.58671 | AB18: 20.53304 | AC18: 20.18777 | AD18: 19.40336905 | AE18: 19.09541128 | AF18: Retten i Holstebro
A19: Retten i Herning | B19: 92.5848018 | C19: 99.65816242 | D19: 82.04356593 | E19: 89.417041 | F19: 104.7436876 | G19: 111.3990738 | H19: 0.1955231872 | I19: 0.1893007858 | J19: 94 | K19: 91 | L19: 433.9708738 | M19: 520.7297297 | N19: 46.84155791 | O19: 46.73239437 | P19: 52.63157895 | Q19: 76.92307692 | R19: 16.66666667 | S19: 66.66666667 | T19: 8.6 | U19: 5.7 | V19: 15.3 | W19: 15.6 | X19: 38.76992 | Y19: 37.47035 | Z19: 11.84085 | AA19: 11.39788 | AB19: 20.75833 | AC19: 20.21608 | AD19: 20.02559767 | AE19: 19.00288448 | AF19: Retten i Herning
A20: Retten i Horsens | B20: 96.30874721 | C20: 89.74637006 | D20: 90.97352822 | E20: 80.99846156 | F20: 103.1020684 | G20: 100.8419553 | H20: 0.1979407442 | I20: 0.1918271636 | J20: 96 | K20: 111 | L20: 418 | M20: 434.1073826 | N20: 49.71742972 | O20: 46.29432687 | P20: 47.05882353 | Q20: 40 | R20: 0 | S20: 50 | T20: 5.3 | U20: 7.7 | V20: 13.3 | W20: 15.7 | X20: 49.88988 | Y20: 48.3814 | Z20: 14.06581 | AA20: 14.3927 | AB20: 25.31688 | AC20: 24.3045 | AD20: 24.53226103 | AE20: 24.09609649 | AF20: Retten i Horsens
A21: Retten i Kolding | B21: 103.4065127 | C21: 102.7438446 | D21: 93.44213967 | E21: 95.50833868 | F21: 112.1976912 | G21: 109.1412959 | H21: 0.1814648532 | I21: 0.1734292531 | J21: 105 | K21: 99 | L21: 510.0465116 | M21: 480.371134 | N21: 46.31372549 | O21: 52.97362322 | P21: 61.2244898 | Q21: 60 | R21: 100 | S21: 75 | T21: 11.7 | U21: 15.9 | V21: 6.6 | W21: 15.3 | X21: 67.53552 | Y21: 66.6538 | Z21: 21.33572 | AA21: 19.78779 | AB21: 37.2161 | AC21: 36.96165 | AD21: 35.21200134 | AE21: 33.98298785 | AF21: Retten i Kolding
A22: Retten i Esbjerg | B22: 99.69839621 | C22: 96.95557776 | D22: 95.03327915 | E22: 90.16354519 | F22: 101.4630039 | G22: 101.1639788 | H22: 0.1544399994 | I22: 0.1449473346 | J22: 143 | K22: 133 | L22: 631.4972067 | M22: 627.1860465 | N22: 58.91485835 | O22: 42.71642026 | P22: 30.86419753 | Q22: 40 | R22: 0 | S22: 0 | T22: 10.3 | U22: 8.5 | V22: 15 | W22: 15.2 | X22: 54.27444 | Y22: 51.83652 | Z22: 14.92874 | AA22: 14.62602 | AB22: 29.74744 | AC22: 27.96305 | AD22: 26.28483427 | AE22: 25.05472688 | AF22: Retten i Esbjerg
A23: Retten i Sønderborg | B23: 103.0055282 | C23: 106.4151909 | D23: 98.84884045 | E23: 103.7144091 | F23: 105.9415153 | G23: 108.6960709 | H23: 0.1968216784 | I23: 0.2000639601 | J23: 77 | K23: 81 | L23: 588.0246914 | M23: 405.7076923 | N23: 52.85101266 | O23: 51.7282204 | P23: 75.67567568 | Q23: 63.82978723 | R23: 100 | S23: - | T23: 7 | U23: 6.2 | V23: 10.2 | W23: 10.3 | X23: 58.41784 | Y23: 55.80884 | Z23: 17.36145 | AA23: 15.55415 | AB23: 33.50583 | AC23: 32.17316 | AD23: 32.07104816 | AE23: 30.87363142 | AF23: Retten i Sønderborg
A24: Retten i Odense | B24: 108.3800934 | C24: 96.5395286 | D24: 106.2807687 | E24: 89.58908157 | F24: 110.9626462 | G24: 104.5850874 | H24: 0.1610274217 | I24: 0.1668205188 | J24: 97 | K24: 92 | L24: 460.0165746 | M24: 410.88 | N24: 50.36748596 | O24: 60.92986425 | P24: 51.11111111 | Q24: 45.71428571 | R24: 40 | S24: 30.76923077 | T24: 7.7 | U24: 9.5 | V24: 8.3 | W24: 7.9 | X24: 77.86296 | Y24: 77.07732 | Z24: 21.81471 | AA24: 23.71285 | AB24: 45.22965 | AC24: 43.9482 | AD24: 38.81514503 | AE24: 38.61886183 | AF24: Retten i Odense
A25: Retten i Svendborg | B25: 98.99112703 | C25: 99.80214422 | D25: 96.48288534 | E25: 95.62400779 | F25: 103.5551398 | G25: 107.9791467 | H25: 0.1662743921 | I25: 0.1705922523 | J25: 105 | K25: 122 | L25: 479.2658228 | M25: 477.09375 | N25: 47.2630719 | O25: 56.18881119 | P25: 56.60377358 | Q25: 51.28205128 | R25: 40 | S25: 0 | T25: 14.2 | U25: 7.4 | V25: 17.7 | W25: 14.5 | X25: 36.96098 | Y25: 36.62017 | Z25: 10.30021 | AA25: 10.27236 | AB25: 21.70681 | AC25: 20.21508 | AD25: 19.70705955 | AE25: 18.51114105 | AF25: Retten i Svendborg
A26: Retten i Nykøbing F. | B26: 101.1958707 | C26: 99.31443827 | D26: 103.2506045 | E26: 101.3997252 | F26: 99.98645671 | G26: 96.93095285 | H26: 0.2136326657 | I26: 0.1807260383 | J26: 94 | K26: 80 | L26: 390.2222222 | M26: 382.2692308 | N26: 51.22872467 | O26: 46.03074305 | P26: 43.83561644 | Q26: 67.30769231 | R26: 100 | S26: 50 | T26: 3.8 | U26: 7.2 | V26: 15.8 | W26: 11.5 | X26: 49.93317 | Y26: 50.32492 | Z26: 13.97805 | AA26: 13.82973 | AB26: 30.55141 | AC26: 30.67865 | AD26: 25.6823684 | AE26: 25.17850572 | AF26: Retten i Nykøbing F.
A27: Retten i Næstved | B27: 106.4522251 | C27: 102.3117616 | D27: 101.2406033 | E27: 95.96222851 | F27: 111.6879755 | G27: 108.2319237 | H27: 0.2110018934 | I27: 0.2055415245 | J27: 132 | K27: 137 | L27: 524.7538462 | M27: 502.7627119 | N27: 59.44236241 | O27: 69.69931074 | P27: 38.0952381 | Q27: 31.81818182 | R27: 50 | S27: 22.22222222 | T27: 9 | U27: 8 | V27: 19.7 | W27: 12.6 | X27: 63.45753 | Y27: 60.64993 | Z27: 18.70124 | AA27: 17.55258 | AB27: 35.80973 | AC27: 34.2524 | AD27: 31.63077126 | AE27: 29.79163161 | AF27: Retten i Næstved
A28: Retten i Holbæk | B28: 97.5198651 | C28: 101.478968 | D28: 98.0654575 | E28: 98.97449175 | F28: 95.65987869 | G28: 102.2496137 | H28: 0.1791150763 | I28: 0.1726009196 | J28: 121 | K28: 92 | L28: 423.1904762 | M28: 406.2105263 | N28: 61.38024691 | O28: 62.59675489 | P28: 66.66666667 | Q28: 60 | R28: 66.66666667 | S28: 33.33333333 | T28: 7.3 | U28: 8.7 | V28: 14.1 | W28: 18.7 | X28: 49.02491 | Y28: 45.54094 | Z28: 12.88079 | AA28: 12.52644 | AB28: 27.5082 | AC28: 25.08951 | AD28: 23.08612638 | AE28: 22.46541318 | AF28: Retten i Holbæk
A29: Retten i Roskilde | B29: 101.069153 | C29: 101.644567 | D29: 93.84592474 | E29: 99.36044334 | F29: 107.666467 | G29: 101.7161825 | H29: 0.1856861136 | I29: 0.1794598483 | J29: 152 | K29: 133 | L29: 631.7375566 | M29: 468.0430108 | N29: 62.14235163 | O29: 56.66790871 | P29: 38.46153846 | Q29: 26.66666667 | R29: - | S29: 0 | T29: 8 | U29: 4.5 | V29: 19.9 | W29: 11.9 | X29: 73.92877 | Y29: 71.54561 | Z29: 22.48327 | AA29: 20.71814 | AB29: 41.59892 | AC29: 43.09007 | AD29: 38.57747683 | AE29: 37.60096141 | AF29: Retten i Roskilde
A30: Retten i Hillerød | B30: 98.37624366 | C30: 92.68948395 | D30: 93.0362009 | E30: 83.08629181 | F30: 111.8642549 | G30: 111.2224862 | H30: 0.2259331167 | I30: 0.1991529722 | J30: 93 | K30: 113 | L30: 457.4690265 | M30: 502.826087 | N30: 49.4952913 | O30: 52.278487 | P30: 56.25 | Q30: 41.37931034 | R30: 50 | S30: 50 | T30: 9.2 | U30: 11.2 | V30: 20.1 | W30: 12.9 | X30: 51.95118 | Y30: 51.27185 | Z30: 14.9175 | AA30: 15.82924 | AB30: 25.88941 | AC30: 24.89634 | AD30: 26.59530339 | AE30: 25.43023796 | AF30: Retten i Hillerød
A31: Retten i Helsingør | B31: 96.60724523 | C31: 95.73488114 | D31: 85.9110245 | E31: 81.20297998 | F31: 105.9668203 | G31: 112.4083829 | H31: 0.1578139783 | I31: 0.1449705115 | J31: 106 | K31: 112 | L31: 446.7733333 | M31: 559.9230769 | N31: 55.7016081 | O31: 68.93901858 | P31: 53.84615385 | Q31: 40 | R31: - | S31: 0 | T31: 13.1 | U31: 10.5 | V31: 17.9 | W31: 8.1 | X31: 47.84352 | Y31: 48.75499 | Z31: 14.47586 | AA31: 15.65373 | AB31: 25.18211 | AC31: 23.82526 | AD31: 25.17136882 | AE31: 24.29663369 | AF31: Retten i Helsingør
A32: Retten i Lyngby | B32: 96.82753324 | C32: 88.90590959 | D32: 86.51477605 | E32: 79.383929 | F32: 110.7851418 | G32: 101.3125505 | H32: 0.2167293196 | I32: 0.2029569311 | J32: 103 | K32: 105 | L32: 475.2258065 | M32: 385.046729 | N32: 39.57969813 | O32: 41.28764479 | P32: 72.72727273 | Q32: 60 | R32: 100 | S32: 33.33333333 | T32: 9.7 | U32: 8.8 | V32: 15.3 | W32: 16.5 | X32: 55.74239 | Y32: 55.26352 | Z32: 19.51242 | AA32: 18.80749 | AB32: 29.6227 | AC32: 29.49397 | AD32: 31.14209533 | AE32: 29.34078699 | AF32: Retten i Lyngby
A33: Retten i Glostrup | B33: 98.98202225 | C33: 104.7182355 | D33: 100.008897 | E33: 103.6593422 | F33: 99.29484206 | G33: 101.7834329 | H33: 0.2005362955 | I33: 0.1838177813 | J33: 146 | K33: 142 | L33: 614.8410405 | M33: 509.8187702 | N33: 75.69489089 | O33: 80.59972946 | P33: 43.75 | Q33: 32.89473684 | R33: 0 | S33: 0 | T33: 11.8 | U33: 7.5 | V33: 20.6 | W33: 17.3 | X33: 115.40872 | Y33: 106.84539 | Z33: 32.60759 | AA33: 30.84999 | AB33: 66.42532 | AC33: 63.61432 | AD33: 56.2588608 | AE33: 54.12637493 | AF33: Retten i Glostrup
A34: Retten på Frederiksberg | B34: 101.2561076 | C34: 103.1249909 | D34: 97.63529013 | E34: 96.62965753 | F34: 107.7453051 | G34: 112.175938 | H34: 0.2027823079 | I34: 0.1769760671 | J34: 180 | K34: 162 | L34: 551.3023256 | M34: 542.7112299 | N34: 86.15949623 | O34: 76.66579713 | P34: 8.695652174 | Q34: 26.47058824 | R34: 0 | S34: 40 | T34: 12 | U34: 10.9 | V34: 18.3 | W34: 15.6 | X34: 79.92535 | Y34: 80.89792 | Z34: 23.83584 | AA34: 25.78624 | AB34: 44.71399 | AC34: 43.13565 | AD34: 40.40890417 | AE34: 40.72638703 | AF34: Retten på Frederiksberg
A35: Københavns Byret | B35: 96.14494276 | C35: 94.63679124 | D35: 97.09472333 | E35: 93.86221962 | F35: 91.31934696 | G35: 91.19352344 | H35: 0.2065795179 | I35: 0.2060769464 | J35: 96 | K35: 104 | L35: 512.7992278 | M35: 529.8726592 | N35: 78.12335474 | O35: 73.15736591 | P35: 70 | Q35: 38.02816901 | R35: - | S35: 16.66666667 | T35: 8.1 | U35: 10.3 | V35: 9.6 | W35: 8.7 | X35: 190.18872 | Y35: 186.12346 | Z35: 58.73651 | AA35: 59.37777 | AB35: 113.64497 | AC35: 108.74881 | AD35: 102.9923745 | AE35: 101.9412044 | AF35: Københavns Byret
A36: Retten på Bornholm | B36: 63.43657445 | C36: 62.38123174 | D36: 64.7059556 | E36: 61.18431382 | F36: 66.6434586 | G36: 67.97281795 | H36: 0.3379421224 | I36: 0.3262324987 | J36: 46 | K36: 35 | L36: 291.3529412 | M36: 332.1111111 | N36: 27.57464366 | O36: 27.50285249 | P36: 94.73684211 | Q36: 78.94736842 | R36: 100 | S36: - | T36: 7.2 | U36: 8.7 | V36: 6.4 | W36: 19.4 | X36: 14.55013 | Y36: 14.58443 | Z36: 3.48785 | AA36: 3.77068 | AB36: 7.80507 | AC36: 7.52959 | AD36: 7.31 | AE36: 7.08154941 | AF36: Retten på Bornholm
B37: 0 | C37: 0 | D37: 0 | E37: 0 | F37: 0 | G37: 0 | H37: 0 | I37: 0 | J37: 0 | K37: 0 | L37: 0 | M37: 0 | N37: 0 | O37: 0 | P37: 0 | Q37: 0 | R37: 0 | S37: 0 | T37: 0 | U37: 0 | V37: 0 | W37: 0 | X37: 0 | Y37: 0 | Z37: 0 | AA37: 0 | AB37: 0 | AC37: 0 | AD37: 0 | AE37: 0
B41: Samlet produktivitet, retten | D41: Samlet produktivitet, jurister | F41: Samlet produktivitet, kontor | H41: ÅRVK ledelse og adm. | J41: Sagstider domsmandssager | L41: Sagstider hfh. alm. Civil | N41: Sagstid alm. fogedsag | P41: Målopfyldelse vold | R41: Målopfyldelse voldtægt | T41: Sygefravær | V41: Personaleomsætning | X41: Årsværk retten | Z41: Årsværk jurist | AB41: Årsværk kontor | AD41: Samlet lønsum
A42: Ret | B42: 2010 | C42: 2011 | D42: 2010 | E42: 2011 | F42: 2010 | G42: 2011 | H42: 2011 | J42: 2011 | L42: 2011 | N42: 2011 | P42: 2011 | R42: 2011 | T42: 2011 | V42: 2011 | X42: 2011 | Z42: 2011 | AB42: 2011 | AD42: 2011
A43: Retten i Hjørring | H43: 0.1808500373 | I43: =#REF!-H43 ->  | J43: 93 | K43: =J13-J43 -> 3 | L43: 588.737931 | M43: =L13-L43 -> 43.03663544 | N43: 59.02804965 | O43: =N13-N43 -> -9.165354958 | P43: 72.72727273 | Q43: =P13-P43 -> -8.727272727 | R43: 75 | S43: =R13-R43 -> 0 | T43: 9.195340336 | U43: =T13-T43 -> -3.495340336 | V43: 13.3 | W43: =V13-V43 -> -0.6 | X43: 59.79526 | Y43: =#REF!-X43 ->  | Z43: 13.34803 | AA43: =#REF!-Z43 ->  | AB43: 33.06976 | AC43: =#REF!-AB43 ->  | AD43: 25.84077727 | AE43: =AD13-AD43 -> -0.61000303
A44: Retten i Aalborg | H44: 0.1440885883 | I44: =#REF!-H44 ->  | J44: 89 | K44: =J14-J44 -> 17 | L44: 549.7346939 | M44: =L14-L44 -> 43.74103428 | N44: 81.29756381 | O44: =N14-N44 -> -39.74046105 | P44: 70 | Q44: =P14-P44 -> -36.10169492 | R44: 0 | S44: =R14-R44 -> 60 | T44: 7.44756948 | U44: =T14-T44 -> -2.34756948 | V44: 11.1 | W44: =V14-V44 -> 0.9 | X44: 80.50898 | Y44: =#REF!-X44 ->  | Z44: 22.18722 | AA44: =#REF!-Z44 ->  | AB44: 48.742 | AC44: =#REF!-AB44 ->  | AD44: 38.77436805 | AE44: =AD14-AD44 -> -2.45152642
A45: Retten i Randers | H45: 0.2242573374 | I45: =#REF!-H45 ->  | J45: 160 | K45: -9 | L45: 633.4363636 | M45: -10.64977827 | N45: 76.65538674 | O45: -28.92977782 | P45: 43.1372549 | Q45: -3.137254902 | R45: 0 | S45: 0 | T45: 7.923213529 | U45: -1.023213529 | V45: 6.1 | W45: 4.7 | X45: 58.17027 | Y45: =#REF!-X45 ->  | Z45: 16.642 | AA45: =#REF!-Z45 ->  | AB45: 31.602 | AC45: =#REF!-AB45 ->  | AD45: 28.27830635 | AE45: -1.53165671
A46: Retten i Århus | H46: 0.1740744916 | I46: =#REF!-H46 ->  | J46: 187 | K46: -47 | L46: 585.8815789 | M46: -91.01315789 | N46: 68.09649662 | O46: -11.14068647 | P46: 44.44444444 | Q46: -5.982905983 | R46: 0 | S46: 100 | T46: 10.94548768 | U46: -0.1454876758 | V46: 11.4 | W46: 0.2 | X46: 90.00205 | Y46: =#REF!-X46 ->  | Z46: 26.56876 | AA46: =#REF!-Z46 ->  | AB46: 50.61565 | AC46: =#REF!-AB46 ->  | AD46: 43.96941009 | AE46: -2.94827794
A47: Retten i Viborg | H47: 0.1869106164 | I47: =#REF!-H47 ->  | J47: 110 | K47: -2 | L47: 598.0942408 | M47: -63.38692376 | N47: 70.36160608 | O47: -23.00530404 | P47: 67.64705882 | Q47: 0.09487666034 | R47: 100 | S47: -100 | T47: 7.021671724 | U47: -2.321671724 | V47: 10.2 | W47: 6 | X47: 55.19659 | Y47: =#REF!-X47 ->  | Z47: 15.1701 | AA47: =#REF!-Z47 ->  | AB47: 30.18242 | AC47: =#REF!-AB47 ->  | AD47: 26.64360749 | AE47: -0.7602469
A48: Retten i Holstebro | H48: 0.2156894162 | I48: =#REF!-H48 ->  | J48: 99 | K48: -13 | L48: 517.1038961 | M48: -41.2006703 | N48: 33.32733875 | O48: -0.787113838 | P48: 44.06779661 | Q48: 28.65947612 | R48: 66.66666667 | S48: 33.33333333 | T48: 7.512563132 | U48: -2.512563132 | V48: 11.9 | W48: 4.3 | X48: 46.44103 | Y48: =#REF!-X48 ->  | Z48: 11.27 | AA48: =#REF!-Z48 ->  | AB48: 23.056 | AC48: =#REF!-AB48 ->  | AD48: 21.76629581 | AE48: -2.36292676
A49: Retten i Herning | H49: 0.2140891957 | I49: =#REF!-H49 ->  | J49: 93 | K49: 1 | L49: 504 | M49: -70.02912621 | N49: 46.15043463 | O49: 0.6911232819 | P49: 60.41666667 | Q49: -7.785087719 | R49: 0 | S49: 16.66666667 | T49: 12.53367166 | U49: -3.933671661 | V49: 17.4 | W49: -2.1 | X49: 42.52615 | Y49: =#REF!-X49 ->  | Z49: 11.84873 | AA49: =#REF!-Z49 ->  | AB49: 23.57106 | AC49: =#REF!-AB49 ->  | AD49: 21.11471095 | AE49: -1.08911328
A50: Retten i Horsens | H50: 0.1978894442 | I50: =#REF!-H50 ->  | J50: 75 | K50: 21 | L50: 454.2037037 | M50: -36.2037037 | N50: 53.19851049 | O50: -3.481080771 | P50: 54.23728814 | Q50: -7.178464606 | R50: 999 | S50: -999 | T50: 9.656788281 | U50: -4.356788281 | V50: 12.5 | W50: 0.8 | X50: 53.41053 | Y50: =#REF!-X50 ->  | Z50: 14.38903 | AA50: =#REF!-Z50 ->  | AB50: 26.41923 | AC50: =#REF!-AB50 ->  | AD50: 25.08928797 | AE50: -0.55702694
A51: Retten i Kolding | H51: 0.1649720064 | I51: =#REF!-H51 ->  | J51: 150 | K51: -45 | L51: 651.4146341 | M51: -141.3681225 | N51: 50.7865086 | O51: -4.47278311 | P51: 65.51724138 | Q51: -4.292751583 | R51: 999 | S51: -899 | T51: 8.675627926 | U51: 3.024372074 | V51: 6.1 | W51: 0.5 | X51: 76.6875 | Y51: =#REF!-X51 ->  | Z51: 20.54952 | AA51: =#REF!-Z51 ->  | AB51: 45.06554 | AC51: =#REF!-AB51 ->  | AD51: 36.12998449 | AE51: -0.91798315
A52: Retten i Esbjerg | H52: 0.160884098 | I52: =#REF!-H52 ->  | J52: 134 | K52: 9 | L52: 627.5329949 | M52: 3.96421178 | N52: 57.25041368 | O52: 1.664444668 | P52: 31.91489362 | Q52: -1.050696086 | R52: 20 | S52: -20 | T52: 9.830962196 | U52: 0.469037804 | V52: 12.2 | W52: 2.8 | X52: 56.23196 | Y52: =#REF!-X52 ->  | Z52: 15.1442 | AA52: =#REF!-Z52 ->  | AB52: 32.03157 | AC52: =#REF!-AB52 ->  | AD52: 27.40345038 | AE52: -1.11861611
A53: Retten i Sønderborg | H53: 0.2093655007 | I53: =#REF!-H53 ->  | J53: 146 | K53: -69 | L53: 670.3020134 | M53: -82.27732206 | N53: 66.74565217 | O53: -13.89463951 | P53: 51.25 | Q53: 24.42567568 | R53: 0 | S53: 100 | T53: 5.1 | U53: 1.9 | V53: 12.9 | W53: -2.7 | X53: 62.58565 | Y53: =#REF!-X53 ->  | Z53: 15.411 | AA53: =#REF!-Z53 ->  | AB53: 36.905 | AC53: =#REF!-AB53 ->  | AD53: 32.31378702 | AE53: -0.24273886
A54: Retten i Odense | H54: 0.1463671875 | I54: =#REF!-H54 ->  | J54: 86 | K54: 11 | L54: 428.4694836 | M54: 31.54709102 | N54: 66.62457364 | O54: -16.25708768 | P54: 60.46511628 | Q54: -9.354005168 | R54: 37.5 | S54: 2.5 | T54: 7.222463525 | U54: 0.4775364751 | V54: 20.8 | W54: -12.5 | X54: 89.18757 | Y54: =#REF!-X54 ->  | Z54: 24.26146 | AA54: =#REF!-Z54 ->  | AB54: 52.27552 | AC54: =#REF!-AB54 ->  | AD54: 42.19547545 | AE54: -3.38033042
A55: Retten i Svendborg | H55: 0.2310023534 | I55: =#REF!-H55 ->  | J55: 100 | K55: 5 | L55: 457.0487805 | M55: 22.2170423 | N55: 39.74894068 | O55: 7.514131217 | P55: 60.52631579 | Q55: -3.922542205 | R55: 0 | S55: 40 | T55: 7.534810135 | U55: 6.665189865 | V55: 13.5 | W55: 4.2 | X55: 46.62935 | Y55: =#REF!-X55 ->  | Z55: 12.16381 | AA55: =#REF!-Z55 ->  | AB55: 26.86367 | AC55: =#REF!-AB55 ->  | AD55: 21.33413431 | AE55: -1.62707476
A56: Retten i Nykøbing F. | H56: 0.2106800886 | I56: =#REF!-H56 ->  | J56: 89 | K56: 5 | L56: 511.1076923 | M56: -120.8854701 | N56: 58.32441823 | O56: -7.095693557 | P56: 75 | Q56: -31.16438356 | R56: 33.33333333 | S56: 66.66666667 | T56: 3.1 | U56: 0.7 | V56: 5.9 | W56: 9.9 | X56: 57.71872 | Y56: =#REF!-X56 ->  | Z56: 15.11914 | AA56: =#REF!-Z56 ->  | AB56: 36.06329 | AC56: =#REF!-AB56 ->  | AD56: 27.75952561 | AE56: -2.07715721
A57: Retten i Næstved | H57: 0.2009634119 | I57: =#REF!-H57 ->  | J57: 175 | K57: -43 | L57: 667.1578947 | M57: -142.4040486 | N57: 90.31952363 | O57: -30.87716122 | P57: 19.60784314 | Q57: 18.48739496 | R57: 42.85714286 | S57: 7.142857143 | T57: 9.143692893 | U57: -0.1436928928 | V57: 8.7 | W57: 11 | X57: 71.95559 | Y57: =#REF!-X57 ->  | Z57: 19.95737 | AA57: =#REF!-Z57 ->  | AB57: 40.2327 | AC57: =#REF!-AB57 ->  | AD57: 33.44395386 | AE57: -1.8131826
A58: Retten i Holbæk | H58: 0.2013305659 | I58: =#REF!-H58 ->  | J58: 129 | K58: -8 | L58: 492.7288136 | M58: -69.53833737 | N58: 79.91707956 | O58: -18.53683265 | P58: 45.90163934 | Q58: 20.76502732 | R58: 0 | S58: 66.66666667 | T58: 10.0927266 | U58: -2.792726598 | V58: 3.7 | W58: 10.4 | X58: 52.84805 | Y58: =#REF!-X58 ->  | Z58: 12.96697 | AA58: =#REF!-Z58 ->  | AB58: 31.22812 | AC58: =#REF!-AB58 ->  | AD58: 24.06054675 | AE58: -0.97442037
A59: Retten i Roskilde | H59: 0.1985138754 | I59: =#REF!-H59 ->  | J59: 161 | K59: -9 | L59: 580.0681818 | M59: 51.66937474 | N59: 78.76805332 | O59: -16.62570169 | P59: 57.69230769 | Q59: -19.23076923 | R59: 0 | T59: 8.041632025 | U59: -0.04163202497 | V59: 8.1 | W59: 11.8 | X59: 81.93291 | Y59: =#REF!-X59 ->  | Z59: 20.991 | AA59: =#REF!-Z59 ->  | AB59: 50.15184 | AC59: =#REF!-AB59 ->  | AD59: 40.35202857 | AE59: -1.77455174
A60: Retten i Hillerød | H60: 0.1966681251 | I60: =#REF!-H60 ->  | J60: 94 | K60: =J30-J60 -> -1 | L60: 535.2297297 | M60: -77.76070318 | N60: 69.77698997 | O60: -20.28169867 | P60: 67.56756757 | Q60: -11.31756757 | R60: 0 | S60: 50 | T60: 10.53646297 | U60: -1.33646297 | V60: 15.7 | W60: 4.4 | X60: 59.93847 | Y60: =#REF!-X60 ->  | Z60: 15.51429 | AA60: =#REF!-Z60 ->  | AB60: 31.81079 | AC60: =#REF!-AB60 ->  | AD60: 28.1485882 | AE60: -1.55328481
A61: Retten i Helsingør | H61: 0.1747076542 | I61: =#REF!-H61 ->  | J61: 91 | K61: 15 | L61: 625.1616766 | M61: -178.3883433 | N61: 80.56226998 | O61: -24.86066188 | P61: 65.71428571 | Q61: -11.86813187 | R61: 33.33333333 | T61: 8.100239201 | U61: 4.999760799 | V61: 11 | W61: 6.9 | X61: 59.49472 | Y61: =#REF!-X61 ->  | Z61: 16.67005 | AA61: =#REF!-Z61 ->  | AB61: 30.65085 | AC61: =#REF!-AB61 ->  | AD61: 27.2421141 | AE61: -2.07074528
A62: Retten i Lyngby | H62: 0.215369746 | I62: =#REF!-H62 ->  | J62: 97 | K62: 6 | L62: 681.4340426 | M62: -206.2082361 | N62: 48.64405845 | O62: -9.064360324 | P62: 92 | Q62: -19.27272727 | R62: 0 | S62: 100 | T62: 13.96319244 | U62: -4.263192438 | V62: 11.4 | W62: 3.9 | X62: 64.72881 | Y62: =#REF!-X62 ->  | Z62: 18.96953 | AA62: =#REF!-Z62 ->  | AB62: 37.24601 | AC62: =#REF!-AB62 ->  | AD62: 32.28066977 | AE62: -1.13857444
A63: Retten i Glostrup | H63: 0.1969059645 | I63: =#REF!-H63 ->  | J63: 204 | K63: -58 | L63: 771.7123746 | M63: -156.8713341 | N63: 86.84454431 | O63: -11.14965342 | P63: 31.86813187 | Q63: 11.88186813 | R63: 0 | S63: 0 | T63: 10.93379043 | U63: 0.8662095749 | V63: 11.7 | W63: 8.9 | X63: 130.88573 | Y63: =#REF!-X63 ->  | Z63: 35.62068 | AA63: =#REF!-Z63 ->  | AB63: 77.10199 | AC63: =#REF!-AB63 ->  | AD63: 61.81072972 | AE63: -5.55186892
A64: Retten på Frederiksberg | H64: 0.174762062 | I64: =#REF!-H64 ->  | J64: 165 | K64: 15 | L64: 581.0327869 | M64: -29.7304613 | N64: 111.6069617 | O64: -25.44746547 | P64: 13.79310345 | Q64: -5.097451274 | R64: 0 | S64: 0 | T64: 13.6 | U64: -1.6 | V64: 6.9 | W64: 11.4 | X64: 85.6221 | Y64: =#REF!-X64 ->  | Z64: 23.5809 | AA64: =#REF!-Z64 ->  | AB64: 50.499 | AC64: =#REF!-AB64 ->  | AD64: 41.59169201 | AE64: -1.18278784
A65: Københavns Byret | H65: 0.2193251818 | I65: =#REF!-H65 ->  | J65: 149 | K65: -53 | L65: 545 | M65: -32.2007722 | N65: 119.5509634 | O65: -41.42760866 | P65: 31.50684932 | Q65: 38.49315068 | R65: 12.5 | T65: 9.68431915 | U65: -1.58431915 | V65: 7 | W65: 2.6 | X65: 193.76867 | Y65: =#REF!-X65 ->  | Z65: 57.94189 | AA65: =#REF!-Z65 ->  | AB65: 116.4215 | AC65: =#REF!-AB65 ->  | AD65: 102.5840725 | AE65: 0.40830193
A66: Retten på Bornholm | H66: 0.3437150824 | I66: =#REF!-H66 ->  | J66: 37 | K66: 9 | L66: 359.8181818 | M66: -68.46524064 | N66: 39.08944028 | O66: -11.51479662 | P66: 100 | Q66: -5.263157895 | R66: 999 | S66: -899 | T66: 6.887992143 | U66: 0.3120078568 | V66: 6.4 | W66: 0 | X66: 15.32718 | Y66: =#REF!-X66 ->  | Z66: 3.68583 | AA66: =#REF!-Z66 ->  | AB66: 8.36564 | AC66: =#REF!-AB66 ->  | AD66: 7.34 | AE66: -0.03
B67: 0 | C67: 0 | D67: 0 | E67: 0 | F67: 0 | G67: 0 | H67: 0 | I67: 0 | J67: 0 | K67: 0 | L67: 0 | M67: 0 | N67: 0 | O67: 0 | P67: 0 | Q67: 0 | R67: 0 | S67: 0 | T67: 0 | U67: 0 | V67: 0 | W67: 0 | X67: 0 | Y67: 0 | Z67: 0 | AA67: 0 | AB67: 0 | AC67: 0 | AD67: 0 | AE67: 0
